{"text_format":"3","workbook":"xlsx","n_sheets":4,"sheets":["General","SPO","SPA","FED"],"not_rendered":{"defined_names":7},"read":"whole","date_system":"1900"}

{"sheet":"General","index":0,"n_rows":8,"n_cols":4,"rows_kept":8}
["System:","IDLDB","Ersetzen durch Aliasnamen (System) der verwendeten Datenbank","Replace by the alias name (system) of the used database"]
["Sprache 1:","DEU","durch ungültigen Sprachschlüssel ersetzen, wenn keine deutschen Texte übernommen werden sollen","Replace by an invalid language key if German descriptions are not wanted"]
["Sprache 2:","ENG","durch ungültigen Sprachschlüssel ersetzen, wenn keine englischen Texte übernommen werden sollen","Replace by an invalid language key if English descriptions are not wanted"]
["Sprache 3:","FRA","durch ungültigen Sprachschlüssel ersetzen, wenn keine französischen Texte übernommen werden sollen","Replace by an invalid language key if French descriptions are not wanted"]
["Sprache 4:","SPA","durch ungültigen Sprachschlüssel ersetzen, wenn keine spanischen Texte übernommen werden sollen","Replace by an invalid language key if Spanish descriptions are not wanted"]
["Gültig ab:","12.2012","Ersetzen durch die erste in der Anwendung verwendete Periode","Replace by the first period used in the application"]
[]
[null,null,"Die Schlüssel der Spaltenoptionen können auf der Seite <SPO> durch eigene Schlüssel ersetzt werden. Alle Verweise auf diese Schlüssel werden automatisch angepasst.","You can replace the column option keys on the page <SPO> by your own keys. All links to these keys are automatically adjusted."]

{"sheet":"SPO","index":1,"n_rows":8,"n_cols":18,"rows_kept":8,"merged":[[0,0,1,0],[0,1,0,2],[0,3,1,3],[0,4,0,5],[0,6,1,6],[0,7,1,7],[0,8,1,8],[0,9,1,9],[0,10,1,10],[0,11,1,11],[0,12,1,12],[0,13,1,13],[0,14,1,14],[0,15,1,15],[0,16,1,16],[0,17,1,17],[1,1,1,1],[1,2,1,2],[1,4,1,4],[1,5,1,5]]}
["Spalten\nOption","Report-","Report-","Spie-\ngel","Spa","Spa","Bezeichnung","Kurzwort","Bezug IDL.XLSLINK","Description","Short\nName","Bezug IDL.XLSLINK","Désignation","Abréviation","Bezug IDL.XLSLINK","Denominación","Denominac. Corta","Bezug IDL.XLSLINK"]
["","Ebene","Typ","","ObT","G","","","","","","","","","","","",""]
["$CALT","G","C",{"$nulls":3},"Salden je Controllingkennzeichen","CKtoSalden",{"$f":"IF(TRUE,\"STSPO\",_xll.IDLSetValue(_xll.IDLPara(1,\"STSPO\",Database,,,,,,,,,,,,,,,,,ValidFrom,Language1,,,,,G3,H3),_xll.IDLPara(2,,,$D3,$A3,$C3,$E3,$B3)))","v":"STSPO"},"Financial statements per controlling flag","FinStatem.",{"$f":"IF(TRUE,\"STSPO\",_xll.IDLSetValue(_xll.IDLPara(1,\"STSPO\",Database,,,,,,,,,,,,,,,,,ValidFrom,Language2,,,,,J3,K3),_xll.IDLPara(2,,,$D3,$A3,$C3,$E3,$B3)))","v":"STSPO"},"Soldes selon identifiant analytique","ICSoldesCp",{"$f":"IF(TRUE,\"STSPO\",_xll.IDLSetValue(_xll.IDLPara(1,\"STSPO\",Database,,,,,,,,,,,,,,,,,ValidFrom,Language3,,,,,M3,N3),_xll.IDLPara(2,,,$D3,$A3,$C3,$E3,$B3)))","v":"STSPO"},"Saldos por distintivo de análisis","CCtaSaldos",{"$f":"IF(TRUE,\"STSPO\",_xll.IDLSetValue(_xll.IDLPara(1,\"STSPO\",Database,,,,,,,,,,,,,,,,,ValidFrom,Language4,,,,,P3,Q3),_xll.IDLPara(2,,,$D3,$A3,$C3,$E3,$B3)))","v":"STSPO"}]
["$CBUC","G","C",{"$nulls":3},"Buchungen je Controllingkennzeichen","CBuchungen",{"$f":"IF(TRUE,\"STSPO\",_xll.IDLSetValue(_xll.IDLPara(1,\"STSPO\",Database,,,,,,,,,,,,,,,,,ValidFrom,Language1,,,,,G4,H4),_xll.IDLPara(2,,,$D4,$A4,$C4,$E4,$B4)))","v":"STSPO"},"Postings per controlling flag","Postings",{"$f":"IF(TRUE,\"STSPO\",_xll.IDLSetValue(_xll.IDLPara(1,\"STSPO\",Database,,,,,,,,,,,,,,,,,ValidFrom,Language2,,,,,J4,K4),_xll.IDLPara(2,,,$D4,$A4,$C4,$E4,$B4)))","v":"STSPO"},"Écritures selon identifiant analytique","ÉcrituresC",{"$f":"IF(TRUE,\"STSPO\",_xll.IDLSetValue(_xll.IDLPara(1,\"STSPO\",Database,,,,,,,,,,,,,,,,,ValidFrom,Language3,,,,,M4,N4),_xll.IDLPara(2,,,$D4,$A4,$C4,$E4,$B4)))","v":"STSPO"},"Asientos por distintivo de análisis","CAsientos",{"$f":"IF(TRUE,\"STSPO\",_xll.IDLSetValue(_xll.IDLPara(1,\"STSPO\",Database,,,,,,,,,,,,,,,,,ValidFrom,Language4,,,,,P4,Q4),_xll.IDLPara(2,,,$D4,$A4,$C4,$E4,$B4)))","v":"STSPO"}]
["$CKON","K","C",{"$nulls":3},"Konsolidierungsbuchungen je Controllingkennzeichen","CKonsBuchg",{"$f":"IF(TRUE,\"STSPO\",_xll.IDLSetValue(_xll.IDLPara(1,\"STSPO\",Database,,,,,,,,,,,,,,,,,ValidFrom,Language1,,,,,G5,H5),_xll.IDLPara(2,,,$D5,$A5,$C5,$E5,$B5)))","v":"STSPO"},"Consolidation postings per controlling flag","ConsPostgs",{"$f":"IF(TRUE,\"STSPO\",_xll.IDLSetValue(_xll.IDLPara(1,\"STSPO\",Database,,,,,,,,,,,,,,,,,ValidFrom,Language2,,,,,J5,K5),_xll.IDLPara(2,,,$D5,$A5,$C5,$E5,$B5)))","v":"STSPO"},"Écritures de consolidation selon identifiant analytique","ÉcritConsC",{"$f":"IF(TRUE,\"STSPO\",_xll.IDLSetValue(_xll.IDLPara(1,\"STSPO\",Database,,,,,,,,,,,,,,,,,ValidFrom,Language3,,,,,M5,N5),_xll.IDLPara(2,,,$D5,$A5,$C5,$E5,$B5)))","v":"STSPO"},"Asientos de consolidación por distintivo de análisis","CConsAsien",{"$f":"IF(TRUE,\"STSPO\",_xll.IDLSetValue(_xll.IDLPara(1,\"STSPO\",Database,,,,,,,,,,,,,,,,,ValidFrom,Language4,,,,,P5,Q5),_xll.IDLPara(2,,,$D5,$A5,$C5,$E5,$B5)))","v":"STSPO"}]
["$CKTK","K","C",{"$nulls":3},"Konzernabschluss je Controllingkennzeichen","CKonzAbsch",{"$f":"IF(TRUE,\"STSPO\",_xll.IDLSetValue(_xll.IDLPara(1,\"STSPO\",Database,,,,,,,,,,,,,,,,,ValidFrom,Language1,,,,,G6,H6),_xll.IDLPara(2,,,$D6,$A6,$C6,$E6,$B6)))","v":"STSPO"},"Consolidated financial statements per controlling flag","ConsFinStm",{"$f":"IF(TRUE,\"STSPO\",_xll.IDLSetValue(_xll.IDLPara(1,\"STSPO\",Database,,,,,,,,,,,,,,,,,ValidFrom,Language2,,,,,J6,K6),_xll.IDLPara(2,,,$D6,$A6,$C6,$E6,$B6)))","v":"STSPO"},"Comptes consolidés","ComptConso",{"$f":"IF(TRUE,\"STSPO\",_xll.IDLSetValue(_xll.IDLPara(1,\"STSPO\",Database,,,,,,,,,,,,,,,,,ValidFrom,Language3,,,,,M6,N6),_xll.IDLPara(2,,,$D6,$A6,$C6,$E6,$B6)))","v":"STSPO"},"Balance empresarial por distintivo de análisis","CBalEmpr",{"$f":"IF(TRUE,\"STSPO\",_xll.IDLSetValue(_xll.IDLPara(1,\"STSPO\",Database,,,,,,,,,,,,,,,,,ValidFrom,Language4,,,,,P6,Q6),_xll.IDLPara(2,,,$D6,$A6,$C6,$E6,$B6)))","v":"STSPO"}]
["$CNEU","G","C",{"$nulls":3},"Salden+Buchungen je Controllingkennzeichen","CSaldo+Buc",{"$f":"IF(TRUE,\"STSPO\",_xll.IDLSetValue(_xll.IDLPara(1,\"STSPO\",Database,,,,,,,,,,,,,,,,,ValidFrom,Language1,,,,,G7,H7),_xll.IDLPara(2,,,$D7,$A7,$C7,$E7,$B7)))","v":"STSPO"},"New financial statements per controlling flag","NewFinStat",{"$f":"IF(TRUE,\"STSPO\",_xll.IDLSetValue(_xll.IDLPara(1,\"STSPO\",Database,,,,,,,,,,,,,,,,,ValidFrom,Language2,,,,,J7,K7),_xll.IDLPara(2,,,$D7,$A7,$C7,$E7,$B7)))","v":"STSPO"},"Soldes+écritures selon identifiant analytique","Solde+écrC",{"$f":"IF(TRUE,\"STSPO\",_xll.IDLSetValue(_xll.IDLPara(1,\"STSPO\",Database,,,,,,,,,,,,,,,,,ValidFrom,Language3,,,,,M7,N7),_xll.IDLPara(2,,,$D7,$A7,$C7,$E7,$B7)))","v":"STSPO"},"Saldos+asientos por distintivo de análisis","CSaldo+Asi",{"$f":"IF(TRUE,\"STSPO\",_xll.IDLSetValue(_xll.IDLPara(1,\"STSPO\",Database,,,,,,,,,,,,,,,,,ValidFrom,Language4,,,,,P7,Q7),_xll.IDLPara(2,,,$D7,$A7,$C7,$E7,$B7)))","v":"STSPO"}]
["$CSUM","K","C",{"$nulls":3},"Summenabschluss je Controllingkennzeichen","CSumAbschl",{"$f":"IF(TRUE,\"STSPO\",_xll.IDLSetValue(_xll.IDLPara(1,\"STSPO\",Database,,,,,,,,,,,,,,,,,ValidFrom,Language1,,,,,G8,H8),_xll.IDLPara(2,,,$D8,$A8,$C8,$E8,$B8)))","v":"STSPO"},"Group financial statements per controlling flag","GroupFinSt",{"$f":"IF(TRUE,\"STSPO\",_xll.IDLSetValue(_xll.IDLPara(1,\"STSPO\",Database,,,,,,,,,,,,,,,,,ValidFrom,Language2,,,,,J8,K8),_xll.IDLPara(2,,,$D8,$A8,$C8,$E8,$B8)))","v":"STSPO"},"Comptes des sommes selon identifiant analytique","CmptsSomC",{"$f":"IF(TRUE,\"STSPO\",_xll.IDLSetValue(_xll.IDLPara(1,\"STSPO\",Database,,,,,,,,,,,,,,,,,ValidFrom,Language3,,,,,M8,N8),_xll.IDLPara(2,,,$D8,$A8,$C8,$E8,$B8)))","v":"STSPO"},"Cierre de sumas por distintivo de análisis","CCierreSum",{"$f":"IF(TRUE,\"STSPO\",_xll.IDLSetValue(_xll.IDLPara(1,\"STSPO\",Database,,,,,,,,,,,,,,,,,ValidFrom,Language4,,,,,P8,Q8),_xll.IDLPara(2,,,$D8,$A8,$C8,$E8,$B8)))","v":"STSPO"}]

{"sheet":"SPA","index":2,"n_rows":104,"n_cols":21,"rows_kept":104,"merged":[[0,0,1,0],[0,1,1,1],[0,2,1,2],[0,3,1,3],[0,4,1,4],[0,5,1,5],[0,6,1,6],[0,7,1,7],[0,8,1,8],[0,9,1,9],[0,10,1,10],[0,11,1,11],[0,12,1,12],[0,13,1,13],[0,14,1,14],[0,15,1,15],[0,16,1,16],[0,17,1,17],[0,18,1,18],[0,19,1,19],[0,20,1,20]]}
["Spalten\nOption","RepSpa","Pflicht","Nicht\nwiederh","Währung","Bezeichnung","Spalten\nÜberschrift","Kurzwort","Bezug IDL.XLSLINK","Description","Column\nheader","Short\nName","Bezug IDL.XLSLINK","Désignation","En tête\ndu tableau","Abréviation","Bezug IDL.XLSLINK","Denominación","Columna\nEncabezamiento","Denominac. corta","Bezug IDL.XLSLINK"]
["","","","","","","","","","","","","","","","","","","","",""]
[{"$f":"SPO!A$3","v":"$CALT"},"01",{"$nulls":3},"Produktion","Produktion","Produktion",{"$f":"IF(TRUE,\"STSPA\",_xll.IDLSetValue(_xll.IDLPara(1,\"STSPA\",Database,,,,,,,,,,,,,,,,,ValidFrom,Language1,,,,,H3,F3),_xll.IDLPara(2,G3,,,$A3,$B3,,$C3,$D3,,,,,,$E3)))","v":"STSPA"},"Production","Production","Production",{"$f":"IF(TRUE,\"STSPA\",_xll.IDLSetValue(_xll.IDLPara(1,\"STSPA\",Database,,,,,,,,,,,,,,,,,ValidFrom,Language2,,,,,L3,J3),_xll.IDLPara(2,K3,,,$A3,$B3,,$C3,$D3,,,,,,$E3)))","v":"STSPA"},"Production","Production","Production",{"$f":"IF(TRUE,\"STSPA\",_xll.IDLSetValue(_xll.IDLPara(1,\"STSPA\",Database,,,,,,,,,,,,,,,,,ValidFrom,Language3,,,,,P3,N3),_xll.IDLPara(2,O3,,,$A3,$B3,,$C3,$D3,,,,,,$E3)))","v":"STSPA"},"Producción","Producción","Producción",{"$f":"IF(TRUE,\"STSPA\",_xll.IDLSetValue(_xll.IDLPara(1,\"STSPA\",Database,,,,,,,,,,,,,,,,,ValidFrom,Language4,,,,,T3,R3),_xll.IDLPara(2,S3,,,$A3,$B3,,$C3,$D3,,,,,,$E3)))","v":"STSPA"}]
[{"$f":"SPO!A$3","v":"$CALT"},"02",{"$nulls":3},"Vertrieb","Vertrieb","Vertrieb",{"$f":"IF(TRUE,\"STSPA\",_xll.IDLSetValue(_xll.IDLPara(1,\"STSPA\",Database,,,,,,,,,,,,,,,,,ValidFrom,Language1,,,,,H4,F4),_xll.IDLPara(2,G4,,,$A4,$B4,,$C4,$D4,,,,,,$E4)))","v":"STSPA"},"Marketing and sales cost","Marketing and sales cost","Marketing",{"$f":"IF(TRUE,\"STSPA\",_xll.IDLSetValue(_xll.IDLPara(1,\"STSPA\",Database,,,,,,,,,,,,,,,,,ValidFrom,Language2,,,,,L4,J4),_xll.IDLPara(2,K4,,,$A4,$B4,,$C4,$D4,,,,,,$E4)))","v":"STSPA"},"Distribution","Distribution","Distrib.",{"$f":"IF(TRUE,\"STSPA\",_xll.IDLSetValue(_xll.IDLPara(1,\"STSPA\",Database,,,,,,,,,,,,,,,,,ValidFrom,Language3,,,,,P4,N4),_xll.IDLPara(2,O4,,,$A4,$B4,,$C4,$D4,,,,,,$E4)))","v":"STSPA"},"Distribu","Distribu","Distribu",{"$f":"IF(TRUE,\"STSPA\",_xll.IDLSetValue(_xll.IDLPara(1,\"STSPA\",Database,,,,,,,,,,,,,,,,,ValidFrom,Language4,,,,,T4,R4),_xll.IDLPara(2,S4,,,$A4,$B4,,$C4,$D4,,,,,,$E4)))","v":"STSPA"}]
[{"$f":"SPO!A$3","v":"$CALT"},"03",{"$nulls":3},"Forschung und Entwicklung","Forschung & Ew.","F&E",{"$f":"IF(TRUE,\"STSPA\",_xll.IDLSetValue(_xll.IDLPara(1,\"STSPA\",Database,,,,,,,,,,,,,,,,,ValidFrom,Language1,,,,,H5,F5),_xll.IDLPara(2,G5,,,$A5,$B5,,$C5,$D5,,,,,,$E5)))","v":"STSPA"},"Research and Development","Research and Development","R&D",{"$f":"IF(TRUE,\"STSPA\",_xll.IDLSetValue(_xll.IDLPara(1,\"STSPA\",Database,,,,,,,,,,,,,,,,,ValidFrom,Language2,,,,,L5,J5),_xll.IDLPara(2,K5,,,$A5,$B5,,$C5,$D5,,,,,,$E5)))","v":"STSPA"},"Recherche et développement","Recherche et développement","R&D",{"$f":"IF(TRUE,\"STSPA\",_xll.IDLSetValue(_xll.IDLPara(1,\"STSPA\",Database,,,,,,,,,,,,,,,,,ValidFrom,Language3,,,,,P5,N5),_xll.IDLPara(2,O5,,,$A5,$B5,,$C5,$D5,,,,,,$E5)))","v":"STSPA"},"Investigación y desarrollo","Invest.y Desar.","I+D",{"$f":"IF(TRUE,\"STSPA\",_xll.IDLSetValue(_xll.IDLPara(1,\"STSPA\",Database,,,,,,,,,,,,,,,,,ValidFrom,Language4,,,,,T5,R5),_xll.IDLPara(2,S5,,,$A5,$B5,,$C5,$D5,,,,,,$E5)))","v":"STSPA"}]
[{"$f":"SPO!A$3","v":"$CALT"},"04",{"$nulls":3},"Verwaltung","Verwaltung","Verwaltung",{"$f":"IF(TRUE,\"STSPA\",_xll.IDLSetValue(_xll.IDLPara(1,\"STSPA\",Database,,,,,,,,,,,,,,,,,ValidFrom,Language1,,,,,H6,F6),_xll.IDLPara(2,G6,,,$A6,$B6,,$C6,$D6,,,,,,$E6)))","v":"STSPA"},"Administration","Administration","Administr.",{"$f":"IF(TRUE,\"STSPA\",_xll.IDLSetValue(_xll.IDLPara(1,\"STSPA\",Database,,,,,,,,,,,,,,,,,ValidFrom,Language2,,,,,L6,J6),_xll.IDLPara(2,K6,,,$A6,$B6,,$C6,$D6,,,,,,$E6)))","v":"STSPA"},"Gestion","Gestion","Gestion",{"$f":"IF(TRUE,\"STSPA\",_xll.IDLSetValue(_xll.IDLPara(1,\"STSPA\",Database,,,,,,,,,,,,,,,,,ValidFrom,Language3,,,,,P6,N6),_xll.IDLPara(2,O6,,,$A6,$B6,,$C6,$D6,,,,,,$E6)))","v":"STSPA"},"Administración","Administración","Admin",{"$f":"IF(TRUE,\"STSPA\",_xll.IDLSetValue(_xll.IDLPara(1,\"STSPA\",Database,,,,,,,,,,,,,,,,,ValidFrom,Language4,,,,,T6,R6),_xll.IDLPara(2,S6,,,$A6,$B6,,$C6,$D6,,,,,,$E6)))","v":"STSPA"}]
[{"$f":"SPO!A$3","v":"$CALT"},"05",{"$nulls":3},"Berichtete Umlagen","Berichtete Umlagen","Umlagen",{"$f":"IF(TRUE,\"STSPA\",_xll.IDLSetValue(_xll.IDLPara(1,\"STSPA\",Database,,,,,,,,,,,,,,,,,ValidFrom,Language1,,,,,H7,F7),_xll.IDLPara(2,G7,,,$A7,$B7,,$C7,$D7,,,,,,$E7)))","v":"STSPA"},"Allocation of costs","Allocation of costs","Allocation",{"$f":"IF(TRUE,\"STSPA\",_xll.IDLSetValue(_xll.IDLPara(1,\"STSPA\",Database,,,,,,,,,,,,,,,,,ValidFrom,Language2,,,,,L7,J7),_xll.IDLPara(2,K7,,,$A7,$B7,,$C7,$D7,,,,,,$E7)))","v":"STSPA"},"Participations notifiées","Participations notifiées","Particip.",{"$f":"IF(TRUE,\"STSPA\",_xll.IDLSetValue(_xll.IDLPara(1,\"STSPA\",Database,,,,,,,,,,,,,,,,,ValidFrom,Language3,,,,,P7,N7),_xll.IDLPara(2,O7,,,$A7,$B7,,$C7,$D7,,,,,,$E7)))","v":"STSPA"},"Subrepartos informados","Subrepartos informados","Subrepart",{"$f":"IF(TRUE,\"STSPA\",_xll.IDLSetValue(_xll.IDLPara(1,\"STSPA\",Database,,,,,,,,,,,,,,,,,ValidFrom,Language4,,,,,T7,R7),_xll.IDLPara(2,S7,,,$A7,$B7,,$C7,$D7,,,,,,$E7)))","v":"STSPA"}]
[{"$f":"SPO!A$3","v":"$CALT"},"06",{"$nulls":3},"Sonstiges","Sonstiges","Sonstiges",{"$f":"IF(TRUE,\"STSPA\",_xll.IDLSetValue(_xll.IDLPara(1,\"STSPA\",Database,,,,,,,,,,,,,,,,,ValidFrom,Language1,,,,,H8,F8),_xll.IDLPara(2,G8,,,$A8,$B8,,$C8,$D8,,,,,,$E8)))","v":"STSPA"},"Other","Other","Other",{"$f":"IF(TRUE,\"STSPA\",_xll.IDLSetValue(_xll.IDLPara(1,\"STSPA\",Database,,,,,,,,,,,,,,,,,ValidFrom,Language2,,,,,L8,J8),_xll.IDLPara(2,K8,,,$A8,$B8,,$C8,$D8,,,,,,$E8)))","v":"STSPA"},"Autres","Autres","Autres",{"$f":"IF(TRUE,\"STSPA\",_xll.IDLSetValue(_xll.IDLPara(1,\"STSPA\",Database,,,,,,,,,,,,,,,,,ValidFrom,Language3,,,,,P8,N8),_xll.IDLPara(2,O8,,,$A8,$B8,,$C8,$D8,,,,,,$E8)))","v":"STSPA"},"Otros","Otros","Otros",{"$f":"IF(TRUE,\"STSPA\",_xll.IDLSetValue(_xll.IDLPara(1,\"STSPA\",Database,,,,,,,,,,,,,,,,,ValidFrom,Language4,,,,,T8,R8),_xll.IDLPara(2,S8,,,$A8,$B8,,$C8,$D8,,,,,,$E8)))","v":"STSPA"}]
[{"$f":"SPO!A$3","v":"$CALT"},"07",{"$nulls":3},"Individueller Controllingbereich 1","Individ. Bereich 1","IndCtrBer1",{"$f":"IF(TRUE,\"STSPA\",_xll.IDLSetValue(_xll.IDLPara(1,\"STSPA\",Database,,,,,,,,,,,,,,,,,ValidFrom,Language1,,,,,H9,F9),_xll.IDLPara(2,G9,,,$A9,$B9,,$C9,$D9,,,,,,$E9)))","v":"STSPA"},"Individual controlling division 1","Individ. division 1","IndCtrDiv1",{"$f":"IF(TRUE,\"STSPA\",_xll.IDLSetValue(_xll.IDLPara(1,\"STSPA\",Database,,,,,,,,,,,,,,,,,ValidFrom,Language2,,,,,L9,J9),_xll.IDLPara(2,K9,,,$A9,$B9,,$C9,$D9,,,,,,$E9)))","v":"STSPA"},"Zone individuelle de contrôle 1","Zone individ. 1","ZonIndCtr1",{"$f":"IF(TRUE,\"STSPA\",_xll.IDLSetValue(_xll.IDLPara(1,\"STSPA\",Database,,,,,,,,,,,,,,,,,ValidFrom,Language3,,,,,P9,N9),_xll.IDLPara(2,O9,,,$A9,$B9,,$C9,$D9,,,,,,$E9)))","v":"STSPA"},"Zona individual de control 1","Zona Individ. 1","ZonIndCtr1",{"$f":"IF(TRUE,\"STSPA\",_xll.IDLSetValue(_xll.IDLPara(1,\"STSPA\",Database,,,,,,,,,,,,,,,,,ValidFrom,Language4,,,,,T9,R9),_xll.IDLPara(2,S9,,,$A9,$B9,,$C9,$D9,,,,,,$E9)))","v":"STSPA"}]
[{"$f":"SPO!A$3","v":"$CALT"},"08",{"$nulls":3},"Individueller Controllingbereich 2","Individ. Bereich 2","IndCtrBer2",{"$f":"IF(TRUE,\"STSPA\",_xll.IDLSetValue(_xll.IDLPara(1,\"STSPA\",Database,,,,,,,,,,,,,,,,,ValidFrom,Language1,,,,,H10,F10),_xll.IDLPara(2,G10,,,$A10,$B10,,$C10,$D10,,,,,,$E10)))","v":"STSPA"},"Individual controlling division 2","Individ. division 2","IndCtrDiv2",{"$f":"IF(TRUE,\"STSPA\",_xll.IDLSetValue(_xll.IDLPara(1,\"STSPA\",Database,,,,,,,,,,,,,,,,,ValidFrom,Language2,,,,,L10,J10),_xll.IDLPara(2,K10,,,$A10,$B10,,$C10,$D10,,,,,,$E10)))","v":"STSPA"},"Zone individuelle de contrôle 2","Zone individ. 2","ZonIndCtr2",{"$f":"IF(TRUE,\"STSPA\",_xll.IDLSetValue(_xll.IDLPara(1,\"STSPA\",Database,,,,,,,,,,,,,,,,,ValidFrom,Language3,,,,,P10,N10),_xll.IDLPara(2,O10,,,$A10,$B10,,$C10,$D10,,,,,,$E10)))","v":"STSPA"},"Zona individual de control 2","Zona Individ. 2","ZonIndCtr2",{"$f":"IF(TRUE,\"STSPA\",_xll.IDLSetValue(_xll.IDLPara(1,\"STSPA\",Database,,,,,,,,,,,,,,,,,ValidFrom,Language4,,,,,T10,R10),_xll.IDLPara(2,S10,,,$A10,$B10,,$C10,$D10,,,,,,$E10)))","v":"STSPA"}]
[{"$f":"SPO!A$3","v":"$CALT"},"09",{"$nulls":3},"Individueller Controllingbereich 3","Individ. Bereich 3","IndCtrBer3",{"$f":"IF(TRUE,\"STSPA\",_xll.IDLSetValue(_xll.IDLPara(1,\"STSPA\",Database,,,,,,,,,,,,,,,,,ValidFrom,Language1,,,,,H11,F11),_xll.IDLPara(2,G11,,,$A11,$B11,,$C11,$D11,,,,,,$E11)))","v":"STSPA"},"Individual controlling division 3","Individ. division 3","IndCtrDiv3",{"$f":"IF(TRUE,\"STSPA\",_xll.IDLSetValue(_xll.IDLPara(1,\"STSPA\",Database,,,,,,,,,,,,,,,,,ValidFrom,Language2,,,,,L11,J11),_xll.IDLPara(2,K11,,,$A11,$B11,,$C11,$D11,,,,,,$E11)))","v":"STSPA"},"Zone individuelle de contrôle 3","Zone individ. 3","ZonIndCtr3",{"$f":"IF(TRUE,\"STSPA\",_xll.IDLSetValue(_xll.IDLPara(1,\"STSPA\",Database,,,,,,,,,,,,,,,,,ValidFrom,Language3,,,,,P11,N11),_xll.IDLPara(2,O11,,,$A11,$B11,,$C11,$D11,,,,,,$E11)))","v":"STSPA"},"Zona individual de control 3","Zona Individ. 3","ZonIndCtr3",{"$f":"IF(TRUE,\"STSPA\",_xll.IDLSetValue(_xll.IDLPara(1,\"STSPA\",Database,,,,,,,,,,,,,,,,,ValidFrom,Language4,,,,,T11,R11),_xll.IDLPara(2,S11,,,$A11,$B11,,$C11,$D11,,,,,,$E11)))","v":"STSPA"}]
[{"$f":"SPO!A$3","v":"$CALT"},"10",{"$nulls":3},"Individueller Controllingbereich 4","Individ. Bereich 4","IndCtrBer4",{"$f":"IF(TRUE,\"STSPA\",_xll.IDLSetValue(_xll.IDLPara(1,\"STSPA\",Database,,,,,,,,,,,,,,,,,ValidFrom,Language1,,,,,H12,F12),_xll.IDLPara(2,G12,,,$A12,$B12,,$C12,$D12,,,,,,$E12)))","v":"STSPA"},"Individual controlling division 4","Individ. division 4","IndCtrDiv4",{"$f":"IF(TRUE,\"STSPA\",_xll.IDLSetValue(_xll.IDLPara(1,\"STSPA\",Database,,,,,,,,,,,,,,,,,ValidFrom,Language2,,,,,L12,J12),_xll.IDLPara(2,K12,,,$A12,$B12,,$C12,$D12,,,,,,$E12)))","v":"STSPA"},"Zone individuelle de contrôle 4","Zone individ. 4","ZonIndCtr4",{"$f":"IF(TRUE,\"STSPA\",_xll.IDLSetValue(_xll.IDLPara(1,\"STSPA\",Database,,,,,,,,,,,,,,,,,ValidFrom,Language3,,,,,P12,N12),_xll.IDLPara(2,O12,,,$A12,$B12,,$C12,$D12,,,,,,$E12)))","v":"STSPA"},"Zona individual de control 4","Zona Individ. 4","ZonIndCtr4",{"$f":"IF(TRUE,\"STSPA\",_xll.IDLSetValue(_xll.IDLPara(1,\"STSPA\",Database,,,,,,,,,,,,,,,,,ValidFrom,Language4,,,,,T12,R12),_xll.IDLPara(2,S12,,,$A12,$B12,,$C12,$D12,,,,,,$E12)))","v":"STSPA"}]
[{"$f":"SPO!A$3","v":"$CALT"},"11",{"$nulls":3},"Individueller Controllingbereich 5","Individ. Bereich 5","IndCtrBer5",{"$f":"IF(TRUE,\"STSPA\",_xll.IDLSetValue(_xll.IDLPara(1,\"STSPA\",Database,,,,,,,,,,,,,,,,,ValidFrom,Language1,,,,,H13,F13),_xll.IDLPara(2,G13,,,$A13,$B13,,$C13,$D13,,,,,,$E13)))","v":"STSPA"},"Individual controlling division 5","Individ. division 5","IndCtrDiv5",{"$f":"IF(TRUE,\"STSPA\",_xll.IDLSetValue(_xll.IDLPara(1,\"STSPA\",Database,,,,,,,,,,,,,,,,,ValidFrom,Language2,,,,,L13,J13),_xll.IDLPara(2,K13,,,$A13,$B13,,$C13,$D13,,,,,,$E13)))","v":"STSPA"},"Zone individuelle de contrôle 5","Zone individ. 5","ZonIndCtr5",{"$f":"IF(TRUE,\"STSPA\",_xll.IDLSetValue(_xll.IDLPara(1,\"STSPA\",Database,,,,,,,,,,,,,,,,,ValidFrom,Language3,,,,,P13,N13),_xll.IDLPara(2,O13,,,$A13,$B13,,$C13,$D13,,,,,,$E13)))","v":"STSPA"},"Zona individual de control 5","Zona Individ. 5","ZonIndCtr5",{"$f":"IF(TRUE,\"STSPA\",_xll.IDLSetValue(_xll.IDLPara(1,\"STSPA\",Database,,,,,,,,,,,,,,,,,ValidFrom,Language4,,,,,T13,R13),_xll.IDLPara(2,S13,,,$A13,$B13,,$C13,$D13,,,,,,$E13)))","v":"STSPA"}]
[{"$f":"SPO!A$3","v":"$CALT"},"12",{"$nulls":3},"Individueller Controllingbereich 6","Individ. Bereich 6","IndCtrBer6",{"$f":"IF(TRUE,\"STSPA\",_xll.IDLSetValue(_xll.IDLPara(1,\"STSPA\",Database,,,,,,,,,,,,,,,,,ValidFrom,Language1,,,,,H14,F14),_xll.IDLPara(2,G14,,,$A14,$B14,,$C14,$D14,,,,,,$E14)))","v":"STSPA"},"Individual controlling division 6","Individ. division 6","IndCtrDiv6",{"$f":"IF(TRUE,\"STSPA\",_xll.IDLSetValue(_xll.IDLPara(1,\"STSPA\",Database,,,,,,,,,,,,,,,,,ValidFrom,Language2,,,,,L14,J14),_xll.IDLPara(2,K14,,,$A14,$B14,,$C14,$D14,,,,,,$E14)))","v":"STSPA"},"Zone individuelle de contrôle 6","Zone individ. 6","ZonIndCtr6",{"$f":"IF(TRUE,\"STSPA\",_xll.IDLSetValue(_xll.IDLPara(1,\"STSPA\",Database,,,,,,,,,,,,,,,,,ValidFrom,Language3,,,,,P14,N14),_xll.IDLPara(2,O14,,,$A14,$B14,,$C14,$D14,,,,,,$E14)))","v":"STSPA"},"Zona individual de control 6","Zona Individ. 6","ZonIndCtr6",{"$f":"IF(TRUE,\"STSPA\",_xll.IDLSetValue(_xll.IDLPara(1,\"STSPA\",Database,,,,,,,,,,,,,,,,,ValidFrom,Language4,,,,,T14,R14),_xll.IDLPara(2,S14,,,$A14,$B14,,$C14,$D14,,,,,,$E14)))","v":"STSPA"}]
[{"$f":"SPO!A$3","v":"$CALT"},"13",{"$nulls":3},"Individueller Controllingbereich 7","Individ. Bereich 7","IndCtrBer7",{"$f":"IF(TRUE,\"STSPA\",_xll.IDLSetValue(_xll.IDLPara(1,\"STSPA\",Database,,,,,,,,,,,,,,,,,ValidFrom,Language1,,,,,H15,F15),_xll.IDLPara(2,G15,,,$A15,$B15,,$C15,$D15,,,,,,$E15)))","v":"STSPA"},"Individual controlling division 7","Individ. division 7","IndCtrDiv7",{"$f":"IF(TRUE,\"STSPA\",_xll.IDLSetValue(_xll.IDLPara(1,\"STSPA\",Database,,,,,,,,,,,,,,,,,ValidFrom,Language2,,,,,L15,J15),_xll.IDLPara(2,K15,,,$A15,$B15,,$C15,$D15,,,,,,$E15)))","v":"STSPA"},"Zone individuelle de contrôle 7","Zone individ. 7","ZonIndCtr7",{"$f":"IF(TRUE,\"STSPA\",_xll.IDLSetValue(_xll.IDLPara(1,\"STSPA\",Database,,,,,,,,,,,,,,,,,ValidFrom,Language3,,,,,P15,N15),_xll.IDLPara(2,O15,,,$A15,$B15,,$C15,$D15,,,,,,$E15)))","v":"STSPA"},"Zona individual de control 7","Zona Individ. 7","ZonIndCtr7",{"$f":"IF(TRUE,\"STSPA\",_xll.IDLSetValue(_xll.IDLPara(1,\"STSPA\",Database,,,,,,,,,,,,,,,,,ValidFrom,Language4,,,,,T15,R15),_xll.IDLPara(2,S15,,,$A15,$B15,,$C15,$D15,,,,,,$E15)))","v":"STSPA"}]
[{"$f":"SPO!A$3","v":"$CALT"},"14",{"$nulls":3},"Individueller Controllingbereich 8","Individ. Bereich 8","IndCtrBer8",{"$f":"IF(TRUE,\"STSPA\",_xll.IDLSetValue(_xll.IDLPara(1,\"STSPA\",Database,,,,,,,,,,,,,,,,,ValidFrom,Language1,,,,,H16,F16),_xll.IDLPara(2,G16,,,$A16,$B16,,$C16,$D16,,,,,,$E16)))","v":"STSPA"},"Individual controlling division 8","Individ. division 8","IndCtrDiv8",{"$f":"IF(TRUE,\"STSPA\",_xll.IDLSetValue(_xll.IDLPara(1,\"STSPA\",Database,,,,,,,,,,,,,,,,,ValidFrom,Language2,,,,,L16,J16),_xll.IDLPara(2,K16,,,$A16,$B16,,$C16,$D16,,,,,,$E16)))","v":"STSPA"},"Zone individuelle de contrôle 8","Zone individ. 8","ZonIndCtr8",{"$f":"IF(TRUE,\"STSPA\",_xll.IDLSetValue(_xll.IDLPara(1,\"STSPA\",Database,,,,,,,,,,,,,,,,,ValidFrom,Language3,,,,,P16,N16),_xll.IDLPara(2,O16,,,$A16,$B16,,$C16,$D16,,,,,,$E16)))","v":"STSPA"},"Zona individual de control 8","Zona Individ. 8","ZonIndCtr8",{"$f":"IF(TRUE,\"STSPA\",_xll.IDLSetValue(_xll.IDLPara(1,\"STSPA\",Database,,,,,,,,,,,,,,,,,ValidFrom,Language4,,,,,T16,R16),_xll.IDLPara(2,S16,,,$A16,$B16,,$C16,$D16,,,,,,$E16)))","v":"STSPA"}]
[{"$f":"SPO!A$3","v":"$CALT"},"15",{"$nulls":3},"Individueller Controllingbereich 9","Individ. Bereich 9","IndCtrBer9",{"$f":"IF(TRUE,\"STSPA\",_xll.IDLSetValue(_xll.IDLPara(1,\"STSPA\",Database,,,,,,,,,,,,,,,,,ValidFrom,Language1,,,,,H17,F17),_xll.IDLPara(2,G17,,,$A17,$B17,,$C17,$D17,,,,,,$E17)))","v":"STSPA"},"Individual controlling division 9","Individ. division 9","IndCtrDiv9",{"$f":"IF(TRUE,\"STSPA\",_xll.IDLSetValue(_xll.IDLPara(1,\"STSPA\",Database,,,,,,,,,,,,,,,,,ValidFrom,Language2,,,,,L17,J17),_xll.IDLPara(2,K17,,,$A17,$B17,,$C17,$D17,,,,,,$E17)))","v":"STSPA"},"Zone individuelle de contrôle 9","Zone individ. 9","ZonIndCtr9",{"$f":"IF(TRUE,\"STSPA\",_xll.IDLSetValue(_xll.IDLPara(1,\"STSPA\",Database,,,,,,,,,,,,,,,,,ValidFrom,Language3,,,,,P17,N17),_xll.IDLPara(2,O17,,,$A17,$B17,,$C17,$D17,,,,,,$E17)))","v":"STSPA"},"Zona individual de control 9","Zona Individ. 9","ZonIndCtr9",{"$f":"IF(TRUE,\"STSPA\",_xll.IDLSetValue(_xll.IDLPara(1,\"STSPA\",Database,,,,,,,,,,,,,,,,,ValidFrom,Language4,,,,,T17,R17),_xll.IDLPara(2,S17,,,$A17,$B17,,$C17,$D17,,,,,,$E17)))","v":"STSPA"}]
[{"$f":"SPO!A$3","v":"$CALT"},"16","X",null,null,"Gesamt","Gesamt","Gesamt",{"$f":"IF(TRUE,\"STSPA\",_xll.IDLSetValue(_xll.IDLPara(1,\"STSPA\",Database,,,,,,,,,,,,,,,,,ValidFrom,Language1,,,,,H18,F18),_xll.IDLPara(2,G18,,,$A18,$B18,,$C18,$D18,,,,,,$E18)))","v":"STSPA"},"Total","Total","Total",{"$f":"IF(TRUE,\"STSPA\",_xll.IDLSetValue(_xll.IDLPara(1,\"STSPA\",Database,,,,,,,,,,,,,,,,,ValidFrom,Language2,,,,,L18,J18),_xll.IDLPara(2,K18,,,$A18,$B18,,$C18,$D18,,,,,,$E18)))","v":"STSPA"},"Total","Total","Total",{"$f":"IF(TRUE,\"STSPA\",_xll.IDLSetValue(_xll.IDLPara(1,\"STSPA\",Database,,,,,,,,,,,,,,,,,ValidFrom,Language3,,,,,P18,N18),_xll.IDLPara(2,O18,,,$A18,$B18,,$C18,$D18,,,,,,$E18)))","v":"STSPA"},"Global","Global","Global",{"$f":"IF(TRUE,\"STSPA\",_xll.IDLSetValue(_xll.IDLPara(1,\"STSPA\",Database,,,,,,,,,,,,,,,,,ValidFrom,Language4,,,,,T18,R18),_xll.IDLPara(2,S18,,,$A18,$B18,,$C18,$D18,,,,,,$E18)))","v":"STSPA"}]
[{"$f":"SPO!A$3","v":"$CALT"},"17",{"$nulls":3},"Gesamt VP","Gesamt VP","Gesamt VP",{"$f":"IF(TRUE,\"STSPA\",_xll.IDLSetValue(_xll.IDLPara(1,\"STSPA\",Database,,,,,,,,,,,,,,,,,ValidFrom,Language1,,,,,H19,F19),_xll.IDLPara(2,G19,,,$A19,$B19,,$C19,$D19,,,,,,$E19)))","v":"STSPA"},"Total LP","Total LP","Total LP",{"$f":"IF(TRUE,\"STSPA\",_xll.IDLSetValue(_xll.IDLPara(1,\"STSPA\",Database,,,,,,,,,,,,,,,,,ValidFrom,Language2,,,,,L19,J19),_xll.IDLPara(2,K19,,,$A19,$B19,,$C19,$D19,,,,,,$E19)))","v":"STSPA"},"Total PP","Total PP","Total PP",{"$f":"IF(TRUE,\"STSPA\",_xll.IDLSetValue(_xll.IDLPara(1,\"STSPA\",Database,,,,,,,,,,,,,,,,,ValidFrom,Language3,,,,,P19,N19),_xll.IDLPara(2,O19,,,$A19,$B19,,$C19,$D19,,,,,,$E19)))","v":"STSPA"},"VP global","VP global","VP global",{"$f":"IF(TRUE,\"STSPA\",_xll.IDLSetValue(_xll.IDLPara(1,\"STSPA\",Database,,,,,,,,,,,,,,,,,ValidFrom,Language4,,,,,T19,R19),_xll.IDLPara(2,S19,,,$A19,$B19,,$C19,$D19,,,,,,$E19)))","v":"STSPA"}]
[{"$f":"SPO!A$4","v":"$CBUC"},"01",{"$nulls":3},"Produktion","Produktion","Produktion",{"$f":"IF(TRUE,\"STSPA\",_xll.IDLSetValue(_xll.IDLPara(1,\"STSPA\",Database,,,,,,,,,,,,,,,,,ValidFrom,Language1,,,,,H20,F20),_xll.IDLPara(2,G20,,,$A20,$B20,,$C20,$D20,,,,,,$E20)))","v":"STSPA"},"Production","Production","Production",{"$f":"IF(TRUE,\"STSPA\",_xll.IDLSetValue(_xll.IDLPara(1,\"STSPA\",Database,,,,,,,,,,,,,,,,,ValidFrom,Language2,,,,,L20,J20),_xll.IDLPara(2,K20,,,$A20,$B20,,$C20,$D20,,,,,,$E20)))","v":"STSPA"},"Production","Production","Production",{"$f":"IF(TRUE,\"STSPA\",_xll.IDLSetValue(_xll.IDLPara(1,\"STSPA\",Database,,,,,,,,,,,,,,,,,ValidFrom,Language3,,,,,P20,N20),_xll.IDLPara(2,O20,,,$A20,$B20,,$C20,$D20,,,,,,$E20)))","v":"STSPA"},"Producción","Producción","Producción",{"$f":"IF(TRUE,\"STSPA\",_xll.IDLSetValue(_xll.IDLPara(1,\"STSPA\",Database,,,,,,,,,,,,,,,,,ValidFrom,Language4,,,,,T20,R20),_xll.IDLPara(2,S20,,,$A20,$B20,,$C20,$D20,,,,,,$E20)))","v":"STSPA"}]
[{"$f":"SPO!A$4","v":"$CBUC"},"02",{"$nulls":3},"Vertrieb","Vertrieb","Vertrieb",{"$f":"IF(TRUE,\"STSPA\",_xll.IDLSetValue(_xll.IDLPara(1,\"STSPA\",Database,,,,,,,,,,,,,,,,,ValidFrom,Language1,,,,,H21,F21),_xll.IDLPara(2,G21,,,$A21,$B21,,$C21,$D21,,,,,,$E21)))","v":"STSPA"},"Marketing and sales cost","Marketing and sales cost","Marketing",{"$f":"IF(TRUE,\"STSPA\",_xll.IDLSetValue(_xll.IDLPara(1,\"STSPA\",Database,,,,,,,,,,,,,,,,,ValidFrom,Language2,,,,,L21,J21),_xll.IDLPara(2,K21,,,$A21,$B21,,$C21,$D21,,,,,,$E21)))","v":"STSPA"},"Distribution","Distribution","Distrib.",{"$f":"IF(TRUE,\"STSPA\",_xll.IDLSetValue(_xll.IDLPara(1,\"STSPA\",Database,,,,,,,,,,,,,,,,,ValidFrom,Language3,,,,,P21,N21),_xll.IDLPara(2,O21,,,$A21,$B21,,$C21,$D21,,,,,,$E21)))","v":"STSPA"},"Distribu","Distribu","Distribu",{"$f":"IF(TRUE,\"STSPA\",_xll.IDLSetValue(_xll.IDLPara(1,\"STSPA\",Database,,,,,,,,,,,,,,,,,ValidFrom,Language4,,,,,T21,R21),_xll.IDLPara(2,S21,,,$A21,$B21,,$C21,$D21,,,,,,$E21)))","v":"STSPA"}]
[{"$f":"SPO!A$4","v":"$CBUC"},"03",{"$nulls":3},"Forschung und Entwicklung","Forschung & Ew.","F&E",{"$f":"IF(TRUE,\"STSPA\",_xll.IDLSetValue(_xll.IDLPara(1,\"STSPA\",Database,,,,,,,,,,,,,,,,,ValidFrom,Language1,,,,,H22,F22),_xll.IDLPara(2,G22,,,$A22,$B22,,$C22,$D22,,,,,,$E22)))","v":"STSPA"},"Research and Development","Research and Development","R&D",{"$f":"IF(TRUE,\"STSPA\",_xll.IDLSetValue(_xll.IDLPara(1,\"STSPA\",Database,,,,,,,,,,,,,,,,,ValidFrom,Language2,,,,,L22,J22),_xll.IDLPara(2,K22,,,$A22,$B22,,$C22,$D22,,,,,,$E22)))","v":"STSPA"},"Recherche et développement","Recherche et développement","R&D",{"$f":"IF(TRUE,\"STSPA\",_xll.IDLSetValue(_xll.IDLPara(1,\"STSPA\",Database,,,,,,,,,,,,,,,,,ValidFrom,Language3,,,,,P22,N22),_xll.IDLPara(2,O22,,,$A22,$B22,,$C22,$D22,,,,,,$E22)))","v":"STSPA"},"Investigación y desarrollo","Invest.y Desar.","I+D",{"$f":"IF(TRUE,\"STSPA\",_xll.IDLSetValue(_xll.IDLPara(1,\"STSPA\",Database,,,,,,,,,,,,,,,,,ValidFrom,Language4,,,,,T22,R22),_xll.IDLPara(2,S22,,,$A22,$B22,,$C22,$D22,,,,,,$E22)))","v":"STSPA"}]
[{"$f":"SPO!A$4","v":"$CBUC"},"04",{"$nulls":3},"Verwaltung","Verwaltung","Verwaltung",{"$f":"IF(TRUE,\"STSPA\",_xll.IDLSetValue(_xll.IDLPara(1,\"STSPA\",Database,,,,,,,,,,,,,,,,,ValidFrom,Language1,,,,,H23,F23),_xll.IDLPara(2,G23,,,$A23,$B23,,$C23,$D23,,,,,,$E23)))","v":"STSPA"},"Administration","Administration","Administr.",{"$f":"IF(TRUE,\"STSPA\",_xll.IDLSetValue(_xll.IDLPara(1,\"STSPA\",Database,,,,,,,,,,,,,,,,,ValidFrom,Language2,,,,,L23,J23),_xll.IDLPara(2,K23,,,$A23,$B23,,$C23,$D23,,,,,,$E23)))","v":"STSPA"},"Gestion","Gestion","Gestion",{"$f":"IF(TRUE,\"STSPA\",_xll.IDLSetValue(_xll.IDLPara(1,\"STSPA\",Database,,,,,,,,,,,,,,,,,ValidFrom,Language3,,,,,P23,N23),_xll.IDLPara(2,O23,,,$A23,$B23,,$C23,$D23,,,,,,$E23)))","v":"STSPA"},"Administración","Administración","Admin",{"$f":"IF(TRUE,\"STSPA\",_xll.IDLSetValue(_xll.IDLPara(1,\"STSPA\",Database,,,,,,,,,,,,,,,,,ValidFrom,Language4,,,,,T23,R23),_xll.IDLPara(2,S23,,,$A23,$B23,,$C23,$D23,,,,,,$E23)))","v":"STSPA"}]
[{"$f":"SPO!A$4","v":"$CBUC"},"05",{"$nulls":3},"Berichtete Umlagen","Berichtete Umlagen","Umlagen",{"$f":"IF(TRUE,\"STSPA\",_xll.IDLSetValue(_xll.IDLPara(1,\"STSPA\",Database,,,,,,,,,,,,,,,,,ValidFrom,Language1,,,,,H24,F24),_xll.IDLPara(2,G24,,,$A24,$B24,,$C24,$D24,,,,,,$E24)))","v":"STSPA"},"Allocation of costs","Allocation of costs","Allocation",{"$f":"IF(TRUE,\"STSPA\",_xll.IDLSetValue(_xll.IDLPara(1,\"STSPA\",Database,,,,,,,,,,,,,,,,,ValidFrom,Language2,,,,,L24,J24),_xll.IDLPara(2,K24,,,$A24,$B24,,$C24,$D24,,,,,,$E24)))","v":"STSPA"},"Participations notifiées","Participations notifiées","Particip.",{"$f":"IF(TRUE,\"STSPA\",_xll.IDLSetValue(_xll.IDLPara(1,\"STSPA\",Database,,,,,,,,,,,,,,,,,ValidFrom,Language3,,,,,P24,N24),_xll.IDLPara(2,O24,,,$A24,$B24,,$C24,$D24,,,,,,$E24)))","v":"STSPA"},"Subrepartos informados","Subrepartos informados","Subrepart",{"$f":"IF(TRUE,\"STSPA\",_xll.IDLSetValue(_xll.IDLPara(1,\"STSPA\",Database,,,,,,,,,,,,,,,,,ValidFrom,Language4,,,,,T24,R24),_xll.IDLPara(2,S24,,,$A24,$B24,,$C24,$D24,,,,,,$E24)))","v":"STSPA"}]
[{"$f":"SPO!A$4","v":"$CBUC"},"06",{"$nulls":3},"Sonstiges","Sonstiges","Sonstiges",{"$f":"IF(TRUE,\"STSPA\",_xll.IDLSetValue(_xll.IDLPara(1,\"STSPA\",Database,,,,,,,,,,,,,,,,,ValidFrom,Language1,,,,,H25,F25),_xll.IDLPara(2,G25,,,$A25,$B25,,$C25,$D25,,,,,,$E25)))","v":"STSPA"},"Other","Other","Other",{"$f":"IF(TRUE,\"STSPA\",_xll.IDLSetValue(_xll.IDLPara(1,\"STSPA\",Database,,,,,,,,,,,,,,,,,ValidFrom,Language2,,,,,L25,J25),_xll.IDLPara(2,K25,,,$A25,$B25,,$C25,$D25,,,,,,$E25)))","v":"STSPA"},"Autres","Autres","Autres",{"$f":"IF(TRUE,\"STSPA\",_xll.IDLSetValue(_xll.IDLPara(1,\"STSPA\",Database,,,,,,,,,,,,,,,,,ValidFrom,Language3,,,,,P25,N25),_xll.IDLPara(2,O25,,,$A25,$B25,,$C25,$D25,,,,,,$E25)))","v":"STSPA"},"Otros","Otros","Otros",{"$f":"IF(TRUE,\"STSPA\",_xll.IDLSetValue(_xll.IDLPara(1,\"STSPA\",Database,,,,,,,,,,,,,,,,,ValidFrom,Language4,,,,,T25,R25),_xll.IDLPara(2,S25,,,$A25,$B25,,$C25,$D25,,,,,,$E25)))","v":"STSPA"}]
[{"$f":"SPO!A$4","v":"$CBUC"},"07",{"$nulls":3},"Individueller Controllingbereich 1","Individ. Bereich 1","IndCtrBer1",{"$f":"IF(TRUE,\"STSPA\",_xll.IDLSetValue(_xll.IDLPara(1,\"STSPA\",Database,,,,,,,,,,,,,,,,,ValidFrom,Language1,,,,,H26,F26),_xll.IDLPara(2,G26,,,$A26,$B26,,$C26,$D26,,,,,,$E26)))","v":"STSPA"},"Individual controlling division 1","Individ. division 1","IndCtrDiv1",{"$f":"IF(TRUE,\"STSPA\",_xll.IDLSetValue(_xll.IDLPara(1,\"STSPA\",Database,,,,,,,,,,,,,,,,,ValidFrom,Language2,,,,,L26,J26),_xll.IDLPara(2,K26,,,$A26,$B26,,$C26,$D26,,,,,,$E26)))","v":"STSPA"},"Zone individuelle de contrôle 1","Zone individ. 1","ZonIndCtr1",{"$f":"IF(TRUE,\"STSPA\",_xll.IDLSetValue(_xll.IDLPara(1,\"STSPA\",Database,,,,,,,,,,,,,,,,,ValidFrom,Language3,,,,,P26,N26),_xll.IDLPara(2,O26,,,$A26,$B26,,$C26,$D26,,,,,,$E26)))","v":"STSPA"},"Zona individual de control 1","Zona Individ. 1","ZonIndCtr1",{"$f":"IF(TRUE,\"STSPA\",_xll.IDLSetValue(_xll.IDLPara(1,\"STSPA\",Database,,,,,,,,,,,,,,,,,ValidFrom,Language4,,,,,T26,R26),_xll.IDLPara(2,S26,,,$A26,$B26,,$C26,$D26,,,,,,$E26)))","v":"STSPA"}]
[{"$f":"SPO!A$4","v":"$CBUC"},"08",{"$nulls":3},"Individueller Controllingbereich 2","Individ. Bereich 2","IndCtrBer2",{"$f":"IF(TRUE,\"STSPA\",_xll.IDLSetValue(_xll.IDLPara(1,\"STSPA\",Database,,,,,,,,,,,,,,,,,ValidFrom,Language1,,,,,H27,F27),_xll.IDLPara(2,G27,,,$A27,$B27,,$C27,$D27,,,,,,$E27)))","v":"STSPA"},"Individual controlling division 2","Individ. division 2","IndCtrDiv2",{"$f":"IF(TRUE,\"STSPA\",_xll.IDLSetValue(_xll.IDLPara(1,\"STSPA\",Database,,,,,,,,,,,,,,,,,ValidFrom,Language2,,,,,L27,J27),_xll.IDLPara(2,K27,,,$A27,$B27,,$C27,$D27,,,,,,$E27)))","v":"STSPA"},"Zone individuelle de contrôle 2","Zone individ. 2","ZonIndCtr2",{"$f":"IF(TRUE,\"STSPA\",_xll.IDLSetValue(_xll.IDLPara(1,\"STSPA\",Database,,,,,,,,,,,,,,,,,ValidFrom,Language3,,,,,P27,N27),_xll.IDLPara(2,O27,,,$A27,$B27,,$C27,$D27,,,,,,$E27)))","v":"STSPA"},"Zona individual de control 2","Zona Individ. 2","ZonIndCtr2",{"$f":"IF(TRUE,\"STSPA\",_xll.IDLSetValue(_xll.IDLPara(1,\"STSPA\",Database,,,,,,,,,,,,,,,,,ValidFrom,Language4,,,,,T27,R27),_xll.IDLPara(2,S27,,,$A27,$B27,,$C27,$D27,,,,,,$E27)))","v":"STSPA"}]
[{"$f":"SPO!A$4","v":"$CBUC"},"09",{"$nulls":3},"Individueller Controllingbereich 3","Individ. Bereich 3","IndCtrBer3",{"$f":"IF(TRUE,\"STSPA\",_xll.IDLSetValue(_xll.IDLPara(1,\"STSPA\",Database,,,,,,,,,,,,,,,,,ValidFrom,Language1,,,,,H28,F28),_xll.IDLPara(2,G28,,,$A28,$B28,,$C28,$D28,,,,,,$E28)))","v":"STSPA"},"Individual controlling division 3","Individ. division 3","IndCtrDiv3",{"$f":"IF(TRUE,\"STSPA\",_xll.IDLSetValue(_xll.IDLPara(1,\"STSPA\",Database,,,,,,,,,,,,,,,,,ValidFrom,Language2,,,,,L28,J28),_xll.IDLPara(2,K28,,,$A28,$B28,,$C28,$D28,,,,,,$E28)))","v":"STSPA"},"Zone individuelle de contrôle 3","Zone individ. 3","ZonIndCtr3",{"$f":"IF(TRUE,\"STSPA\",_xll.IDLSetValue(_xll.IDLPara(1,\"STSPA\",Database,,,,,,,,,,,,,,,,,ValidFrom,Language3,,,,,P28,N28),_xll.IDLPara(2,O28,,,$A28,$B28,,$C28,$D28,,,,,,$E28)))","v":"STSPA"},"Zona individual de control 3","Zona Individ. 3","ZonIndCtr3",{"$f":"IF(TRUE,\"STSPA\",_xll.IDLSetValue(_xll.IDLPara(1,\"STSPA\",Database,,,,,,,,,,,,,,,,,ValidFrom,Language4,,,,,T28,R28),_xll.IDLPara(2,S28,,,$A28,$B28,,$C28,$D28,,,,,,$E28)))","v":"STSPA"}]
[{"$f":"SPO!A$4","v":"$CBUC"},"10",{"$nulls":3},"Individueller Controllingbereich 4","Individ. Bereich 4","IndCtrBer4",{"$f":"IF(TRUE,\"STSPA\",_xll.IDLSetValue(_xll.IDLPara(1,\"STSPA\",Database,,,,,,,,,,,,,,,,,ValidFrom,Language1,,,,,H29,F29),_xll.IDLPara(2,G29,,,$A29,$B29,,$C29,$D29,,,,,,$E29)))","v":"STSPA"},"Individual controlling division 4","Individ. division 4","IndCtrDiv4",{"$f":"IF(TRUE,\"STSPA\",_xll.IDLSetValue(_xll.IDLPara(1,\"STSPA\",Database,,,,,,,,,,,,,,,,,ValidFrom,Language2,,,,,L29,J29),_xll.IDLPara(2,K29,,,$A29,$B29,,$C29,$D29,,,,,,$E29)))","v":"STSPA"},"Zone individuelle de contrôle 4","Zone individ. 4","ZonIndCtr4",{"$f":"IF(TRUE,\"STSPA\",_xll.IDLSetValue(_xll.IDLPara(1,\"STSPA\",Database,,,,,,,,,,,,,,,,,ValidFrom,Language3,,,,,P29,N29),_xll.IDLPara(2,O29,,,$A29,$B29,,$C29,$D29,,,,,,$E29)))","v":"STSPA"},"Zona individual de control 4","Zona Individ. 4","ZonIndCtr4",{"$f":"IF(TRUE,\"STSPA\",_xll.IDLSetValue(_xll.IDLPara(1,\"STSPA\",Database,,,,,,,,,,,,,,,,,ValidFrom,Language4,,,,,T29,R29),_xll.IDLPara(2,S29,,,$A29,$B29,,$C29,$D29,,,,,,$E29)))","v":"STSPA"}]
[{"$f":"SPO!A$4","v":"$CBUC"},"11",{"$nulls":3},"Individueller Controllingbereich 5","Individ. Bereich 5","IndCtrBer5",{"$f":"IF(TRUE,\"STSPA\",_xll.IDLSetValue(_xll.IDLPara(1,\"STSPA\",Database,,,,,,,,,,,,,,,,,ValidFrom,Language1,,,,,H30,F30),_xll.IDLPara(2,G30,,,$A30,$B30,,$C30,$D30,,,,,,$E30)))","v":"STSPA"},"Individual controlling division 5","Individ. division 5","IndCtrDiv5",{"$f":"IF(TRUE,\"STSPA\",_xll.IDLSetValue(_xll.IDLPara(1,\"STSPA\",Database,,,,,,,,,,,,,,,,,ValidFrom,Language2,,,,,L30,J30),_xll.IDLPara(2,K30,,,$A30,$B30,,$C30,$D30,,,,,,$E30)))","v":"STSPA"},"Zone individuelle de contrôle 5","Zone individ. 5","ZonIndCtr5",{"$f":"IF(TRUE,\"STSPA\",_xll.IDLSetValue(_xll.IDLPara(1,\"STSPA\",Database,,,,,,,,,,,,,,,,,ValidFrom,Language3,,,,,P30,N30),_xll.IDLPara(2,O30,,,$A30,$B30,,$C30,$D30,,,,,,$E30)))","v":"STSPA"},"Zona individual de control 5","Zona Individ. 5","ZonIndCtr5",{"$f":"IF(TRUE,\"STSPA\",_xll.IDLSetValue(_xll.IDLPara(1,\"STSPA\",Database,,,,,,,,,,,,,,,,,ValidFrom,Language4,,,,,T30,R30),_xll.IDLPara(2,S30,,,$A30,$B30,,$C30,$D30,,,,,,$E30)))","v":"STSPA"}]
[{"$f":"SPO!A$4","v":"$CBUC"},"12",{"$nulls":3},"Individueller Controllingbereich 6","Individ. Bereich 6","IndCtrBer6",{"$f":"IF(TRUE,\"STSPA\",_xll.IDLSetValue(_xll.IDLPara(1,\"STSPA\",Database,,,,,,,,,,,,,,,,,ValidFrom,Language1,,,,,H31,F31),_xll.IDLPara(2,G31,,,$A31,$B31,,$C31,$D31,,,,,,$E31)))","v":"STSPA"},"Individual controlling division 6","Individ. division 6","IndCtrDiv6",{"$f":"IF(TRUE,\"STSPA\",_xll.IDLSetValue(_xll.IDLPara(1,\"STSPA\",Database,,,,,,,,,,,,,,,,,ValidFrom,Language2,,,,,L31,J31),_xll.IDLPara(2,K31,,,$A31,$B31,,$C31,$D31,,,,,,$E31)))","v":"STSPA"},"Zone individuelle de contrôle 6","Zone individ. 6","ZonIndCtr6",{"$f":"IF(TRUE,\"STSPA\",_xll.IDLSetValue(_xll.IDLPara(1,\"STSPA\",Database,,,,,,,,,,,,,,,,,ValidFrom,Language3,,,,,P31,N31),_xll.IDLPara(2,O31,,,$A31,$B31,,$C31,$D31,,,,,,$E31)))","v":"STSPA"},"Zona individual de control 6","Zona Individ. 6","ZonIndCtr6",{"$f":"IF(TRUE,\"STSPA\",_xll.IDLSetValue(_xll.IDLPara(1,\"STSPA\",Database,,,,,,,,,,,,,,,,,ValidFrom,Language4,,,,,T31,R31),_xll.IDLPara(2,S31,,,$A31,$B31,,$C31,$D31,,,,,,$E31)))","v":"STSPA"}]
[{"$f":"SPO!A$4","v":"$CBUC"},"13",{"$nulls":3},"Individueller Controllingbereich 7","Individ. Bereich 7","IndCtrBer7",{"$f":"IF(TRUE,\"STSPA\",_xll.IDLSetValue(_xll.IDLPara(1,\"STSPA\",Database,,,,,,,,,,,,,,,,,ValidFrom,Language1,,,,,H32,F32),_xll.IDLPara(2,G32,,,$A32,$B32,,$C32,$D32,,,,,,$E32)))","v":"STSPA"},"Individual controlling division 7","Individ. division 7","IndCtrDiv7",{"$f":"IF(TRUE,\"STSPA\",_xll.IDLSetValue(_xll.IDLPara(1,\"STSPA\",Database,,,,,,,,,,,,,,,,,ValidFrom,Language2,,,,,L32,J32),_xll.IDLPara(2,K32,,,$A32,$B32,,$C32,$D32,,,,,,$E32)))","v":"STSPA"},"Zone individuelle de contrôle 7","Zone individ. 7","ZonIndCtr7",{"$f":"IF(TRUE,\"STSPA\",_xll.IDLSetValue(_xll.IDLPara(1,\"STSPA\",Database,,,,,,,,,,,,,,,,,ValidFrom,Language3,,,,,P32,N32),_xll.IDLPara(2,O32,,,$A32,$B32,,$C32,$D32,,,,,,$E32)))","v":"STSPA"},"Zona individual de control 7","Zona Individ. 7","ZonIndCtr7",{"$f":"IF(TRUE,\"STSPA\",_xll.IDLSetValue(_xll.IDLPara(1,\"STSPA\",Database,,,,,,,,,,,,,,,,,ValidFrom,Language4,,,,,T32,R32),_xll.IDLPara(2,S32,,,$A32,$B32,,$C32,$D32,,,,,,$E32)))","v":"STSPA"}]
[{"$f":"SPO!A$4","v":"$CBUC"},"14",{"$nulls":3},"Individueller Controllingbereich 8","Individ. Bereich 8","IndCtrBer8",{"$f":"IF(TRUE,\"STSPA\",_xll.IDLSetValue(_xll.IDLPara(1,\"STSPA\",Database,,,,,,,,,,,,,,,,,ValidFrom,Language1,,,,,H33,F33),_xll.IDLPara(2,G33,,,$A33,$B33,,$C33,$D33,,,,,,$E33)))","v":"STSPA"},"Individual controlling division 8","Individ. division 8","IndCtrDiv8",{"$f":"IF(TRUE,\"STSPA\",_xll.IDLSetValue(_xll.IDLPara(1,\"STSPA\",Database,,,,,,,,,,,,,,,,,ValidFrom,Language2,,,,,L33,J33),_xll.IDLPara(2,K33,,,$A33,$B33,,$C33,$D33,,,,,,$E33)))","v":"STSPA"},"Zone individuelle de contrôle 8","Zone individ. 8","ZonIndCtr8",{"$f":"IF(TRUE,\"STSPA\",_xll.IDLSetValue(_xll.IDLPara(1,\"STSPA\",Database,,,,,,,,,,,,,,,,,ValidFrom,Language3,,,,,P33,N33),_xll.IDLPara(2,O33,,,$A33,$B33,,$C33,$D33,,,,,,$E33)))","v":"STSPA"},"Zona individual de control 8","Zona Individ. 8","ZonIndCtr8",{"$f":"IF(TRUE,\"STSPA\",_xll.IDLSetValue(_xll.IDLPara(1,\"STSPA\",Database,,,,,,,,,,,,,,,,,ValidFrom,Language4,,,,,T33,R33),_xll.IDLPara(2,S33,,,$A33,$B33,,$C33,$D33,,,,,,$E33)))","v":"STSPA"}]
[{"$f":"SPO!A$4","v":"$CBUC"},"15",{"$nulls":3},"Individueller Controllingbereich 9","Individ. Bereich 9","IndCtrBer9",{"$f":"IF(TRUE,\"STSPA\",_xll.IDLSetValue(_xll.IDLPara(1,\"STSPA\",Database,,,,,,,,,,,,,,,,,ValidFrom,Language1,,,,,H34,F34),_xll.IDLPara(2,G34,,,$A34,$B34,,$C34,$D34,,,,,,$E34)))","v":"STSPA"},"Individual controlling division 9","Individ. division 9","IndCtrDiv9",{"$f":"IF(TRUE,\"STSPA\",_xll.IDLSetValue(_xll.IDLPara(1,\"STSPA\",Database,,,,,,,,,,,,,,,,,ValidFrom,Language2,,,,,L34,J34),_xll.IDLPara(2,K34,,,$A34,$B34,,$C34,$D34,,,,,,$E34)))","v":"STSPA"},"Zone individuelle de contrôle 9","Zone individ. 9","ZonIndCtr9",{"$f":"IF(TRUE,\"STSPA\",_xll.IDLSetValue(_xll.IDLPara(1,\"STSPA\",Database,,,,,,,,,,,,,,,,,ValidFrom,Language3,,,,,P34,N34),_xll.IDLPara(2,O34,,,$A34,$B34,,$C34,$D34,,,,,,$E34)))","v":"STSPA"},"Zona individual de control 9","Zona Individ. 9","ZonIndCtr9",{"$f":"IF(TRUE,\"STSPA\",_xll.IDLSetValue(_xll.IDLPara(1,\"STSPA\",Database,,,,,,,,,,,,,,,,,ValidFrom,Language4,,,,,T34,R34),_xll.IDLPara(2,S34,,,$A34,$B34,,$C34,$D34,,,,,,$E34)))","v":"STSPA"}]
[{"$f":"SPO!A$4","v":"$CBUC"},"16","X",null,null,"Gesamt","Gesamt","Gesamt",{"$f":"IF(TRUE,\"STSPA\",_xll.IDLSetValue(_xll.IDLPara(1,\"STSPA\",Database,,,,,,,,,,,,,,,,,ValidFrom,Language1,,,,,H35,F35),_xll.IDLPara(2,G35,,,$A35,$B35,,$C35,$D35,,,,,,$E35)))","v":"STSPA"},"Total","Total","Total",{"$f":"IF(TRUE,\"STSPA\",_xll.IDLSetValue(_xll.IDLPara(1,\"STSPA\",Database,,,,,,,,,,,,,,,,,ValidFrom,Language2,,,,,L35,J35),_xll.IDLPara(2,K35,,,$A35,$B35,,$C35,$D35,,,,,,$E35)))","v":"STSPA"},"Total","Total","Total",{"$f":"IF(TRUE,\"STSPA\",_xll.IDLSetValue(_xll.IDLPara(1,\"STSPA\",Database,,,,,,,,,,,,,,,,,ValidFrom,Language3,,,,,P35,N35),_xll.IDLPara(2,O35,,,$A35,$B35,,$C35,$D35,,,,,,$E35)))","v":"STSPA"},"Global","Global","Global",{"$f":"IF(TRUE,\"STSPA\",_xll.IDLSetValue(_xll.IDLPara(1,\"STSPA\",Database,,,,,,,,,,,,,,,,,ValidFrom,Language4,,,,,T35,R35),_xll.IDLPara(2,S35,,,$A35,$B35,,$C35,$D35,,,,,,$E35)))","v":"STSPA"}]
[{"$f":"SPO!A$4","v":"$CBUC"},"17",{"$nulls":3},"Gesamt VP","Gesamt VP","Gesamt VP",{"$f":"IF(TRUE,\"STSPA\",_xll.IDLSetValue(_xll.IDLPara(1,\"STSPA\",Database,,,,,,,,,,,,,,,,,ValidFrom,Language1,,,,,H36,F36),_xll.IDLPara(2,G36,,,$A36,$B36,,$C36,$D36,,,,,,$E36)))","v":"STSPA"},"Total LP","Total LP","Total LP",{"$f":"IF(TRUE,\"STSPA\",_xll.IDLSetValue(_xll.IDLPara(1,\"STSPA\",Database,,,,,,,,,,,,,,,,,ValidFrom,Language2,,,,,L36,J36),_xll.IDLPara(2,K36,,,$A36,$B36,,$C36,$D36,,,,,,$E36)))","v":"STSPA"},"Total PP","Total PP","Total PP",{"$f":"IF(TRUE,\"STSPA\",_xll.IDLSetValue(_xll.IDLPara(1,\"STSPA\",Database,,,,,,,,,,,,,,,,,ValidFrom,Language3,,,,,P36,N36),_xll.IDLPara(2,O36,,,$A36,$B36,,$C36,$D36,,,,,,$E36)))","v":"STSPA"},"VP global","VP global","VP global",{"$f":"IF(TRUE,\"STSPA\",_xll.IDLSetValue(_xll.IDLPara(1,\"STSPA\",Database,,,,,,,,,,,,,,,,,ValidFrom,Language4,,,,,T36,R36),_xll.IDLPara(2,S36,,,$A36,$B36,,$C36,$D36,,,,,,$E36)))","v":"STSPA"}]
[{"$f":"SPO!A$5","v":"$CKON"},"01",{"$nulls":3},"Produktion","Produktion","Produktion",{"$f":"IF(TRUE,\"STSPA\",_xll.IDLSetValue(_xll.IDLPara(1,\"STSPA\",Database,,,,,,,,,,,,,,,,,ValidFrom,Language1,,,,,H37,F37),_xll.IDLPara(2,G37,,,$A37,$B37,,$C37,$D37,,,,,,$E37)))","v":"STSPA"},"Production","Production","Production",{"$f":"IF(TRUE,\"STSPA\",_xll.IDLSetValue(_xll.IDLPara(1,\"STSPA\",Database,,,,,,,,,,,,,,,,,ValidFrom,Language2,,,,,L37,J37),_xll.IDLPara(2,K37,,,$A37,$B37,,$C37,$D37,,,,,,$E37)))","v":"STSPA"},"Production","Production","Production",{"$f":"IF(TRUE,\"STSPA\",_xll.IDLSetValue(_xll.IDLPara(1,\"STSPA\",Database,,,,,,,,,,,,,,,,,ValidFrom,Language3,,,,,P37,N37),_xll.IDLPara(2,O37,,,$A37,$B37,,$C37,$D37,,,,,,$E37)))","v":"STSPA"},"Producción","Producción","Producción",{"$f":"IF(TRUE,\"STSPA\",_xll.IDLSetValue(_xll.IDLPara(1,\"STSPA\",Database,,,,,,,,,,,,,,,,,ValidFrom,Language4,,,,,T37,R37),_xll.IDLPara(2,S37,,,$A37,$B37,,$C37,$D37,,,,,,$E37)))","v":"STSPA"}]
[{"$f":"SPO!A$5","v":"$CKON"},"02",{"$nulls":3},"Vertrieb","Vertrieb","Vertrieb",{"$f":"IF(TRUE,\"STSPA\",_xll.IDLSetValue(_xll.IDLPara(1,\"STSPA\",Database,,,,,,,,,,,,,,,,,ValidFrom,Language1,,,,,H38,F38),_xll.IDLPara(2,G38,,,$A38,$B38,,$C38,$D38,,,,,,$E38)))","v":"STSPA"},"Marketing and sales cost","Marketing and sales cost","Marketing",{"$f":"IF(TRUE,\"STSPA\",_xll.IDLSetValue(_xll.IDLPara(1,\"STSPA\",Database,,,,,,,,,,,,,,,,,ValidFrom,Language2,,,,,L38,J38),_xll.IDLPara(2,K38,,,$A38,$B38,,$C38,$D38,,,,,,$E38)))","v":"STSPA"},"Distrib.","Distrib.","Distrib.",{"$f":"IF(TRUE,\"STSPA\",_xll.IDLSetValue(_xll.IDLPara(1,\"STSPA\",Database,,,,,,,,,,,,,,,,,ValidFrom,Language3,,,,,P38,N38),_xll.IDLPara(2,O38,,,$A38,$B38,,$C38,$D38,,,,,,$E38)))","v":"STSPA"},"Distribu","Distribu","Distribu",{"$f":"IF(TRUE,\"STSPA\",_xll.IDLSetValue(_xll.IDLPara(1,\"STSPA\",Database,,,,,,,,,,,,,,,,,ValidFrom,Language4,,,,,T38,R38),_xll.IDLPara(2,S38,,,$A38,$B38,,$C38,$D38,,,,,,$E38)))","v":"STSPA"}]
[{"$f":"SPO!A$5","v":"$CKON"},"03",{"$nulls":3},"Forschung und Entwicklung","Forschung & Ew.","F&E",{"$f":"IF(TRUE,\"STSPA\",_xll.IDLSetValue(_xll.IDLPara(1,\"STSPA\",Database,,,,,,,,,,,,,,,,,ValidFrom,Language1,,,,,H39,F39),_xll.IDLPara(2,G39,,,$A39,$B39,,$C39,$D39,,,,,,$E39)))","v":"STSPA"},"Research and Development","Research and Development","R&D",{"$f":"IF(TRUE,\"STSPA\",_xll.IDLSetValue(_xll.IDLPara(1,\"STSPA\",Database,,,,,,,,,,,,,,,,,ValidFrom,Language2,,,,,L39,J39),_xll.IDLPara(2,K39,,,$A39,$B39,,$C39,$D39,,,,,,$E39)))","v":"STSPA"},"Recherche et développement","Recherche et développement","R&D",{"$f":"IF(TRUE,\"STSPA\",_xll.IDLSetValue(_xll.IDLPara(1,\"STSPA\",Database,,,,,,,,,,,,,,,,,ValidFrom,Language3,,,,,P39,N39),_xll.IDLPara(2,O39,,,$A39,$B39,,$C39,$D39,,,,,,$E39)))","v":"STSPA"},"Investigación y desarrollo","Invest.y Desar.","I+D",{"$f":"IF(TRUE,\"STSPA\",_xll.IDLSetValue(_xll.IDLPara(1,\"STSPA\",Database,,,,,,,,,,,,,,,,,ValidFrom,Language4,,,,,T39,R39),_xll.IDLPara(2,S39,,,$A39,$B39,,$C39,$D39,,,,,,$E39)))","v":"STSPA"}]
[{"$f":"SPO!A$5","v":"$CKON"},"04",{"$nulls":3},"Verwaltung","Verwaltung","Verwaltung",{"$f":"IF(TRUE,\"STSPA\",_xll.IDLSetValue(_xll.IDLPara(1,\"STSPA\",Database,,,,,,,,,,,,,,,,,ValidFrom,Language1,,,,,H40,F40),_xll.IDLPara(2,G40,,,$A40,$B40,,$C40,$D40,,,,,,$E40)))","v":"STSPA"},"Administration","Administration","Administr.",{"$f":"IF(TRUE,\"STSPA\",_xll.IDLSetValue(_xll.IDLPara(1,\"STSPA\",Database,,,,,,,,,,,,,,,,,ValidFrom,Language2,,,,,L40,J40),_xll.IDLPara(2,K40,,,$A40,$B40,,$C40,$D40,,,,,,$E40)))","v":"STSPA"},"Gestion","Gestion","Gestion",{"$f":"IF(TRUE,\"STSPA\",_xll.IDLSetValue(_xll.IDLPara(1,\"STSPA\",Database,,,,,,,,,,,,,,,,,ValidFrom,Language3,,,,,P40,N40),_xll.IDLPara(2,O40,,,$A40,$B40,,$C40,$D40,,,,,,$E40)))","v":"STSPA"},"Administración","Administración","Admin",{"$f":"IF(TRUE,\"STSPA\",_xll.IDLSetValue(_xll.IDLPara(1,\"STSPA\",Database,,,,,,,,,,,,,,,,,ValidFrom,Language4,,,,,T40,R40),_xll.IDLPara(2,S40,,,$A40,$B40,,$C40,$D40,,,,,,$E40)))","v":"STSPA"}]
[{"$f":"SPO!A$5","v":"$CKON"},"05",{"$nulls":3},"Berichtete Umlagen","Berichtete Umlagen","Umlagen",{"$f":"IF(TRUE,\"STSPA\",_xll.IDLSetValue(_xll.IDLPara(1,\"STSPA\",Database,,,,,,,,,,,,,,,,,ValidFrom,Language1,,,,,H41,F41),_xll.IDLPara(2,G41,,,$A41,$B41,,$C41,$D41,,,,,,$E41)))","v":"STSPA"},"Allocation of costs","Allocation of costs","Allocation",{"$f":"IF(TRUE,\"STSPA\",_xll.IDLSetValue(_xll.IDLPara(1,\"STSPA\",Database,,,,,,,,,,,,,,,,,ValidFrom,Language2,,,,,L41,J41),_xll.IDLPara(2,K41,,,$A41,$B41,,$C41,$D41,,,,,,$E41)))","v":"STSPA"},"Participations notifiées","Participations notifiées","Particip.",{"$f":"IF(TRUE,\"STSPA\",_xll.IDLSetValue(_xll.IDLPara(1,\"STSPA\",Database,,,,,,,,,,,,,,,,,ValidFrom,Language3,,,,,P41,N41),_xll.IDLPara(2,O41,,,$A41,$B41,,$C41,$D41,,,,,,$E41)))","v":"STSPA"},"Subrepartos informados","Subrepartos informados","Subrepart",{"$f":"IF(TRUE,\"STSPA\",_xll.IDLSetValue(_xll.IDLPara(1,\"STSPA\",Database,,,,,,,,,,,,,,,,,ValidFrom,Language4,,,,,T41,R41),_xll.IDLPara(2,S41,,,$A41,$B41,,$C41,$D41,,,,,,$E41)))","v":"STSPA"}]
[{"$f":"SPO!A$5","v":"$CKON"},"06",{"$nulls":3},"Sonstiges","Sonstiges","Sonstiges",{"$f":"IF(TRUE,\"STSPA\",_xll.IDLSetValue(_xll.IDLPara(1,\"STSPA\",Database,,,,,,,,,,,,,,,,,ValidFrom,Language1,,,,,H42,F42),_xll.IDLPara(2,G42,,,$A42,$B42,,$C42,$D42,,,,,,$E42)))","v":"STSPA"},"Other","Other","Other",{"$f":"IF(TRUE,\"STSPA\",_xll.IDLSetValue(_xll.IDLPara(1,\"STSPA\",Database,,,,,,,,,,,,,,,,,ValidFrom,Language2,,,,,L42,J42),_xll.IDLPara(2,K42,,,$A42,$B42,,$C42,$D42,,,,,,$E42)))","v":"STSPA"},"Autres","Autres","Autres",{"$f":"IF(TRUE,\"STSPA\",_xll.IDLSetValue(_xll.IDLPara(1,\"STSPA\",Database,,,,,,,,,,,,,,,,,ValidFrom,Language3,,,,,P42,N42),_xll.IDLPara(2,O42,,,$A42,$B42,,$C42,$D42,,,,,,$E42)))","v":"STSPA"},"Otros","Otros","Otros",{"$f":"IF(TRUE,\"STSPA\",_xll.IDLSetValue(_xll.IDLPara(1,\"STSPA\",Database,,,,,,,,,,,,,,,,,ValidFrom,Language4,,,,,T42,R42),_xll.IDLPara(2,S42,,,$A42,$B42,,$C42,$D42,,,,,,$E42)))","v":"STSPA"}]
[{"$f":"SPO!A$5","v":"$CKON"},"07",{"$nulls":3},"Individueller Controllingbereich 1","Individ. Bereich 1","IndCtrBer1",{"$f":"IF(TRUE,\"STSPA\",_xll.IDLSetValue(_xll.IDLPara(1,\"STSPA\",Database,,,,,,,,,,,,,,,,,ValidFrom,Language1,,,,,H43,F43),_xll.IDLPara(2,G43,,,$A43,$B43,,$C43,$D43,,,,,,$E43)))","v":"STSPA"},"Individual controlling division 1","Individ. division 1","IndCtrDiv1",{"$f":"IF(TRUE,\"STSPA\",_xll.IDLSetValue(_xll.IDLPara(1,\"STSPA\",Database,,,,,,,,,,,,,,,,,ValidFrom,Language2,,,,,L43,J43),_xll.IDLPara(2,K43,,,$A43,$B43,,$C43,$D43,,,,,,$E43)))","v":"STSPA"},"Zone individuelle de contrôle 1","Zone individ. 1","ZonIndCtr1",{"$f":"IF(TRUE,\"STSPA\",_xll.IDLSetValue(_xll.IDLPara(1,\"STSPA\",Database,,,,,,,,,,,,,,,,,ValidFrom,Language3,,,,,P43,N43),_xll.IDLPara(2,O43,,,$A43,$B43,,$C43,$D43,,,,,,$E43)))","v":"STSPA"},"Zona individual de control 1","Zona Individ. 1","ZonIndCtr1",{"$f":"IF(TRUE,\"STSPA\",_xll.IDLSetValue(_xll.IDLPara(1,\"STSPA\",Database,,,,,,,,,,,,,,,,,ValidFrom,Language4,,,,,T43,R43),_xll.IDLPara(2,S43,,,$A43,$B43,,$C43,$D43,,,,,,$E43)))","v":"STSPA"}]
[{"$f":"SPO!A$5","v":"$CKON"},"08",{"$nulls":3},"Individueller Controllingbereich 2","Individ. Bereich 2","IndCtrBer2",{"$f":"IF(TRUE,\"STSPA\",_xll.IDLSetValue(_xll.IDLPara(1,\"STSPA\",Database,,,,,,,,,,,,,,,,,ValidFrom,Language1,,,,,H44,F44),_xll.IDLPara(2,G44,,,$A44,$B44,,$C44,$D44,,,,,,$E44)))","v":"STSPA"},"Individual controlling division 2","Individ. division 2","IndCtrDiv2",{"$f":"IF(TRUE,\"STSPA\",_xll.IDLSetValue(_xll.IDLPara(1,\"STSPA\",Database,,,,,,,,,,,,,,,,,ValidFrom,Language2,,,,,L44,J44),_xll.IDLPara(2,K44,,,$A44,$B44,,$C44,$D44,,,,,,$E44)))","v":"STSPA"},"Zone individuelle de contrôle 2","Zone individ. 2","ZonIndCtr2",{"$f":"IF(TRUE,\"STSPA\",_xll.IDLSetValue(_xll.IDLPara(1,\"STSPA\",Database,,,,,,,,,,,,,,,,,ValidFrom,Language3,,,,,P44,N44),_xll.IDLPara(2,O44,,,$A44,$B44,,$C44,$D44,,,,,,$E44)))","v":"STSPA"},"Zona individual de control 2","Zona Individ. 2","ZonIndCtr2",{"$f":"IF(TRUE,\"STSPA\",_xll.IDLSetValue(_xll.IDLPara(1,\"STSPA\",Database,,,,,,,,,,,,,,,,,ValidFrom,Language4,,,,,T44,R44),_xll.IDLPara(2,S44,,,$A44,$B44,,$C44,$D44,,,,,,$E44)))","v":"STSPA"}]
[{"$f":"SPO!A$5","v":"$CKON"},"09",{"$nulls":3},"Individueller Controllingbereich 3","Individ. Bereich 3","IndCtrBer3",{"$f":"IF(TRUE,\"STSPA\",_xll.IDLSetValue(_xll.IDLPara(1,\"STSPA\",Database,,,,,,,,,,,,,,,,,ValidFrom,Language1,,,,,H45,F45),_xll.IDLPara(2,G45,,,$A45,$B45,,$C45,$D45,,,,,,$E45)))","v":"STSPA"},"Individual controlling division 3","Individ. division 3","IndCtrDiv3",{"$f":"IF(TRUE,\"STSPA\",_xll.IDLSetValue(_xll.IDLPara(1,\"STSPA\",Database,,,,,,,,,,,,,,,,,ValidFrom,Language2,,,,,L45,J45),_xll.IDLPara(2,K45,,,$A45,$B45,,$C45,$D45,,,,,,$E45)))","v":"STSPA"},"Zone individuelle de contrôle 3","Zone individ. 3","ZonIndCtr3",{"$f":"IF(TRUE,\"STSPA\",_xll.IDLSetValue(_xll.IDLPara(1,\"STSPA\",Database,,,,,,,,,,,,,,,,,ValidFrom,Language3,,,,,P45,N45),_xll.IDLPara(2,O45,,,$A45,$B45,,$C45,$D45,,,,,,$E45)))","v":"STSPA"},"Zona individual de control 3","Zona Individ. 3","ZonIndCtr3",{"$f":"IF(TRUE,\"STSPA\",_xll.IDLSetValue(_xll.IDLPara(1,\"STSPA\",Database,,,,,,,,,,,,,,,,,ValidFrom,Language4,,,,,T45,R45),_xll.IDLPara(2,S45,,,$A45,$B45,,$C45,$D45,,,,,,$E45)))","v":"STSPA"}]
[{"$f":"SPO!A$5","v":"$CKON"},"10",{"$nulls":3},"Individueller Controllingbereich 4","Individ. Bereich 4","IndCtrBer4",{"$f":"IF(TRUE,\"STSPA\",_xll.IDLSetValue(_xll.IDLPara(1,\"STSPA\",Database,,,,,,,,,,,,,,,,,ValidFrom,Language1,,,,,H46,F46),_xll.IDLPara(2,G46,,,$A46,$B46,,$C46,$D46,,,,,,$E46)))","v":"STSPA"},"Individual controlling division 4","Individ. division 4","IndCtrDiv4",{"$f":"IF(TRUE,\"STSPA\",_xll.IDLSetValue(_xll.IDLPara(1,\"STSPA\",Database,,,,,,,,,,,,,,,,,ValidFrom,Language2,,,,,L46,J46),_xll.IDLPara(2,K46,,,$A46,$B46,,$C46,$D46,,,,,,$E46)))","v":"STSPA"},"Zone individuelle de contrôle 4","Zone individ. 4","ZonIndCtr4",{"$f":"IF(TRUE,\"STSPA\",_xll.IDLSetValue(_xll.IDLPara(1,\"STSPA\",Database,,,,,,,,,,,,,,,,,ValidFrom,Language3,,,,,P46,N46),_xll.IDLPara(2,O46,,,$A46,$B46,,$C46,$D46,,,,,,$E46)))","v":"STSPA"},"Zona individual de control 4","Zona Individ. 4","ZonIndCtr4",{"$f":"IF(TRUE,\"STSPA\",_xll.IDLSetValue(_xll.IDLPara(1,\"STSPA\",Database,,,,,,,,,,,,,,,,,ValidFrom,Language4,,,,,T46,R46),_xll.IDLPara(2,S46,,,$A46,$B46,,$C46,$D46,,,,,,$E46)))","v":"STSPA"}]
[{"$f":"SPO!A$5","v":"$CKON"},"11",{"$nulls":3},"Individueller Controllingbereich 5","Individ. Bereich 5","IndCtrBer5",{"$f":"IF(TRUE,\"STSPA\",_xll.IDLSetValue(_xll.IDLPara(1,\"STSPA\",Database,,,,,,,,,,,,,,,,,ValidFrom,Language1,,,,,H47,F47),_xll.IDLPara(2,G47,,,$A47,$B47,,$C47,$D47,,,,,,$E47)))","v":"STSPA"},"Individual controlling division 5","Individ. division 5","IndCtrDiv5",{"$f":"IF(TRUE,\"STSPA\",_xll.IDLSetValue(_xll.IDLPara(1,\"STSPA\",Database,,,,,,,,,,,,,,,,,ValidFrom,Language2,,,,,L47,J47),_xll.IDLPara(2,K47,,,$A47,$B47,,$C47,$D47,,,,,,$E47)))","v":"STSPA"},"Zone individuelle de contrôle 5","Zone individ. 5","ZonIndCtr5",{"$f":"IF(TRUE,\"STSPA\",_xll.IDLSetValue(_xll.IDLPara(1,\"STSPA\",Database,,,,,,,,,,,,,,,,,ValidFrom,Language3,,,,,P47,N47),_xll.IDLPara(2,O47,,,$A47,$B47,,$C47,$D47,,,,,,$E47)))","v":"STSPA"},"Zona individual de control 5","Zona Individ. 5","ZonIndCtr5",{"$f":"IF(TRUE,\"STSPA\",_xll.IDLSetValue(_xll.IDLPara(1,\"STSPA\",Database,,,,,,,,,,,,,,,,,ValidFrom,Language4,,,,,T47,R47),_xll.IDLPara(2,S47,,,$A47,$B47,,$C47,$D47,,,,,,$E47)))","v":"STSPA"}]
[{"$f":"SPO!A$5","v":"$CKON"},"12",{"$nulls":3},"Individueller Controllingbereich 6","Individ. Bereich 6","IndCtrBer6",{"$f":"IF(TRUE,\"STSPA\",_xll.IDLSetValue(_xll.IDLPara(1,\"STSPA\",Database,,,,,,,,,,,,,,,,,ValidFrom,Language1,,,,,H48,F48),_xll.IDLPara(2,G48,,,$A48,$B48,,$C48,$D48,,,,,,$E48)))","v":"STSPA"},"Individual controlling division 6","Individ. division 6","IndCtrDiv6",{"$f":"IF(TRUE,\"STSPA\",_xll.IDLSetValue(_xll.IDLPara(1,\"STSPA\",Database,,,,,,,,,,,,,,,,,ValidFrom,Language2,,,,,L48,J48),_xll.IDLPara(2,K48,,,$A48,$B48,,$C48,$D48,,,,,,$E48)))","v":"STSPA"},"Zone individuelle de contrôle 6","Zone individ. 6","ZonIndCtr6",{"$f":"IF(TRUE,\"STSPA\",_xll.IDLSetValue(_xll.IDLPara(1,\"STSPA\",Database,,,,,,,,,,,,,,,,,ValidFrom,Language3,,,,,P48,N48),_xll.IDLPara(2,O48,,,$A48,$B48,,$C48,$D48,,,,,,$E48)))","v":"STSPA"},"Zona individual de control 6","Zona Individ. 6","ZonIndCtr6",{"$f":"IF(TRUE,\"STSPA\",_xll.IDLSetValue(_xll.IDLPara(1,\"STSPA\",Database,,,,,,,,,,,,,,,,,ValidFrom,Language4,,,,,T48,R48),_xll.IDLPara(2,S48,,,$A48,$B48,,$C48,$D48,,,,,,$E48)))","v":"STSPA"}]
[{"$f":"SPO!A$5","v":"$CKON"},"13",{"$nulls":3},"Individueller Controllingbereich 7","Individ. Bereich 7","IndCtrBer7",{"$f":"IF(TRUE,\"STSPA\",_xll.IDLSetValue(_xll.IDLPara(1,\"STSPA\",Database,,,,,,,,,,,,,,,,,ValidFrom,Language1,,,,,H49,F49),_xll.IDLPara(2,G49,,,$A49,$B49,,$C49,$D49,,,,,,$E49)))","v":"STSPA"},"Individual controlling division 7","Individ. division 7","IndCtrDiv7",{"$f":"IF(TRUE,\"STSPA\",_xll.IDLSetValue(_xll.IDLPara(1,\"STSPA\",Database,,,,,,,,,,,,,,,,,ValidFrom,Language2,,,,,L49,J49),_xll.IDLPara(2,K49,,,$A49,$B49,,$C49,$D49,,,,,,$E49)))","v":"STSPA"},"Zone individuelle de contrôle 7","Zone individ. 7","ZonIndCtr7",{"$f":"IF(TRUE,\"STSPA\",_xll.IDLSetValue(_xll.IDLPara(1,\"STSPA\",Database,,,,,,,,,,,,,,,,,ValidFrom,Language3,,,,,P49,N49),_xll.IDLPara(2,O49,,,$A49,$B49,,$C49,$D49,,,,,,$E49)))","v":"STSPA"},"Zona individual de control 7","Zona Individ. 7","ZonIndCtr7",{"$f":"IF(TRUE,\"STSPA\",_xll.IDLSetValue(_xll.IDLPara(1,\"STSPA\",Database,,,,,,,,,,,,,,,,,ValidFrom,Language4,,,,,T49,R49),_xll.IDLPara(2,S49,,,$A49,$B49,,$C49,$D49,,,,,,$E49)))","v":"STSPA"}]
[{"$f":"SPO!A$5","v":"$CKON"},"14",{"$nulls":3},"Individueller Controllingbereich 8","Individ. Bereich 8","IndCtrBer8",{"$f":"IF(TRUE,\"STSPA\",_xll.IDLSetValue(_xll.IDLPara(1,\"STSPA\",Database,,,,,,,,,,,,,,,,,ValidFrom,Language1,,,,,H50,F50),_xll.IDLPara(2,G50,,,$A50,$B50,,$C50,$D50,,,,,,$E50)))","v":"STSPA"},"Individual controlling division 8","Individ. division 8","IndCtrDiv8",{"$f":"IF(TRUE,\"STSPA\",_xll.IDLSetValue(_xll.IDLPara(1,\"STSPA\",Database,,,,,,,,,,,,,,,,,ValidFrom,Language2,,,,,L50,J50),_xll.IDLPara(2,K50,,,$A50,$B50,,$C50,$D50,,,,,,$E50)))","v":"STSPA"},"Zone individuelle de contrôle 8","Zone individ. 8","ZonIndCtr8",{"$f":"IF(TRUE,\"STSPA\",_xll.IDLSetValue(_xll.IDLPara(1,\"STSPA\",Database,,,,,,,,,,,,,,,,,ValidFrom,Language3,,,,,P50,N50),_xll.IDLPara(2,O50,,,$A50,$B50,,$C50,$D50,,,,,,$E50)))","v":"STSPA"},"Zona individual de control 8","Zona Individ. 8","ZonIndCtr8",{"$f":"IF(TRUE,\"STSPA\",_xll.IDLSetValue(_xll.IDLPara(1,\"STSPA\",Database,,,,,,,,,,,,,,,,,ValidFrom,Language4,,,,,T50,R50),_xll.IDLPara(2,S50,,,$A50,$B50,,$C50,$D50,,,,,,$E50)))","v":"STSPA"}]
[{"$f":"SPO!A$5","v":"$CKON"},"15",{"$nulls":3},"Individueller Controllingbereich 9","Individ. Bereich 9","IndCtrBer9",{"$f":"IF(TRUE,\"STSPA\",_xll.IDLSetValue(_xll.IDLPara(1,\"STSPA\",Database,,,,,,,,,,,,,,,,,ValidFrom,Language1,,,,,H51,F51),_xll.IDLPara(2,G51,,,$A51,$B51,,$C51,$D51,,,,,,$E51)))","v":"STSPA"},"Individual controlling division 9","Individ. division 9","IndCtrDiv9",{"$f":"IF(TRUE,\"STSPA\",_xll.IDLSetValue(_xll.IDLPara(1,\"STSPA\",Database,,,,,,,,,,,,,,,,,ValidFrom,Language2,,,,,L51,J51),_xll.IDLPara(2,K51,,,$A51,$B51,,$C51,$D51,,,,,,$E51)))","v":"STSPA"},"Zone individuelle de contrôle 9","Zone individ. 9","ZonIndCtr9",{"$f":"IF(TRUE,\"STSPA\",_xll.IDLSetValue(_xll.IDLPara(1,\"STSPA\",Database,,,,,,,,,,,,,,,,,ValidFrom,Language3,,,,,P51,N51),_xll.IDLPara(2,O51,,,$A51,$B51,,$C51,$D51,,,,,,$E51)))","v":"STSPA"},"Zona individual de control 9","Zona Individ. 9","ZonIndCtr9",{"$f":"IF(TRUE,\"STSPA\",_xll.IDLSetValue(_xll.IDLPara(1,\"STSPA\",Database,,,,,,,,,,,,,,,,,ValidFrom,Language4,,,,,T51,R51),_xll.IDLPara(2,S51,,,$A51,$B51,,$C51,$D51,,,,,,$E51)))","v":"STSPA"}]
[{"$f":"SPO!A$5","v":"$CKON"},"16","X",null,null,"Gesamt","Gesamt","Gesamt",{"$f":"IF(TRUE,\"STSPA\",_xll.IDLSetValue(_xll.IDLPara(1,\"STSPA\",Database,,,,,,,,,,,,,,,,,ValidFrom,Language1,,,,,H52,F52),_xll.IDLPara(2,G52,,,$A52,$B52,,$C52,$D52,,,,,,$E52)))","v":"STSPA"},"Total","Total","Total",{"$f":"IF(TRUE,\"STSPA\",_xll.IDLSetValue(_xll.IDLPara(1,\"STSPA\",Database,,,,,,,,,,,,,,,,,ValidFrom,Language2,,,,,L52,J52),_xll.IDLPara(2,K52,,,$A52,$B52,,$C52,$D52,,,,,,$E52)))","v":"STSPA"},"Total","Total","Total",{"$f":"IF(TRUE,\"STSPA\",_xll.IDLSetValue(_xll.IDLPara(1,\"STSPA\",Database,,,,,,,,,,,,,,,,,ValidFrom,Language3,,,,,P52,N52),_xll.IDLPara(2,O52,,,$A52,$B52,,$C52,$D52,,,,,,$E52)))","v":"STSPA"},"Global","Global","Global",{"$f":"IF(TRUE,\"STSPA\",_xll.IDLSetValue(_xll.IDLPara(1,\"STSPA\",Database,,,,,,,,,,,,,,,,,ValidFrom,Language4,,,,,T52,R52),_xll.IDLPara(2,S52,,,$A52,$B52,,$C52,$D52,,,,,,$E52)))","v":"STSPA"}]
[{"$f":"SPO!A$5","v":"$CKON"},"17",{"$nulls":3},"Gesamt VP","Gesamt VP","Gesamt VP",{"$f":"IF(TRUE,\"STSPA\",_xll.IDLSetValue(_xll.IDLPara(1,\"STSPA\",Database,,,,,,,,,,,,,,,,,ValidFrom,Language1,,,,,H53,F53),_xll.IDLPara(2,G53,,,$A53,$B53,,$C53,$D53,,,,,,$E53)))","v":"STSPA"},"Total LP","Total LP","Total LP",{"$f":"IF(TRUE,\"STSPA\",_xll.IDLSetValue(_xll.IDLPara(1,\"STSPA\",Database,,,,,,,,,,,,,,,,,ValidFrom,Language2,,,,,L53,J53),_xll.IDLPara(2,K53,,,$A53,$B53,,$C53,$D53,,,,,,$E53)))","v":"STSPA"},"Total PP","Total PP","Total PP",{"$f":"IF(TRUE,\"STSPA\",_xll.IDLSetValue(_xll.IDLPara(1,\"STSPA\",Database,,,,,,,,,,,,,,,,,ValidFrom,Language3,,,,,P53,N53),_xll.IDLPara(2,O53,,,$A53,$B53,,$C53,$D53,,,,,,$E53)))","v":"STSPA"},"VP global","VP global","VP global",{"$f":"IF(TRUE,\"STSPA\",_xll.IDLSetValue(_xll.IDLPara(1,\"STSPA\",Database,,,,,,,,,,,,,,,,,ValidFrom,Language4,,,,,T53,R53),_xll.IDLPara(2,S53,,,$A53,$B53,,$C53,$D53,,,,,,$E53)))","v":"STSPA"}]
[{"$f":"SPO!A$6","v":"$CKTK"},"01",{"$nulls":3},"Produktion","Produktion","Produktion",{"$f":"IF(TRUE,\"STSPA\",_xll.IDLSetValue(_xll.IDLPara(1,\"STSPA\",Database,,,,,,,,,,,,,,,,,ValidFrom,Language1,,,,,H54,F54),_xll.IDLPara(2,G54,,,$A54,$B54,,$C54,$D54,,,,,,$E54)))","v":"STSPA"},"Production","Production","Production",{"$f":"IF(TRUE,\"STSPA\",_xll.IDLSetValue(_xll.IDLPara(1,\"STSPA\",Database,,,,,,,,,,,,,,,,,ValidFrom,Language2,,,,,L54,J54),_xll.IDLPara(2,K54,,,$A54,$B54,,$C54,$D54,,,,,,$E54)))","v":"STSPA"},"Production","Production","Production",{"$f":"IF(TRUE,\"STSPA\",_xll.IDLSetValue(_xll.IDLPara(1,\"STSPA\",Database,,,,,,,,,,,,,,,,,ValidFrom,Language3,,,,,P54,N54),_xll.IDLPara(2,O54,,,$A54,$B54,,$C54,$D54,,,,,,$E54)))","v":"STSPA"},"Producción","Producción","Producción",{"$f":"IF(TRUE,\"STSPA\",_xll.IDLSetValue(_xll.IDLPara(1,\"STSPA\",Database,,,,,,,,,,,,,,,,,ValidFrom,Language4,,,,,T54,R54),_xll.IDLPara(2,S54,,,$A54,$B54,,$C54,$D54,,,,,,$E54)))","v":"STSPA"}]
[{"$f":"SPO!A$6","v":"$CKTK"},"02",{"$nulls":3},"Vertrieb","Vertrieb","Vertrieb",{"$f":"IF(TRUE,\"STSPA\",_xll.IDLSetValue(_xll.IDLPara(1,\"STSPA\",Database,,,,,,,,,,,,,,,,,ValidFrom,Language1,,,,,H55,F55),_xll.IDLPara(2,G55,,,$A55,$B55,,$C55,$D55,,,,,,$E55)))","v":"STSPA"},"Marketing and sales cost","Marketing and sales cost","Marketing",{"$f":"IF(TRUE,\"STSPA\",_xll.IDLSetValue(_xll.IDLPara(1,\"STSPA\",Database,,,,,,,,,,,,,,,,,ValidFrom,Language2,,,,,L55,J55),_xll.IDLPara(2,K55,,,$A55,$B55,,$C55,$D55,,,,,,$E55)))","v":"STSPA"},"Distrib.","Distrib.","Distrib.",{"$f":"IF(TRUE,\"STSPA\",_xll.IDLSetValue(_xll.IDLPara(1,\"STSPA\",Database,,,,,,,,,,,,,,,,,ValidFrom,Language3,,,,,P55,N55),_xll.IDLPara(2,O55,,,$A55,$B55,,$C55,$D55,,,,,,$E55)))","v":"STSPA"},"Distribu","Distribu","Distribu",{"$f":"IF(TRUE,\"STSPA\",_xll.IDLSetValue(_xll.IDLPara(1,\"STSPA\",Database,,,,,,,,,,,,,,,,,ValidFrom,Language4,,,,,T55,R55),_xll.IDLPara(2,S55,,,$A55,$B55,,$C55,$D55,,,,,,$E55)))","v":"STSPA"}]
[{"$f":"SPO!A$6","v":"$CKTK"},"03",{"$nulls":3},"Forschung und Entwicklung","Forschung & Ew.","F&E",{"$f":"IF(TRUE,\"STSPA\",_xll.IDLSetValue(_xll.IDLPara(1,\"STSPA\",Database,,,,,,,,,,,,,,,,,ValidFrom,Language1,,,,,H56,F56),_xll.IDLPara(2,G56,,,$A56,$B56,,$C56,$D56,,,,,,$E56)))","v":"STSPA"},"Research and Development","Research and Development","R&D",{"$f":"IF(TRUE,\"STSPA\",_xll.IDLSetValue(_xll.IDLPara(1,\"STSPA\",Database,,,,,,,,,,,,,,,,,ValidFrom,Language2,,,,,L56,J56),_xll.IDLPara(2,K56,,,$A56,$B56,,$C56,$D56,,,,,,$E56)))","v":"STSPA"},"Recherche et développement","Recherche et développement","R&D",{"$f":"IF(TRUE,\"STSPA\",_xll.IDLSetValue(_xll.IDLPara(1,\"STSPA\",Database,,,,,,,,,,,,,,,,,ValidFrom,Language3,,,,,P56,N56),_xll.IDLPara(2,O56,,,$A56,$B56,,$C56,$D56,,,,,,$E56)))","v":"STSPA"},"Investigación y desarrollo","Invest.y Desar.","I+D",{"$f":"IF(TRUE,\"STSPA\",_xll.IDLSetValue(_xll.IDLPara(1,\"STSPA\",Database,,,,,,,,,,,,,,,,,ValidFrom,Language4,,,,,T56,R56),_xll.IDLPara(2,S56,,,$A56,$B56,,$C56,$D56,,,,,,$E56)))","v":"STSPA"}]
[{"$f":"SPO!A$6","v":"$CKTK"},"04",{"$nulls":3},"Verwaltung","Verwaltung","Verwaltung",{"$f":"IF(TRUE,\"STSPA\",_xll.IDLSetValue(_xll.IDLPara(1,\"STSPA\",Database,,,,,,,,,,,,,,,,,ValidFrom,Language1,,,,,H57,F57),_xll.IDLPara(2,G57,,,$A57,$B57,,$C57,$D57,,,,,,$E57)))","v":"STSPA"},"Administration","Administration","Administr.",{"$f":"IF(TRUE,\"STSPA\",_xll.IDLSetValue(_xll.IDLPara(1,\"STSPA\",Database,,,,,,,,,,,,,,,,,ValidFrom,Language2,,,,,L57,J57),_xll.IDLPara(2,K57,,,$A57,$B57,,$C57,$D57,,,,,,$E57)))","v":"STSPA"},"Gestion","Gestion","Gestion",{"$f":"IF(TRUE,\"STSPA\",_xll.IDLSetValue(_xll.IDLPara(1,\"STSPA\",Database,,,,,,,,,,,,,,,,,ValidFrom,Language3,,,,,P57,N57),_xll.IDLPara(2,O57,,,$A57,$B57,,$C57,$D57,,,,,,$E57)))","v":"STSPA"},"Administración","Administración","Admin",{"$f":"IF(TRUE,\"STSPA\",_xll.IDLSetValue(_xll.IDLPara(1,\"STSPA\",Database,,,,,,,,,,,,,,,,,ValidFrom,Language4,,,,,T57,R57),_xll.IDLPara(2,S57,,,$A57,$B57,,$C57,$D57,,,,,,$E57)))","v":"STSPA"}]
[{"$f":"SPO!A$6","v":"$CKTK"},"05",{"$nulls":3},"Berichtete Umlagen","Berichtete Umlagen","Umlagen",{"$f":"IF(TRUE,\"STSPA\",_xll.IDLSetValue(_xll.IDLPara(1,\"STSPA\",Database,,,,,,,,,,,,,,,,,ValidFrom,Language1,,,,,H58,F58),_xll.IDLPara(2,G58,,,$A58,$B58,,$C58,$D58,,,,,,$E58)))","v":"STSPA"},"Allocation of costs","Allocation of costs","Allocation",{"$f":"IF(TRUE,\"STSPA\",_xll.IDLSetValue(_xll.IDLPara(1,\"STSPA\",Database,,,,,,,,,,,,,,,,,ValidFrom,Language2,,,,,L58,J58),_xll.IDLPara(2,K58,,,$A58,$B58,,$C58,$D58,,,,,,$E58)))","v":"STSPA"},"Participations notifiées","Participations notifiées","Particip.",{"$f":"IF(TRUE,\"STSPA\",_xll.IDLSetValue(_xll.IDLPara(1,\"STSPA\",Database,,,,,,,,,,,,,,,,,ValidFrom,Language3,,,,,P58,N58),_xll.IDLPara(2,O58,,,$A58,$B58,,$C58,$D58,,,,,,$E58)))","v":"STSPA"},"Subrepartos informados","Subrepartos informados","Subrepart",{"$f":"IF(TRUE,\"STSPA\",_xll.IDLSetValue(_xll.IDLPara(1,\"STSPA\",Database,,,,,,,,,,,,,,,,,ValidFrom,Language4,,,,,T58,R58),_xll.IDLPara(2,S58,,,$A58,$B58,,$C58,$D58,,,,,,$E58)))","v":"STSPA"}]
[{"$f":"SPO!A$6","v":"$CKTK"},"06",{"$nulls":3},"Sonstiges","Sonstiges","Sonstiges",{"$f":"IF(TRUE,\"STSPA\",_xll.IDLSetValue(_xll.IDLPara(1,\"STSPA\",Database,,,,,,,,,,,,,,,,,ValidFrom,Language1,,,,,H59,F59),_xll.IDLPara(2,G59,,,$A59,$B59,,$C59,$D59,,,,,,$E59)))","v":"STSPA"},"Other","Other","Other",{"$f":"IF(TRUE,\"STSPA\",_xll.IDLSetValue(_xll.IDLPara(1,\"STSPA\",Database,,,,,,,,,,,,,,,,,ValidFrom,Language2,,,,,L59,J59),_xll.IDLPara(2,K59,,,$A59,$B59,,$C59,$D59,,,,,,$E59)))","v":"STSPA"},"Autres","Autres","Autres",{"$f":"IF(TRUE,\"STSPA\",_xll.IDLSetValue(_xll.IDLPara(1,\"STSPA\",Database,,,,,,,,,,,,,,,,,ValidFrom,Language3,,,,,P59,N59),_xll.IDLPara(2,O59,,,$A59,$B59,,$C59,$D59,,,,,,$E59)))","v":"STSPA"},"Otros","Otros","Otros",{"$f":"IF(TRUE,\"STSPA\",_xll.IDLSetValue(_xll.IDLPara(1,\"STSPA\",Database,,,,,,,,,,,,,,,,,ValidFrom,Language4,,,,,T59,R59),_xll.IDLPara(2,S59,,,$A59,$B59,,$C59,$D59,,,,,,$E59)))","v":"STSPA"}]
[{"$f":"SPO!A$6","v":"$CKTK"},"07",{"$nulls":3},"Individueller Controllingbereich 1","Individ. Bereich 1","IndCtrBer1",{"$f":"IF(TRUE,\"STSPA\",_xll.IDLSetValue(_xll.IDLPara(1,\"STSPA\",Database,,,,,,,,,,,,,,,,,ValidFrom,Language1,,,,,H60,F60),_xll.IDLPara(2,G60,,,$A60,$B60,,$C60,$D60,,,,,,$E60)))","v":"STSPA"},"Individual controlling division 1","Individ. division 1","IndCtrDiv1",{"$f":"IF(TRUE,\"STSPA\",_xll.IDLSetValue(_xll.IDLPara(1,\"STSPA\",Database,,,,,,,,,,,,,,,,,ValidFrom,Language2,,,,,L60,J60),_xll.IDLPara(2,K60,,,$A60,$B60,,$C60,$D60,,,,,,$E60)))","v":"STSPA"},"Zone individuelle de contrôle 1","Zone individ. 1","ZonIndCtr1",{"$f":"IF(TRUE,\"STSPA\",_xll.IDLSetValue(_xll.IDLPara(1,\"STSPA\",Database,,,,,,,,,,,,,,,,,ValidFrom,Language3,,,,,P60,N60),_xll.IDLPara(2,O60,,,$A60,$B60,,$C60,$D60,,,,,,$E60)))","v":"STSPA"},"Zona individual de control 1","Zona Individ. 1","ZonIndCtr1",{"$f":"IF(TRUE,\"STSPA\",_xll.IDLSetValue(_xll.IDLPara(1,\"STSPA\",Database,,,,,,,,,,,,,,,,,ValidFrom,Language4,,,,,T60,R60),_xll.IDLPara(2,S60,,,$A60,$B60,,$C60,$D60,,,,,,$E60)))","v":"STSPA"}]
[{"$f":"SPO!A$6","v":"$CKTK"},"08",{"$nulls":3},"Individueller Controllingbereich 2","Individ. Bereich 2","IndCtrBer2",{"$f":"IF(TRUE,\"STSPA\",_xll.IDLSetValue(_xll.IDLPara(1,\"STSPA\",Database,,,,,,,,,,,,,,,,,ValidFrom,Language1,,,,,H61,F61),_xll.IDLPara(2,G61,,,$A61,$B61,,$C61,$D61,,,,,,$E61)))","v":"STSPA"},"Individual controlling division 2","Individ. division 2","IndCtrDiv2",{"$f":"IF(TRUE,\"STSPA\",_xll.IDLSetValue(_xll.IDLPara(1,\"STSPA\",Database,,,,,,,,,,,,,,,,,ValidFrom,Language2,,,,,L61,J61),_xll.IDLPara(2,K61,,,$A61,$B61,,$C61,$D61,,,,,,$E61)))","v":"STSPA"},"Zone individuelle de contrôle 2","Zone individ. 2","ZonIndCtr2",{"$f":"IF(TRUE,\"STSPA\",_xll.IDLSetValue(_xll.IDLPara(1,\"STSPA\",Database,,,,,,,,,,,,,,,,,ValidFrom,Language3,,,,,P61,N61),_xll.IDLPara(2,O61,,,$A61,$B61,,$C61,$D61,,,,,,$E61)))","v":"STSPA"},"Zona individual de control 2","Zona Individ. 2","ZonIndCtr2",{"$f":"IF(TRUE,\"STSPA\",_xll.IDLSetValue(_xll.IDLPara(1,\"STSPA\",Database,,,,,,,,,,,,,,,,,ValidFrom,Language4,,,,,T61,R61),_xll.IDLPara(2,S61,,,$A61,$B61,,$C61,$D61,,,,,,$E61)))","v":"STSPA"}]
[{"$f":"SPO!A$6","v":"$CKTK"},"09",{"$nulls":3},"Individueller Controllingbereich 3","Individ. Bereich 3","IndCtrBer3",{"$f":"IF(TRUE,\"STSPA\",_xll.IDLSetValue(_xll.IDLPara(1,\"STSPA\",Database,,,,,,,,,,,,,,,,,ValidFrom,Language1,,,,,H62,F62),_xll.IDLPara(2,G62,,,$A62,$B62,,$C62,$D62,,,,,,$E62)))","v":"STSPA"},"Individual controlling division 3","Individ. division 3","IndCtrDiv3",{"$f":"IF(TRUE,\"STSPA\",_xll.IDLSetValue(_xll.IDLPara(1,\"STSPA\",Database,,,,,,,,,,,,,,,,,ValidFrom,Language2,,,,,L62,J62),_xll.IDLPara(2,K62,,,$A62,$B62,,$C62,$D62,,,,,,$E62)))","v":"STSPA"},"Zone individuelle de contrôle 3","Zone individ. 3","ZonIndCtr3",{"$f":"IF(TRUE,\"STSPA\",_xll.IDLSetValue(_xll.IDLPara(1,\"STSPA\",Database,,,,,,,,,,,,,,,,,ValidFrom,Language3,,,,,P62,N62),_xll.IDLPara(2,O62,,,$A62,$B62,,$C62,$D62,,,,,,$E62)))","v":"STSPA"},"Zona individual de control 3","Zona Individ. 3","ZonIndCtr3",{"$f":"IF(TRUE,\"STSPA\",_xll.IDLSetValue(_xll.IDLPara(1,\"STSPA\",Database,,,,,,,,,,,,,,,,,ValidFrom,Language4,,,,,T62,R62),_xll.IDLPara(2,S62,,,$A62,$B62,,$C62,$D62,,,,,,$E62)))","v":"STSPA"}]
[{"$f":"SPO!A$6","v":"$CKTK"},"10",{"$nulls":3},"Individueller Controllingbereich 4","Individ. Bereich 4","IndCtrBer4",{"$f":"IF(TRUE,\"STSPA\",_xll.IDLSetValue(_xll.IDLPara(1,\"STSPA\",Database,,,,,,,,,,,,,,,,,ValidFrom,Language1,,,,,H63,F63),_xll.IDLPara(2,G63,,,$A63,$B63,,$C63,$D63,,,,,,$E63)))","v":"STSPA"},"Individual controlling division 4","Individ. division 4","IndCtrDiv4",{"$f":"IF(TRUE,\"STSPA\",_xll.IDLSetValue(_xll.IDLPara(1,\"STSPA\",Database,,,,,,,,,,,,,,,,,ValidFrom,Language2,,,,,L63,J63),_xll.IDLPara(2,K63,,,$A63,$B63,,$C63,$D63,,,,,,$E63)))","v":"STSPA"},"Zone individuelle de contrôle 4","Zone individ. 4","ZonIndCtr4",{"$f":"IF(TRUE,\"STSPA\",_xll.IDLSetValue(_xll.IDLPara(1,\"STSPA\",Database,,,,,,,,,,,,,,,,,ValidFrom,Language3,,,,,P63,N63),_xll.IDLPara(2,O63,,,$A63,$B63,,$C63,$D63,,,,,,$E63)))","v":"STSPA"},"Zona individual de control 4","Zona Individ. 4","ZonIndCtr4",{"$f":"IF(TRUE,\"STSPA\",_xll.IDLSetValue(_xll.IDLPara(1,\"STSPA\",Database,,,,,,,,,,,,,,,,,ValidFrom,Language4,,,,,T63,R63),_xll.IDLPara(2,S63,,,$A63,$B63,,$C63,$D63,,,,,,$E63)))","v":"STSPA"}]
[{"$f":"SPO!A$6","v":"$CKTK"},"11",{"$nulls":3},"Individueller Controllingbereich 5","Individ. Bereich 5","IndCtrBer5",{"$f":"IF(TRUE,\"STSPA\",_xll.IDLSetValue(_xll.IDLPara(1,\"STSPA\",Database,,,,,,,,,,,,,,,,,ValidFrom,Language1,,,,,H64,F64),_xll.IDLPara(2,G64,,,$A64,$B64,,$C64,$D64,,,,,,$E64)))","v":"STSPA"},"Individual controlling division 5","Individ. division 5","IndCtrDiv5",{"$f":"IF(TRUE,\"STSPA\",_xll.IDLSetValue(_xll.IDLPara(1,\"STSPA\",Database,,,,,,,,,,,,,,,,,ValidFrom,Language2,,,,,L64,J64),_xll.IDLPara(2,K64,,,$A64,$B64,,$C64,$D64,,,,,,$E64)))","v":"STSPA"},"Zone individuelle de contrôle 5","Zone individ. 5","ZonIndCtr5",{"$f":"IF(TRUE,\"STSPA\",_xll.IDLSetValue(_xll.IDLPara(1,\"STSPA\",Database,,,,,,,,,,,,,,,,,ValidFrom,Language3,,,,,P64,N64),_xll.IDLPara(2,O64,,,$A64,$B64,,$C64,$D64,,,,,,$E64)))","v":"STSPA"},"Zona individual de control 5","Zona Individ. 5","ZonIndCtr5",{"$f":"IF(TRUE,\"STSPA\",_xll.IDLSetValue(_xll.IDLPara(1,\"STSPA\",Database,,,,,,,,,,,,,,,,,ValidFrom,Language4,,,,,T64,R64),_xll.IDLPara(2,S64,,,$A64,$B64,,$C64,$D64,,,,,,$E64)))","v":"STSPA"}]
[{"$f":"SPO!A$6","v":"$CKTK"},"12",{"$nulls":3},"Individueller Controllingbereich 6","Individ. Bereich 6","IndCtrBer6",{"$f":"IF(TRUE,\"STSPA\",_xll.IDLSetValue(_xll.IDLPara(1,\"STSPA\",Database,,,,,,,,,,,,,,,,,ValidFrom,Language1,,,,,H65,F65),_xll.IDLPara(2,G65,,,$A65,$B65,,$C65,$D65,,,,,,$E65)))","v":"STSPA"},"Individual controlling division 6","Individ. division 6","IndCtrDiv6",{"$f":"IF(TRUE,\"STSPA\",_xll.IDLSetValue(_xll.IDLPara(1,\"STSPA\",Database,,,,,,,,,,,,,,,,,ValidFrom,Language2,,,,,L65,J65),_xll.IDLPara(2,K65,,,$A65,$B65,,$C65,$D65,,,,,,$E65)))","v":"STSPA"},"Zone individuelle de contrôle 6","Zone individ. 6","ZonIndCtr6",{"$f":"IF(TRUE,\"STSPA\",_xll.IDLSetValue(_xll.IDLPara(1,\"STSPA\",Database,,,,,,,,,,,,,,,,,ValidFrom,Language3,,,,,P65,N65),_xll.IDLPara(2,O65,,,$A65,$B65,,$C65,$D65,,,,,,$E65)))","v":"STSPA"},"Zona individual de control 6","Zona Individ. 6","ZonIndCtr6",{"$f":"IF(TRUE,\"STSPA\",_xll.IDLSetValue(_xll.IDLPara(1,\"STSPA\",Database,,,,,,,,,,,,,,,,,ValidFrom,Language4,,,,,T65,R65),_xll.IDLPara(2,S65,,,$A65,$B65,,$C65,$D65,,,,,,$E65)))","v":"STSPA"}]
[{"$f":"SPO!A$6","v":"$CKTK"},"13",{"$nulls":3},"Individueller Controllingbereich 7","Individ. Bereich 7","IndCtrBer7",{"$f":"IF(TRUE,\"STSPA\",_xll.IDLSetValue(_xll.IDLPara(1,\"STSPA\",Database,,,,,,,,,,,,,,,,,ValidFrom,Language1,,,,,H66,F66),_xll.IDLPara(2,G66,,,$A66,$B66,,$C66,$D66,,,,,,$E66)))","v":"STSPA"},"Individual controlling division 7","Individ. division 7","IndCtrDiv7",{"$f":"IF(TRUE,\"STSPA\",_xll.IDLSetValue(_xll.IDLPara(1,\"STSPA\",Database,,,,,,,,,,,,,,,,,ValidFrom,Language2,,,,,L66,J66),_xll.IDLPara(2,K66,,,$A66,$B66,,$C66,$D66,,,,,,$E66)))","v":"STSPA"},"Zone individuelle de contrôle 7","Zone individ. 7","ZonIndCtr7",{"$f":"IF(TRUE,\"STSPA\",_xll.IDLSetValue(_xll.IDLPara(1,\"STSPA\",Database,,,,,,,,,,,,,,,,,ValidFrom,Language3,,,,,P66,N66),_xll.IDLPara(2,O66,,,$A66,$B66,,$C66,$D66,,,,,,$E66)))","v":"STSPA"},"Zona individual de control 7","Zona Individ. 7","ZonIndCtr7",{"$f":"IF(TRUE,\"STSPA\",_xll.IDLSetValue(_xll.IDLPara(1,\"STSPA\",Database,,,,,,,,,,,,,,,,,ValidFrom,Language4,,,,,T66,R66),_xll.IDLPara(2,S66,,,$A66,$B66,,$C66,$D66,,,,,,$E66)))","v":"STSPA"}]
[{"$f":"SPO!A$6","v":"$CKTK"},"14",{"$nulls":3},"Individueller Controllingbereich 8","Individ. Bereich 8","IndCtrBer8",{"$f":"IF(TRUE,\"STSPA\",_xll.IDLSetValue(_xll.IDLPara(1,\"STSPA\",Database,,,,,,,,,,,,,,,,,ValidFrom,Language1,,,,,H67,F67),_xll.IDLPara(2,G67,,,$A67,$B67,,$C67,$D67,,,,,,$E67)))","v":"STSPA"},"Individual controlling division 8","Individ. division 8","IndCtrDiv8",{"$f":"IF(TRUE,\"STSPA\",_xll.IDLSetValue(_xll.IDLPara(1,\"STSPA\",Database,,,,,,,,,,,,,,,,,ValidFrom,Language2,,,,,L67,J67),_xll.IDLPara(2,K67,,,$A67,$B67,,$C67,$D67,,,,,,$E67)))","v":"STSPA"},"Zone individuelle de contrôle 8","Zone individ. 8","ZonIndCtr8",{"$f":"IF(TRUE,\"STSPA\",_xll.IDLSetValue(_xll.IDLPara(1,\"STSPA\",Database,,,,,,,,,,,,,,,,,ValidFrom,Language3,,,,,P67,N67),_xll.IDLPara(2,O67,,,$A67,$B67,,$C67,$D67,,,,,,$E67)))","v":"STSPA"},"Zona individual de control 8","Zona Individ. 8","ZonIndCtr8",{"$f":"IF(TRUE,\"STSPA\",_xll.IDLSetValue(_xll.IDLPara(1,\"STSPA\",Database,,,,,,,,,,,,,,,,,ValidFrom,Language4,,,,,T67,R67),_xll.IDLPara(2,S67,,,$A67,$B67,,$C67,$D67,,,,,,$E67)))","v":"STSPA"}]
[{"$f":"SPO!A$6","v":"$CKTK"},"15",{"$nulls":3},"Individueller Controllingbereich 9","Individ. Bereich 9","IndCtrBer9",{"$f":"IF(TRUE,\"STSPA\",_xll.IDLSetValue(_xll.IDLPara(1,\"STSPA\",Database,,,,,,,,,,,,,,,,,ValidFrom,Language1,,,,,H68,F68),_xll.IDLPara(2,G68,,,$A68,$B68,,$C68,$D68,,,,,,$E68)))","v":"STSPA"},"Individual controlling division 9","Individ. division 9","IndCtrDiv9",{"$f":"IF(TRUE,\"STSPA\",_xll.IDLSetValue(_xll.IDLPara(1,\"STSPA\",Database,,,,,,,,,,,,,,,,,ValidFrom,Language2,,,,,L68,J68),_xll.IDLPara(2,K68,,,$A68,$B68,,$C68,$D68,,,,,,$E68)))","v":"STSPA"},"Zone individuelle de contrôle 9","Zone individ. 9","ZonIndCtr9",{"$f":"IF(TRUE,\"STSPA\",_xll.IDLSetValue(_xll.IDLPara(1,\"STSPA\",Database,,,,,,,,,,,,,,,,,ValidFrom,Language3,,,,,P68,N68),_xll.IDLPara(2,O68,,,$A68,$B68,,$C68,$D68,,,,,,$E68)))","v":"STSPA"},"Zona individual de control 9","Zona Individ. 9","ZonIndCtr9",{"$f":"IF(TRUE,\"STSPA\",_xll.IDLSetValue(_xll.IDLPara(1,\"STSPA\",Database,,,,,,,,,,,,,,,,,ValidFrom,Language4,,,,,T68,R68),_xll.IDLPara(2,S68,,,$A68,$B68,,$C68,$D68,,,,,,$E68)))","v":"STSPA"}]
[{"$f":"SPO!A$6","v":"$CKTK"},"16","X",null,null,"Gesamt","Gesamt","Gesamt",{"$f":"IF(TRUE,\"STSPA\",_xll.IDLSetValue(_xll.IDLPara(1,\"STSPA\",Database,,,,,,,,,,,,,,,,,ValidFrom,Language1,,,,,H69,F69),_xll.IDLPara(2,G69,,,$A69,$B69,,$C69,$D69,,,,,,$E69)))","v":"STSPA"},"Total","Total","Total",{"$f":"IF(TRUE,\"STSPA\",_xll.IDLSetValue(_xll.IDLPara(1,\"STSPA\",Database,,,,,,,,,,,,,,,,,ValidFrom,Language2,,,,,L69,J69),_xll.IDLPara(2,K69,,,$A69,$B69,,$C69,$D69,,,,,,$E69)))","v":"STSPA"},"Total","Total","Total",{"$f":"IF(TRUE,\"STSPA\",_xll.IDLSetValue(_xll.IDLPara(1,\"STSPA\",Database,,,,,,,,,,,,,,,,,ValidFrom,Language3,,,,,P69,N69),_xll.IDLPara(2,O69,,,$A69,$B69,,$C69,$D69,,,,,,$E69)))","v":"STSPA"},"Global","Global","Global",{"$f":"IF(TRUE,\"STSPA\",_xll.IDLSetValue(_xll.IDLPara(1,\"STSPA\",Database,,,,,,,,,,,,,,,,,ValidFrom,Language4,,,,,T69,R69),_xll.IDLPara(2,S69,,,$A69,$B69,,$C69,$D69,,,,,,$E69)))","v":"STSPA"}]
[{"$f":"SPO!A$6","v":"$CKTK"},"17",{"$nulls":3},"Gesamt VP","Gesamt VP","Gesamt VP",{"$f":"IF(TRUE,\"STSPA\",_xll.IDLSetValue(_xll.IDLPara(1,\"STSPA\",Database,,,,,,,,,,,,,,,,,ValidFrom,Language1,,,,,H70,F70),_xll.IDLPara(2,G70,,,$A70,$B70,,$C70,$D70,,,,,,$E70)))","v":"STSPA"},"Total LP","Total LP","Total LP",{"$f":"IF(TRUE,\"STSPA\",_xll.IDLSetValue(_xll.IDLPara(1,\"STSPA\",Database,,,,,,,,,,,,,,,,,ValidFrom,Language2,,,,,L70,J70),_xll.IDLPara(2,K70,,,$A70,$B70,,$C70,$D70,,,,,,$E70)))","v":"STSPA"},"Total PP","Total PP","Total PP",{"$f":"IF(TRUE,\"STSPA\",_xll.IDLSetValue(_xll.IDLPara(1,\"STSPA\",Database,,,,,,,,,,,,,,,,,ValidFrom,Language3,,,,,P70,N70),_xll.IDLPara(2,O70,,,$A70,$B70,,$C70,$D70,,,,,,$E70)))","v":"STSPA"},"VP global","VP global","VP global",{"$f":"IF(TRUE,\"STSPA\",_xll.IDLSetValue(_xll.IDLPara(1,\"STSPA\",Database,,,,,,,,,,,,,,,,,ValidFrom,Language4,,,,,T70,R70),_xll.IDLPara(2,S70,,,$A70,$B70,,$C70,$D70,,,,,,$E70)))","v":"STSPA"}]
[{"$f":"SPO!A$7","v":"$CNEU"},"01",{"$nulls":3},"Produktion","Produktion","Produktion",{"$f":"IF(TRUE,\"STSPA\",_xll.IDLSetValue(_xll.IDLPara(1,\"STSPA\",Database,,,,,,,,,,,,,,,,,ValidFrom,Language1,,,,,H71,F71),_xll.IDLPara(2,G71,,,$A71,$B71,,$C71,$D71,,,,,,$E71)))","v":"STSPA"},"Production","Production","Production",{"$f":"IF(TRUE,\"STSPA\",_xll.IDLSetValue(_xll.IDLPara(1,\"STSPA\",Database,,,,,,,,,,,,,,,,,ValidFrom,Language2,,,,,L71,J71),_xll.IDLPara(2,K71,,,$A71,$B71,,$C71,$D71,,,,,,$E71)))","v":"STSPA"},"Production","Production","Production",{"$f":"IF(TRUE,\"STSPA\",_xll.IDLSetValue(_xll.IDLPara(1,\"STSPA\",Database,,,,,,,,,,,,,,,,,ValidFrom,Language3,,,,,P71,N71),_xll.IDLPara(2,O71,,,$A71,$B71,,$C71,$D71,,,,,,$E71)))","v":"STSPA"},"Producción","Producción","Producción",{"$f":"IF(TRUE,\"STSPA\",_xll.IDLSetValue(_xll.IDLPara(1,\"STSPA\",Database,,,,,,,,,,,,,,,,,ValidFrom,Language4,,,,,T71,R71),_xll.IDLPara(2,S71,,,$A71,$B71,,$C71,$D71,,,,,,$E71)))","v":"STSPA"}]
[{"$f":"SPO!A$7","v":"$CNEU"},"02",{"$nulls":3},"Vertrieb","Vertrieb","Vertrieb",{"$f":"IF(TRUE,\"STSPA\",_xll.IDLSetValue(_xll.IDLPara(1,\"STSPA\",Database,,,,,,,,,,,,,,,,,ValidFrom,Language1,,,,,H72,F72),_xll.IDLPara(2,G72,,,$A72,$B72,,$C72,$D72,,,,,,$E72)))","v":"STSPA"},"Marketing and sales cost","Marketing and sales cost","Marketing",{"$f":"IF(TRUE,\"STSPA\",_xll.IDLSetValue(_xll.IDLPara(1,\"STSPA\",Database,,,,,,,,,,,,,,,,,ValidFrom,Language2,,,,,L72,J72),_xll.IDLPara(2,K72,,,$A72,$B72,,$C72,$D72,,,,,,$E72)))","v":"STSPA"},"Distrib.","Distrib.","Distrib.",{"$f":"IF(TRUE,\"STSPA\",_xll.IDLSetValue(_xll.IDLPara(1,\"STSPA\",Database,,,,,,,,,,,,,,,,,ValidFrom,Language3,,,,,P72,N72),_xll.IDLPara(2,O72,,,$A72,$B72,,$C72,$D72,,,,,,$E72)))","v":"STSPA"},"Distribu","Distribu","Distribu",{"$f":"IF(TRUE,\"STSPA\",_xll.IDLSetValue(_xll.IDLPara(1,\"STSPA\",Database,,,,,,,,,,,,,,,,,ValidFrom,Language4,,,,,T72,R72),_xll.IDLPara(2,S72,,,$A72,$B72,,$C72,$D72,,,,,,$E72)))","v":"STSPA"}]
[{"$f":"SPO!A$7","v":"$CNEU"},"03",{"$nulls":3},"Forschung und Entwicklung","Forschung & Ew.","F&E",{"$f":"IF(TRUE,\"STSPA\",_xll.IDLSetValue(_xll.IDLPara(1,\"STSPA\",Database,,,,,,,,,,,,,,,,,ValidFrom,Language1,,,,,H73,F73),_xll.IDLPara(2,G73,,,$A73,$B73,,$C73,$D73,,,,,,$E73)))","v":"STSPA"},"Research and Development","Research and Development","R&D",{"$f":"IF(TRUE,\"STSPA\",_xll.IDLSetValue(_xll.IDLPara(1,\"STSPA\",Database,,,,,,,,,,,,,,,,,ValidFrom,Language2,,,,,L73,J73),_xll.IDLPara(2,K73,,,$A73,$B73,,$C73,$D73,,,,,,$E73)))","v":"STSPA"},"Recherche et développement","Recherche et développement","R&D",{"$f":"IF(TRUE,\"STSPA\",_xll.IDLSetValue(_xll.IDLPara(1,\"STSPA\",Database,,,,,,,,,,,,,,,,,ValidFrom,Language3,,,,,P73,N73),_xll.IDLPara(2,O73,,,$A73,$B73,,$C73,$D73,,,,,,$E73)))","v":"STSPA"},"Investigación y desarrollo","Invest.y Desar.","I+D",{"$f":"IF(TRUE,\"STSPA\",_xll.IDLSetValue(_xll.IDLPara(1,\"STSPA\",Database,,,,,,,,,,,,,,,,,ValidFrom,Language4,,,,,T73,R73),_xll.IDLPara(2,S73,,,$A73,$B73,,$C73,$D73,,,,,,$E73)))","v":"STSPA"}]
[{"$f":"SPO!A$7","v":"$CNEU"},"04",{"$nulls":3},"Verwaltung","Verwaltung","Verwaltung",{"$f":"IF(TRUE,\"STSPA\",_xll.IDLSetValue(_xll.IDLPara(1,\"STSPA\",Database,,,,,,,,,,,,,,,,,ValidFrom,Language1,,,,,H74,F74),_xll.IDLPara(2,G74,,,$A74,$B74,,$C74,$D74,,,,,,$E74)))","v":"STSPA"},"Administration","Administration","Administr.",{"$f":"IF(TRUE,\"STSPA\",_xll.IDLSetValue(_xll.IDLPara(1,\"STSPA\",Database,,,,,,,,,,,,,,,,,ValidFrom,Language2,,,,,L74,J74),_xll.IDLPara(2,K74,,,$A74,$B74,,$C74,$D74,,,,,,$E74)))","v":"STSPA"},"Gestion","Gestion","Gestion",{"$f":"IF(TRUE,\"STSPA\",_xll.IDLSetValue(_xll.IDLPara(1,\"STSPA\",Database,,,,,,,,,,,,,,,,,ValidFrom,Language3,,,,,P74,N74),_xll.IDLPara(2,O74,,,$A74,$B74,,$C74,$D74,,,,,,$E74)))","v":"STSPA"},"Administración","Administración","Admin",{"$f":"IF(TRUE,\"STSPA\",_xll.IDLSetValue(_xll.IDLPara(1,\"STSPA\",Database,,,,,,,,,,,,,,,,,ValidFrom,Language4,,,,,T74,R74),_xll.IDLPara(2,S74,,,$A74,$B74,,$C74,$D74,,,,,,$E74)))","v":"STSPA"}]
[{"$f":"SPO!A$7","v":"$CNEU"},"05",{"$nulls":3},"Berichtete Umlagen","Berichtete Umlagen","Umlagen",{"$f":"IF(TRUE,\"STSPA\",_xll.IDLSetValue(_xll.IDLPara(1,\"STSPA\",Database,,,,,,,,,,,,,,,,,ValidFrom,Language1,,,,,H75,F75),_xll.IDLPara(2,G75,,,$A75,$B75,,$C75,$D75,,,,,,$E75)))","v":"STSPA"},"Allocation of costs","Allocation of costs","Allocation",{"$f":"IF(TRUE,\"STSPA\",_xll.IDLSetValue(_xll.IDLPara(1,\"STSPA\",Database,,,,,,,,,,,,,,,,,ValidFrom,Language2,,,,,L75,J75),_xll.IDLPara(2,K75,,,$A75,$B75,,$C75,$D75,,,,,,$E75)))","v":"STSPA"},"Participations notifiées","Participations notifiées","Particip.",{"$f":"IF(TRUE,\"STSPA\",_xll.IDLSetValue(_xll.IDLPara(1,\"STSPA\",Database,,,,,,,,,,,,,,,,,ValidFrom,Language3,,,,,P75,N75),_xll.IDLPara(2,O75,,,$A75,$B75,,$C75,$D75,,,,,,$E75)))","v":"STSPA"},"Subrepartos informados","Subrepartos informados","Subrepart",{"$f":"IF(TRUE,\"STSPA\",_xll.IDLSetValue(_xll.IDLPara(1,\"STSPA\",Database,,,,,,,,,,,,,,,,,ValidFrom,Language4,,,,,T75,R75),_xll.IDLPara(2,S75,,,$A75,$B75,,$C75,$D75,,,,,,$E75)))","v":"STSPA"}]
[{"$f":"SPO!A$7","v":"$CNEU"},"06",{"$nulls":3},"Sonstiges","Sonstiges","Sonstiges",{"$f":"IF(TRUE,\"STSPA\",_xll.IDLSetValue(_xll.IDLPara(1,\"STSPA\",Database,,,,,,,,,,,,,,,,,ValidFrom,Language1,,,,,H76,F76),_xll.IDLPara(2,G76,,,$A76,$B76,,$C76,$D76,,,,,,$E76)))","v":"STSPA"},"Other","Other","Other",{"$f":"IF(TRUE,\"STSPA\",_xll.IDLSetValue(_xll.IDLPara(1,\"STSPA\",Database,,,,,,,,,,,,,,,,,ValidFrom,Language2,,,,,L76,J76),_xll.IDLPara(2,K76,,,$A76,$B76,,$C76,$D76,,,,,,$E76)))","v":"STSPA"},"Autres","Autres","Autres",{"$f":"IF(TRUE,\"STSPA\",_xll.IDLSetValue(_xll.IDLPara(1,\"STSPA\",Database,,,,,,,,,,,,,,,,,ValidFrom,Language3,,,,,P76,N76),_xll.IDLPara(2,O76,,,$A76,$B76,,$C76,$D76,,,,,,$E76)))","v":"STSPA"},"Otros","Otros","Otros",{"$f":"IF(TRUE,\"STSPA\",_xll.IDLSetValue(_xll.IDLPara(1,\"STSPA\",Database,,,,,,,,,,,,,,,,,ValidFrom,Language4,,,,,T76,R76),_xll.IDLPara(2,S76,,,$A76,$B76,,$C76,$D76,,,,,,$E76)))","v":"STSPA"}]
[{"$f":"SPO!A$7","v":"$CNEU"},"07",{"$nulls":3},"Individueller Controllingbereich 1","Individ. Bereich 1","IndCtrBer1",{"$f":"IF(TRUE,\"STSPA\",_xll.IDLSetValue(_xll.IDLPara(1,\"STSPA\",Database,,,,,,,,,,,,,,,,,ValidFrom,Language1,,,,,H77,F77),_xll.IDLPara(2,G77,,,$A77,$B77,,$C77,$D77,,,,,,$E77)))","v":"STSPA"},"Individual controlling division 1","Individ. division 1","IndCtrDiv1",{"$f":"IF(TRUE,\"STSPA\",_xll.IDLSetValue(_xll.IDLPara(1,\"STSPA\",Database,,,,,,,,,,,,,,,,,ValidFrom,Language2,,,,,L77,J77),_xll.IDLPara(2,K77,,,$A77,$B77,,$C77,$D77,,,,,,$E77)))","v":"STSPA"},"Zone individuelle de contrôle 1","Zone individ. 1","ZonIndCtr1",{"$f":"IF(TRUE,\"STSPA\",_xll.IDLSetValue(_xll.IDLPara(1,\"STSPA\",Database,,,,,,,,,,,,,,,,,ValidFrom,Language3,,,,,P77,N77),_xll.IDLPara(2,O77,,,$A77,$B77,,$C77,$D77,,,,,,$E77)))","v":"STSPA"},"Zona individual de control 1","Zona Individ. 1","ZonIndCtr1",{"$f":"IF(TRUE,\"STSPA\",_xll.IDLSetValue(_xll.IDLPara(1,\"STSPA\",Database,,,,,,,,,,,,,,,,,ValidFrom,Language4,,,,,T77,R77),_xll.IDLPara(2,S77,,,$A77,$B77,,$C77,$D77,,,,,,$E77)))","v":"STSPA"}]
[{"$f":"SPO!A$7","v":"$CNEU"},"08",{"$nulls":3},"Individueller Controllingbereich 2","Individ. Bereich 2","IndCtrBer2",{"$f":"IF(TRUE,\"STSPA\",_xll.IDLSetValue(_xll.IDLPara(1,\"STSPA\",Database,,,,,,,,,,,,,,,,,ValidFrom,Language1,,,,,H78,F78),_xll.IDLPara(2,G78,,,$A78,$B78,,$C78,$D78,,,,,,$E78)))","v":"STSPA"},"Individual controlling division 2","Individ. division 2","IndCtrDiv2",{"$f":"IF(TRUE,\"STSPA\",_xll.IDLSetValue(_xll.IDLPara(1,\"STSPA\",Database,,,,,,,,,,,,,,,,,ValidFrom,Language2,,,,,L78,J78),_xll.IDLPara(2,K78,,,$A78,$B78,,$C78,$D78,,,,,,$E78)))","v":"STSPA"},"Zone individuelle de contrôle 2","Zone individ. 2","ZonIndCtr2",{"$f":"IF(TRUE,\"STSPA\",_xll.IDLSetValue(_xll.IDLPara(1,\"STSPA\",Database,,,,,,,,,,,,,,,,,ValidFrom,Language3,,,,,P78,N78),_xll.IDLPara(2,O78,,,$A78,$B78,,$C78,$D78,,,,,,$E78)))","v":"STSPA"},"Zona individual de control 2","Zona Individ. 2","ZonIndCtr2",{"$f":"IF(TRUE,\"STSPA\",_xll.IDLSetValue(_xll.IDLPara(1,\"STSPA\",Database,,,,,,,,,,,,,,,,,ValidFrom,Language4,,,,,T78,R78),_xll.IDLPara(2,S78,,,$A78,$B78,,$C78,$D78,,,,,,$E78)))","v":"STSPA"}]
[{"$f":"SPO!A$7","v":"$CNEU"},"09",{"$nulls":3},"Individueller Controllingbereich 3","Individ. Bereich 3","IndCtrBer3",{"$f":"IF(TRUE,\"STSPA\",_xll.IDLSetValue(_xll.IDLPara(1,\"STSPA\",Database,,,,,,,,,,,,,,,,,ValidFrom,Language1,,,,,H79,F79),_xll.IDLPara(2,G79,,,$A79,$B79,,$C79,$D79,,,,,,$E79)))","v":"STSPA"},"Individual controlling division 3","Individ. division 3","IndCtrDiv3",{"$f":"IF(TRUE,\"STSPA\",_xll.IDLSetValue(_xll.IDLPara(1,\"STSPA\",Database,,,,,,,,,,,,,,,,,ValidFrom,Language2,,,,,L79,J79),_xll.IDLPara(2,K79,,,$A79,$B79,,$C79,$D79,,,,,,$E79)))","v":"STSPA"},"Zone individuelle de contrôle 3","Zone individ. 3","ZonIndCtr3",{"$f":"IF(TRUE,\"STSPA\",_xll.IDLSetValue(_xll.IDLPara(1,\"STSPA\",Database,,,,,,,,,,,,,,,,,ValidFrom,Language3,,,,,P79,N79),_xll.IDLPara(2,O79,,,$A79,$B79,,$C79,$D79,,,,,,$E79)))","v":"STSPA"},"Zona individual de control 3","Zona Individ. 3","ZonIndCtr3",{"$f":"IF(TRUE,\"STSPA\",_xll.IDLSetValue(_xll.IDLPara(1,\"STSPA\",Database,,,,,,,,,,,,,,,,,ValidFrom,Language4,,,,,T79,R79),_xll.IDLPara(2,S79,,,$A79,$B79,,$C79,$D79,,,,,,$E79)))","v":"STSPA"}]
[{"$f":"SPO!A$7","v":"$CNEU"},"10",{"$nulls":3},"Individueller Controllingbereich 4","Individ. Bereich 4","IndCtrBer4",{"$f":"IF(TRUE,\"STSPA\",_xll.IDLSetValue(_xll.IDLPara(1,\"STSPA\",Database,,,,,,,,,,,,,,,,,ValidFrom,Language1,,,,,H80,F80),_xll.IDLPara(2,G80,,,$A80,$B80,,$C80,$D80,,,,,,$E80)))","v":"STSPA"},"Individual controlling division 4","Individ. division 4","IndCtrDiv4",{"$f":"IF(TRUE,\"STSPA\",_xll.IDLSetValue(_xll.IDLPara(1,\"STSPA\",Database,,,,,,,,,,,,,,,,,ValidFrom,Language2,,,,,L80,J80),_xll.IDLPara(2,K80,,,$A80,$B80,,$C80,$D80,,,,,,$E80)))","v":"STSPA"},"Zone individuelle de contrôle 4","Zone individ. 4","ZonIndCtr4",{"$f":"IF(TRUE,\"STSPA\",_xll.IDLSetValue(_xll.IDLPara(1,\"STSPA\",Database,,,,,,,,,,,,,,,,,ValidFrom,Language3,,,,,P80,N80),_xll.IDLPara(2,O80,,,$A80,$B80,,$C80,$D80,,,,,,$E80)))","v":"STSPA"},"Zona individual de control 4","Zona Individ. 4","ZonIndCtr4",{"$f":"IF(TRUE,\"STSPA\",_xll.IDLSetValue(_xll.IDLPara(1,\"STSPA\",Database,,,,,,,,,,,,,,,,,ValidFrom,Language4,,,,,T80,R80),_xll.IDLPara(2,S80,,,$A80,$B80,,$C80,$D80,,,,,,$E80)))","v":"STSPA"}]
[{"$f":"SPO!A$7","v":"$CNEU"},"11",{"$nulls":3},"Individueller Controllingbereich 5","Individ. Bereich 5","IndCtrBer5",{"$f":"IF(TRUE,\"STSPA\",_xll.IDLSetValue(_xll.IDLPara(1,\"STSPA\",Database,,,,,,,,,,,,,,,,,ValidFrom,Language1,,,,,H81,F81),_xll.IDLPara(2,G81,,,$A81,$B81,,$C81,$D81,,,,,,$E81)))","v":"STSPA"},"Individual controlling division 5","Individ. division 5","IndCtrDiv5",{"$f":"IF(TRUE,\"STSPA\",_xll.IDLSetValue(_xll.IDLPara(1,\"STSPA\",Database,,,,,,,,,,,,,,,,,ValidFrom,Language2,,,,,L81,J81),_xll.IDLPara(2,K81,,,$A81,$B81,,$C81,$D81,,,,,,$E81)))","v":"STSPA"},"Zone individuelle de contrôle 5","Zone individ. 5","ZonIndCtr5",{"$f":"IF(TRUE,\"STSPA\",_xll.IDLSetValue(_xll.IDLPara(1,\"STSPA\",Database,,,,,,,,,,,,,,,,,ValidFrom,Language3,,,,,P81,N81),_xll.IDLPara(2,O81,,,$A81,$B81,,$C81,$D81,,,,,,$E81)))","v":"STSPA"},"Zona individual de control 5","Zona Individ. 5","ZonIndCtr5",{"$f":"IF(TRUE,\"STSPA\",_xll.IDLSetValue(_xll.IDLPara(1,\"STSPA\",Database,,,,,,,,,,,,,,,,,ValidFrom,Language4,,,,,T81,R81),_xll.IDLPara(2,S81,,,$A81,$B81,,$C81,$D81,,,,,,$E81)))","v":"STSPA"}]
[{"$f":"SPO!A$7","v":"$CNEU"},"12",{"$nulls":3},"Individueller Controllingbereich 6","Individ. Bereich 6","IndCtrBer6",{"$f":"IF(TRUE,\"STSPA\",_xll.IDLSetValue(_xll.IDLPara(1,\"STSPA\",Database,,,,,,,,,,,,,,,,,ValidFrom,Language1,,,,,H82,F82),_xll.IDLPara(2,G82,,,$A82,$B82,,$C82,$D82,,,,,,$E82)))","v":"STSPA"},"Individual controlling division 6","Individ. division 6","IndCtrDiv6",{"$f":"IF(TRUE,\"STSPA\",_xll.IDLSetValue(_xll.IDLPara(1,\"STSPA\",Database,,,,,,,,,,,,,,,,,ValidFrom,Language2,,,,,L82,J82),_xll.IDLPara(2,K82,,,$A82,$B82,,$C82,$D82,,,,,,$E82)))","v":"STSPA"},"Zone individuelle de contrôle 6","Zone individ. 6","ZonIndCtr6",{"$f":"IF(TRUE,\"STSPA\",_xll.IDLSetValue(_xll.IDLPara(1,\"STSPA\",Database,,,,,,,,,,,,,,,,,ValidFrom,Language3,,,,,P82,N82),_xll.IDLPara(2,O82,,,$A82,$B82,,$C82,$D82,,,,,,$E82)))","v":"STSPA"},"Zona individual de control 6","Zona Individ. 6","ZonIndCtr6",{"$f":"IF(TRUE,\"STSPA\",_xll.IDLSetValue(_xll.IDLPara(1,\"STSPA\",Database,,,,,,,,,,,,,,,,,ValidFrom,Language4,,,,,T82,R82),_xll.IDLPara(2,S82,,,$A82,$B82,,$C82,$D82,,,,,,$E82)))","v":"STSPA"}]
[{"$f":"SPO!A$7","v":"$CNEU"},"13",{"$nulls":3},"Individueller Controllingbereich 7","Individ. Bereich 7","IndCtrBer7",{"$f":"IF(TRUE,\"STSPA\",_xll.IDLSetValue(_xll.IDLPara(1,\"STSPA\",Database,,,,,,,,,,,,,,,,,ValidFrom,Language1,,,,,H83,F83),_xll.IDLPara(2,G83,,,$A83,$B83,,$C83,$D83,,,,,,$E83)))","v":"STSPA"},"Individual controlling division 7","Individ. division 7","IndCtrDiv7",{"$f":"IF(TRUE,\"STSPA\",_xll.IDLSetValue(_xll.IDLPara(1,\"STSPA\",Database,,,,,,,,,,,,,,,,,ValidFrom,Language2,,,,,L83,J83),_xll.IDLPara(2,K83,,,$A83,$B83,,$C83,$D83,,,,,,$E83)))","v":"STSPA"},"Zone individuelle de contrôle 7","Zone individ. 7","ZonIndCtr7",{"$f":"IF(TRUE,\"STSPA\",_xll.IDLSetValue(_xll.IDLPara(1,\"STSPA\",Database,,,,,,,,,,,,,,,,,ValidFrom,Language3,,,,,P83,N83),_xll.IDLPara(2,O83,,,$A83,$B83,,$C83,$D83,,,,,,$E83)))","v":"STSPA"},"Zona individual de control 7","Zona Individ. 7","ZonIndCtr7",{"$f":"IF(TRUE,\"STSPA\",_xll.IDLSetValue(_xll.IDLPara(1,\"STSPA\",Database,,,,,,,,,,,,,,,,,ValidFrom,Language4,,,,,T83,R83),_xll.IDLPara(2,S83,,,$A83,$B83,,$C83,$D83,,,,,,$E83)))","v":"STSPA"}]
[{"$f":"SPO!A$7","v":"$CNEU"},"14",{"$nulls":3},"Individueller Controllingbereich 8","Individ. Bereich 8","IndCtrBer8",{"$f":"IF(TRUE,\"STSPA\",_xll.IDLSetValue(_xll.IDLPara(1,\"STSPA\",Database,,,,,,,,,,,,,,,,,ValidFrom,Language1,,,,,H84,F84),_xll.IDLPara(2,G84,,,$A84,$B84,,$C84,$D84,,,,,,$E84)))","v":"STSPA"},"Individual controlling division 8","Individ. division 8","IndCtrDiv8",{"$f":"IF(TRUE,\"STSPA\",_xll.IDLSetValue(_xll.IDLPara(1,\"STSPA\",Database,,,,,,,,,,,,,,,,,ValidFrom,Language2,,,,,L84,J84),_xll.IDLPara(2,K84,,,$A84,$B84,,$C84,$D84,,,,,,$E84)))","v":"STSPA"},"Zone individuelle de contrôle 8","Zone individ. 8","ZonIndCtr8",{"$f":"IF(TRUE,\"STSPA\",_xll.IDLSetValue(_xll.IDLPara(1,\"STSPA\",Database,,,,,,,,,,,,,,,,,ValidFrom,Language3,,,,,P84,N84),_xll.IDLPara(2,O84,,,$A84,$B84,,$C84,$D84,,,,,,$E84)))","v":"STSPA"},"Zona individual de control 8","Zona Individ. 8","ZonIndCtr8",{"$f":"IF(TRUE,\"STSPA\",_xll.IDLSetValue(_xll.IDLPara(1,\"STSPA\",Database,,,,,,,,,,,,,,,,,ValidFrom,Language4,,,,,T84,R84),_xll.IDLPara(2,S84,,,$A84,$B84,,$C84,$D84,,,,,,$E84)))","v":"STSPA"}]
[{"$f":"SPO!A$7","v":"$CNEU"},"15",{"$nulls":3},"Individueller Controllingbereich 9","Individ. Bereich 9","IndCtrBer9",{"$f":"IF(TRUE,\"STSPA\",_xll.IDLSetValue(_xll.IDLPara(1,\"STSPA\",Database,,,,,,,,,,,,,,,,,ValidFrom,Language1,,,,,H85,F85),_xll.IDLPara(2,G85,,,$A85,$B85,,$C85,$D85,,,,,,$E85)))","v":"STSPA"},"Individual controlling division 9","Individ. division 9","IndCtrDiv9",{"$f":"IF(TRUE,\"STSPA\",_xll.IDLSetValue(_xll.IDLPara(1,\"STSPA\",Database,,,,,,,,,,,,,,,,,ValidFrom,Language2,,,,,L85,J85),_xll.IDLPara(2,K85,,,$A85,$B85,,$C85,$D85,,,,,,$E85)))","v":"STSPA"},"Zone individuelle de contrôle 9","Zone individ. 9","ZonIndCtr9",{"$f":"IF(TRUE,\"STSPA\",_xll.IDLSetValue(_xll.IDLPara(1,\"STSPA\",Database,,,,,,,,,,,,,,,,,ValidFrom,Language3,,,,,P85,N85),_xll.IDLPara(2,O85,,,$A85,$B85,,$C85,$D85,,,,,,$E85)))","v":"STSPA"},"Zona individual de control 9","Zona Individ. 9","ZonIndCtr9",{"$f":"IF(TRUE,\"STSPA\",_xll.IDLSetValue(_xll.IDLPara(1,\"STSPA\",Database,,,,,,,,,,,,,,,,,ValidFrom,Language4,,,,,T85,R85),_xll.IDLPara(2,S85,,,$A85,$B85,,$C85,$D85,,,,,,$E85)))","v":"STSPA"}]
[{"$f":"SPO!A$7","v":"$CNEU"},"16","X",null,null,"Gesamt","Gesamt","Gesamt",{"$f":"IF(TRUE,\"STSPA\",_xll.IDLSetValue(_xll.IDLPara(1,\"STSPA\",Database,,,,,,,,,,,,,,,,,ValidFrom,Language1,,,,,H86,F86),_xll.IDLPara(2,G86,,,$A86,$B86,,$C86,$D86,,,,,,$E86)))","v":"STSPA"},"Total","Total","Total",{"$f":"IF(TRUE,\"STSPA\",_xll.IDLSetValue(_xll.IDLPara(1,\"STSPA\",Database,,,,,,,,,,,,,,,,,ValidFrom,Language2,,,,,L86,J86),_xll.IDLPara(2,K86,,,$A86,$B86,,$C86,$D86,,,,,,$E86)))","v":"STSPA"},"Total","Total","Total",{"$f":"IF(TRUE,\"STSPA\",_xll.IDLSetValue(_xll.IDLPara(1,\"STSPA\",Database,,,,,,,,,,,,,,,,,ValidFrom,Language3,,,,,P86,N86),_xll.IDLPara(2,O86,,,$A86,$B86,,$C86,$D86,,,,,,$E86)))","v":"STSPA"},"Global","Global","Global",{"$f":"IF(TRUE,\"STSPA\",_xll.IDLSetValue(_xll.IDLPara(1,\"STSPA\",Database,,,,,,,,,,,,,,,,,ValidFrom,Language4,,,,,T86,R86),_xll.IDLPara(2,S86,,,$A86,$B86,,$C86,$D86,,,,,,$E86)))","v":"STSPA"}]
[{"$f":"SPO!A$7","v":"$CNEU"},"17",{"$nulls":3},"Gesamt VP","Gesamt VP","Gesamt VP",{"$f":"IF(TRUE,\"STSPA\",_xll.IDLSetValue(_xll.IDLPara(1,\"STSPA\",Database,,,,,,,,,,,,,,,,,ValidFrom,Language1,,,,,H87,F87),_xll.IDLPara(2,G87,,,$A87,$B87,,$C87,$D87,,,,,,$E87)))","v":"STSPA"},"Total LP","Total LP","Total LP",{"$f":"IF(TRUE,\"STSPA\",_xll.IDLSetValue(_xll.IDLPara(1,\"STSPA\",Database,,,,,,,,,,,,,,,,,ValidFrom,Language2,,,,,L87,J87),_xll.IDLPara(2,K87,,,$A87,$B87,,$C87,$D87,,,,,,$E87)))","v":"STSPA"},"Total PP","Total PP","Total PP",{"$f":"IF(TRUE,\"STSPA\",_xll.IDLSetValue(_xll.IDLPara(1,\"STSPA\",Database,,,,,,,,,,,,,,,,,ValidFrom,Language3,,,,,P87,N87),_xll.IDLPara(2,O87,,,$A87,$B87,,$C87,$D87,,,,,,$E87)))","v":"STSPA"},"VP global","VP global","VP global",{"$f":"IF(TRUE,\"STSPA\",_xll.IDLSetValue(_xll.IDLPara(1,\"STSPA\",Database,,,,,,,,,,,,,,,,,ValidFrom,Language4,,,,,T87,R87),_xll.IDLPara(2,S87,,,$A87,$B87,,$C87,$D87,,,,,,$E87)))","v":"STSPA"}]
[{"$f":"SPO!A$8","v":"$CSUM"},"01",{"$nulls":3},"Produktion","Produktion","Produktion",{"$f":"IF(TRUE,\"STSPA\",_xll.IDLSetValue(_xll.IDLPara(1,\"STSPA\",Database,,,,,,,,,,,,,,,,,ValidFrom,Language1,,,,,H88,F88),_xll.IDLPara(2,G88,,,$A88,$B88,,$C88,$D88,,,,,,$E88)))","v":"STSPA"},"Production","Production","Production",{"$f":"IF(TRUE,\"STSPA\",_xll.IDLSetValue(_xll.IDLPara(1,\"STSPA\",Database,,,,,,,,,,,,,,,,,ValidFrom,Language2,,,,,L88,J88),_xll.IDLPara(2,K88,,,$A88,$B88,,$C88,$D88,,,,,,$E88)))","v":"STSPA"},"Production","Production","Production",{"$f":"IF(TRUE,\"STSPA\",_xll.IDLSetValue(_xll.IDLPara(1,\"STSPA\",Database,,,,,,,,,,,,,,,,,ValidFrom,Language3,,,,,P88,N88),_xll.IDLPara(2,O88,,,$A88,$B88,,$C88,$D88,,,,,,$E88)))","v":"STSPA"},"Producción","Producción","Producción",{"$f":"IF(TRUE,\"STSPA\",_xll.IDLSetValue(_xll.IDLPara(1,\"STSPA\",Database,,,,,,,,,,,,,,,,,ValidFrom,Language4,,,,,T88,R88),_xll.IDLPara(2,S88,,,$A88,$B88,,$C88,$D88,,,,,,$E88)))","v":"STSPA"}]
[{"$f":"SPO!A$8","v":"$CSUM"},"02",{"$nulls":3},"Vertrieb","Vertrieb","Vertrieb",{"$f":"IF(TRUE,\"STSPA\",_xll.IDLSetValue(_xll.IDLPara(1,\"STSPA\",Database,,,,,,,,,,,,,,,,,ValidFrom,Language1,,,,,H89,F89),_xll.IDLPara(2,G89,,,$A89,$B89,,$C89,$D89,,,,,,$E89)))","v":"STSPA"},"Marketing and sales cost","Marketing and sales cost","Marketing",{"$f":"IF(TRUE,\"STSPA\",_xll.IDLSetValue(_xll.IDLPara(1,\"STSPA\",Database,,,,,,,,,,,,,,,,,ValidFrom,Language2,,,,,L89,J89),_xll.IDLPara(2,K89,,,$A89,$B89,,$C89,$D89,,,,,,$E89)))","v":"STSPA"},"Distrib.","Distrib.","Distrib.",{"$f":"IF(TRUE,\"STSPA\",_xll.IDLSetValue(_xll.IDLPara(1,\"STSPA\",Database,,,,,,,,,,,,,,,,,ValidFrom,Language3,,,,,P89,N89),_xll.IDLPara(2,O89,,,$A89,$B89,,$C89,$D89,,,,,,$E89)))","v":"STSPA"},"Distribu","Distribu","Distribu",{"$f":"IF(TRUE,\"STSPA\",_xll.IDLSetValue(_xll.IDLPara(1,\"STSPA\",Database,,,,,,,,,,,,,,,,,ValidFrom,Language4,,,,,T89,R89),_xll.IDLPara(2,S89,,,$A89,$B89,,$C89,$D89,,,,,,$E89)))","v":"STSPA"}]
[{"$f":"SPO!A$8","v":"$CSUM"},"03",{"$nulls":3},"Forschung und Entwicklung","Forschung & Ew.","F&E",{"$f":"IF(TRUE,\"STSPA\",_xll.IDLSetValue(_xll.IDLPara(1,\"STSPA\",Database,,,,,,,,,,,,,,,,,ValidFrom,Language1,,,,,H90,F90),_xll.IDLPara(2,G90,,,$A90,$B90,,$C90,$D90,,,,,,$E90)))","v":"STSPA"},"Research and Development","Research and Development","R&D",{"$f":"IF(TRUE,\"STSPA\",_xll.IDLSetValue(_xll.IDLPara(1,\"STSPA\",Database,,,,,,,,,,,,,,,,,ValidFrom,Language2,,,,,L90,J90),_xll.IDLPara(2,K90,,,$A90,$B90,,$C90,$D90,,,,,,$E90)))","v":"STSPA"},"Recherche et développement","Recherche et développement","R&D",{"$f":"IF(TRUE,\"STSPA\",_xll.IDLSetValue(_xll.IDLPara(1,\"STSPA\",Database,,,,,,,,,,,,,,,,,ValidFrom,Language3,,,,,P90,N90),_xll.IDLPara(2,O90,,,$A90,$B90,,$C90,$D90,,,,,,$E90)))","v":"STSPA"},"Investigación y desarrollo","Invest.y Desar.","I+D",{"$f":"IF(TRUE,\"STSPA\",_xll.IDLSetValue(_xll.IDLPara(1,\"STSPA\",Database,,,,,,,,,,,,,,,,,ValidFrom,Language4,,,,,T90,R90),_xll.IDLPara(2,S90,,,$A90,$B90,,$C90,$D90,,,,,,$E90)))","v":"STSPA"}]
[{"$f":"SPO!A$8","v":"$CSUM"},"04",{"$nulls":3},"Verwaltung","Verwaltung","Verwaltung",{"$f":"IF(TRUE,\"STSPA\",_xll.IDLSetValue(_xll.IDLPara(1,\"STSPA\",Database,,,,,,,,,,,,,,,,,ValidFrom,Language1,,,,,H91,F91),_xll.IDLPara(2,G91,,,$A91,$B91,,$C91,$D91,,,,,,$E91)))","v":"STSPA"},"Administration","Administration","Administr.",{"$f":"IF(TRUE,\"STSPA\",_xll.IDLSetValue(_xll.IDLPara(1,\"STSPA\",Database,,,,,,,,,,,,,,,,,ValidFrom,Language2,,,,,L91,J91),_xll.IDLPara(2,K91,,,$A91,$B91,,$C91,$D91,,,,,,$E91)))","v":"STSPA"},"Gestion","Gestion","Gestion",{"$f":"IF(TRUE,\"STSPA\",_xll.IDLSetValue(_xll.IDLPara(1,\"STSPA\",Database,,,,,,,,,,,,,,,,,ValidFrom,Language3,,,,,P91,N91),_xll.IDLPara(2,O91,,,$A91,$B91,,$C91,$D91,,,,,,$E91)))","v":"STSPA"},"Administración","Administración","Admin",{"$f":"IF(TRUE,\"STSPA\",_xll.IDLSetValue(_xll.IDLPara(1,\"STSPA\",Database,,,,,,,,,,,,,,,,,ValidFrom,Language4,,,,,T91,R91),_xll.IDLPara(2,S91,,,$A91,$B91,,$C91,$D91,,,,,,$E91)))","v":"STSPA"}]
[{"$f":"SPO!A$8","v":"$CSUM"},"05",{"$nulls":3},"Berichtete Umlagen","Berichtete Umlagen","Umlagen",{"$f":"IF(TRUE,\"STSPA\",_xll.IDLSetValue(_xll.IDLPara(1,\"STSPA\",Database,,,,,,,,,,,,,,,,,ValidFrom,Language1,,,,,H92,F92),_xll.IDLPara(2,G92,,,$A92,$B92,,$C92,$D92,,,,,,$E92)))","v":"STSPA"},"Allocation of costs","Allocation of costs","Allocation",{"$f":"IF(TRUE,\"STSPA\",_xll.IDLSetValue(_xll.IDLPara(1,\"STSPA\",Database,,,,,,,,,,,,,,,,,ValidFrom,Language2,,,,,L92,J92),_xll.IDLPara(2,K92,,,$A92,$B92,,$C92,$D92,,,,,,$E92)))","v":"STSPA"},"Participations notifiées","Participations notifiées","Particip.",{"$f":"IF(TRUE,\"STSPA\",_xll.IDLSetValue(_xll.IDLPara(1,\"STSPA\",Database,,,,,,,,,,,,,,,,,ValidFrom,Language3,,,,,P92,N92),_xll.IDLPara(2,O92,,,$A92,$B92,,$C92,$D92,,,,,,$E92)))","v":"STSPA"},"Subrepartos informados","Subrepartos informados","Subrepart",{"$f":"IF(TRUE,\"STSPA\",_xll.IDLSetValue(_xll.IDLPara(1,\"STSPA\",Database,,,,,,,,,,,,,,,,,ValidFrom,Language4,,,,,T92,R92),_xll.IDLPara(2,S92,,,$A92,$B92,,$C92,$D92,,,,,,$E92)))","v":"STSPA"}]
[{"$f":"SPO!A$8","v":"$CSUM"},"06",{"$nulls":3},"Sonstiges","Sonstiges","Sonstiges",{"$f":"IF(TRUE,\"STSPA\",_xll.IDLSetValue(_xll.IDLPara(1,\"STSPA\",Database,,,,,,,,,,,,,,,,,ValidFrom,Language1,,,,,H93,F93),_xll.IDLPara(2,G93,,,$A93,$B93,,$C93,$D93,,,,,,$E93)))","v":"STSPA"},"Other","Other","Other",{"$f":"IF(TRUE,\"STSPA\",_xll.IDLSetValue(_xll.IDLPara(1,\"STSPA\",Database,,,,,,,,,,,,,,,,,ValidFrom,Language2,,,,,L93,J93),_xll.IDLPara(2,K93,,,$A93,$B93,,$C93,$D93,,,,,,$E93)))","v":"STSPA"},"Autres","Autres","Autres",{"$f":"IF(TRUE,\"STSPA\",_xll.IDLSetValue(_xll.IDLPara(1,\"STSPA\",Database,,,,,,,,,,,,,,,,,ValidFrom,Language3,,,,,P93,N93),_xll.IDLPara(2,O93,,,$A93,$B93,,$C93,$D93,,,,,,$E93)))","v":"STSPA"},"Otros","Otros","Otros",{"$f":"IF(TRUE,\"STSPA\",_xll.IDLSetValue(_xll.IDLPara(1,\"STSPA\",Database,,,,,,,,,,,,,,,,,ValidFrom,Language4,,,,,T93,R93),_xll.IDLPara(2,S93,,,$A93,$B93,,$C93,$D93,,,,,,$E93)))","v":"STSPA"}]
[{"$f":"SPO!A$8","v":"$CSUM"},"07",{"$nulls":3},"Individueller Controllingbereich 1","Individ. Bereich 1","IndCtrBer1",{"$f":"IF(TRUE,\"STSPA\",_xll.IDLSetValue(_xll.IDLPara(1,\"STSPA\",Database,,,,,,,,,,,,,,,,,ValidFrom,Language1,,,,,H94,F94),_xll.IDLPara(2,G94,,,$A94,$B94,,$C94,$D94,,,,,,$E94)))","v":"STSPA"},"Individual controlling division 1","Individ. division 1","IndCtrDiv1",{"$f":"IF(TRUE,\"STSPA\",_xll.IDLSetValue(_xll.IDLPara(1,\"STSPA\",Database,,,,,,,,,,,,,,,,,ValidFrom,Language2,,,,,L94,J94),_xll.IDLPara(2,K94,,,$A94,$B94,,$C94,$D94,,,,,,$E94)))","v":"STSPA"},"Zone individuelle de contrôle 1","Zone individ. 1","ZonIndCtr1",{"$f":"IF(TRUE,\"STSPA\",_xll.IDLSetValue(_xll.IDLPara(1,\"STSPA\",Database,,,,,,,,,,,,,,,,,ValidFrom,Language3,,,,,P94,N94),_xll.IDLPara(2,O94,,,$A94,$B94,,$C94,$D94,,,,,,$E94)))","v":"STSPA"},"Zona individual de control 1","Zona Individ. 1","ZonIndCtr1",{"$f":"IF(TRUE,\"STSPA\",_xll.IDLSetValue(_xll.IDLPara(1,\"STSPA\",Database,,,,,,,,,,,,,,,,,ValidFrom,Language4,,,,,T94,R94),_xll.IDLPara(2,S94,,,$A94,$B94,,$C94,$D94,,,,,,$E94)))","v":"STSPA"}]
[{"$f":"SPO!A$8","v":"$CSUM"},"08",{"$nulls":3},"Individueller Controllingbereich 2","Individ. Bereich 2","IndCtrBer2",{"$f":"IF(TRUE,\"STSPA\",_xll.IDLSetValue(_xll.IDLPara(1,\"STSPA\",Database,,,,,,,,,,,,,,,,,ValidFrom,Language1,,,,,H95,F95),_xll.IDLPara(2,G95,,,$A95,$B95,,$C95,$D95,,,,,,$E95)))","v":"STSPA"},"Individual controlling division 2","Individ. division 2","IndCtrDiv2",{"$f":"IF(TRUE,\"STSPA\",_xll.IDLSetValue(_xll.IDLPara(1,\"STSPA\",Database,,,,,,,,,,,,,,,,,ValidFrom,Language2,,,,,L95,J95),_xll.IDLPara(2,K95,,,$A95,$B95,,$C95,$D95,,,,,,$E95)))","v":"STSPA"},"Zone individuelle de contrôle 2","Zone individ. 2","ZonIndCtr2",{"$f":"IF(TRUE,\"STSPA\",_xll.IDLSetValue(_xll.IDLPara(1,\"STSPA\",Database,,,,,,,,,,,,,,,,,ValidFrom,Language3,,,,,P95,N95),_xll.IDLPara(2,O95,,,$A95,$B95,,$C95,$D95,,,,,,$E95)))","v":"STSPA"},"Zona individual de control 2","Zona Individ. 2","ZonIndCtr2",{"$f":"IF(TRUE,\"STSPA\",_xll.IDLSetValue(_xll.IDLPara(1,\"STSPA\",Database,,,,,,,,,,,,,,,,,ValidFrom,Language4,,,,,T95,R95),_xll.IDLPara(2,S95,,,$A95,$B95,,$C95,$D95,,,,,,$E95)))","v":"STSPA"}]
[{"$f":"SPO!A$8","v":"$CSUM"},"09",{"$nulls":3},"Individueller Controllingbereich 3","Individ. Bereich 3","IndCtrBer3",{"$f":"IF(TRUE,\"STSPA\",_xll.IDLSetValue(_xll.IDLPara(1,\"STSPA\",Database,,,,,,,,,,,,,,,,,ValidFrom,Language1,,,,,H96,F96),_xll.IDLPara(2,G96,,,$A96,$B96,,$C96,$D96,,,,,,$E96)))","v":"STSPA"},"Individual controlling division 3","Individ. division 3","IndCtrDiv3",{"$f":"IF(TRUE,\"STSPA\",_xll.IDLSetValue(_xll.IDLPara(1,\"STSPA\",Database,,,,,,,,,,,,,,,,,ValidFrom,Language2,,,,,L96,J96),_xll.IDLPara(2,K96,,,$A96,$B96,,$C96,$D96,,,,,,$E96)))","v":"STSPA"},"Zone individuelle de contrôle 3","Zone individ. 3","ZonIndCtr3",{"$f":"IF(TRUE,\"STSPA\",_xll.IDLSetValue(_xll.IDLPara(1,\"STSPA\",Database,,,,,,,,,,,,,,,,,ValidFrom,Language3,,,,,P96,N96),_xll.IDLPara(2,O96,,,$A96,$B96,,$C96,$D96,,,,,,$E96)))","v":"STSPA"},"Zona individual de control 3","Zona Individ. 3","ZonIndCtr3",{"$f":"IF(TRUE,\"STSPA\",_xll.IDLSetValue(_xll.IDLPara(1,\"STSPA\",Database,,,,,,,,,,,,,,,,,ValidFrom,Language4,,,,,T96,R96),_xll.IDLPara(2,S96,,,$A96,$B96,,$C96,$D96,,,,,,$E96)))","v":"STSPA"}]
[{"$f":"SPO!A$8","v":"$CSUM"},"10",{"$nulls":3},"Individueller Controllingbereich 4","Individ. Bereich 4","IndCtrBer4",{"$f":"IF(TRUE,\"STSPA\",_xll.IDLSetValue(_xll.IDLPara(1,\"STSPA\",Database,,,,,,,,,,,,,,,,,ValidFrom,Language1,,,,,H97,F97),_xll.IDLPara(2,G97,,,$A97,$B97,,$C97,$D97,,,,,,$E97)))","v":"STSPA"},"Individual controlling division 4","Individ. division 4","IndCtrDiv4",{"$f":"IF(TRUE,\"STSPA\",_xll.IDLSetValue(_xll.IDLPara(1,\"STSPA\",Database,,,,,,,,,,,,,,,,,ValidFrom,Language2,,,,,L97,J97),_xll.IDLPara(2,K97,,,$A97,$B97,,$C97,$D97,,,,,,$E97)))","v":"STSPA"},"Zone individuelle de contrôle 4","Zone individ. 4","ZonIndCtr4",{"$f":"IF(TRUE,\"STSPA\",_xll.IDLSetValue(_xll.IDLPara(1,\"STSPA\",Database,,,,,,,,,,,,,,,,,ValidFrom,Language3,,,,,P97,N97),_xll.IDLPara(2,O97,,,$A97,$B97,,$C97,$D97,,,,,,$E97)))","v":"STSPA"},"Zona individual de control 4","Zona Individ. 4","ZonIndCtr4",{"$f":"IF(TRUE,\"STSPA\",_xll.IDLSetValue(_xll.IDLPara(1,\"STSPA\",Database,,,,,,,,,,,,,,,,,ValidFrom,Language4,,,,,T97,R97),_xll.IDLPara(2,S97,,,$A97,$B97,,$C97,$D97,,,,,,$E97)))","v":"STSPA"}]
[{"$f":"SPO!A$8","v":"$CSUM"},"11",{"$nulls":3},"Individueller Controllingbereich 5","Individ. Bereich 5","IndCtrBer5",{"$f":"IF(TRUE,\"STSPA\",_xll.IDLSetValue(_xll.IDLPara(1,\"STSPA\",Database,,,,,,,,,,,,,,,,,ValidFrom,Language1,,,,,H98,F98),_xll.IDLPara(2,G98,,,$A98,$B98,,$C98,$D98,,,,,,$E98)))","v":"STSPA"},"Individual controlling division 5","Individ. division 5","IndCtrDiv5",{"$f":"IF(TRUE,\"STSPA\",_xll.IDLSetValue(_xll.IDLPara(1,\"STSPA\",Database,,,,,,,,,,,,,,,,,ValidFrom,Language2,,,,,L98,J98),_xll.IDLPara(2,K98,,,$A98,$B98,,$C98,$D98,,,,,,$E98)))","v":"STSPA"},"Zone individuelle de contrôle 5","Zone individ. 5","ZonIndCtr5",{"$f":"IF(TRUE,\"STSPA\",_xll.IDLSetValue(_xll.IDLPara(1,\"STSPA\",Database,,,,,,,,,,,,,,,,,ValidFrom,Language3,,,,,P98,N98),_xll.IDLPara(2,O98,,,$A98,$B98,,$C98,$D98,,,,,,$E98)))","v":"STSPA"},"Zona individual de control 5","Zona Individ. 5","ZonIndCtr5",{"$f":"IF(TRUE,\"STSPA\",_xll.IDLSetValue(_xll.IDLPara(1,\"STSPA\",Database,,,,,,,,,,,,,,,,,ValidFrom,Language4,,,,,T98,R98),_xll.IDLPara(2,S98,,,$A98,$B98,,$C98,$D98,,,,,,$E98)))","v":"STSPA"}]
[{"$f":"SPO!A$8","v":"$CSUM"},"12",{"$nulls":3},"Individueller Controllingbereich 6","Individ. Bereich 6","IndCtrBer6",{"$f":"IF(TRUE,\"STSPA\",_xll.IDLSetValue(_xll.IDLPara(1,\"STSPA\",Database,,,,,,,,,,,,,,,,,ValidFrom,Language1,,,,,H99,F99),_xll.IDLPara(2,G99,,,$A99,$B99,,$C99,$D99,,,,,,$E99)))","v":"STSPA"},"Individual controlling division 6","Individ. division 6","IndCtrDiv6",{"$f":"IF(TRUE,\"STSPA\",_xll.IDLSetValue(_xll.IDLPara(1,\"STSPA\",Database,,,,,,,,,,,,,,,,,ValidFrom,Language2,,,,,L99,J99),_xll.IDLPara(2,K99,,,$A99,$B99,,$C99,$D99,,,,,,$E99)))","v":"STSPA"},"Zone individuelle de contrôle 6","Zone individ. 6","ZonIndCtr6",{"$f":"IF(TRUE,\"STSPA\",_xll.IDLSetValue(_xll.IDLPara(1,\"STSPA\",Database,,,,,,,,,,,,,,,,,ValidFrom,Language3,,,,,P99,N99),_xll.IDLPara(2,O99,,,$A99,$B99,,$C99,$D99,,,,,,$E99)))","v":"STSPA"},"Zona individual de control 6","Zona Individ. 6","ZonIndCtr6",{"$f":"IF(TRUE,\"STSPA\",_xll.IDLSetValue(_xll.IDLPara(1,\"STSPA\",Database,,,,,,,,,,,,,,,,,ValidFrom,Language4,,,,,T99,R99),_xll.IDLPara(2,S99,,,$A99,$B99,,$C99,$D99,,,,,,$E99)))","v":"STSPA"}]
[{"$f":"SPO!A$8","v":"$CSUM"},"13",{"$nulls":3},"Individueller Controllingbereich 7","Individ. Bereich 7","IndCtrBer7",{"$f":"IF(TRUE,\"STSPA\",_xll.IDLSetValue(_xll.IDLPara(1,\"STSPA\",Database,,,,,,,,,,,,,,,,,ValidFrom,Language1,,,,,H100,F100),_xll.IDLPara(2,G100,,,$A100,$B100,,$C100,$D100,,,,,,$E100)))","v":"STSPA"},"Individual controlling division 7","Individ. division 7","IndCtrDiv7",{"$f":"IF(TRUE,\"STSPA\",_xll.IDLSetValue(_xll.IDLPara(1,\"STSPA\",Database,,,,,,,,,,,,,,,,,ValidFrom,Language2,,,,,L100,J100),_xll.IDLPara(2,K100,,,$A100,$B100,,$C100,$D100,,,,,,$E100)))","v":"STSPA"},"Zone individuelle de contrôle 7","Zone individ. 7","ZonIndCtr7",{"$f":"IF(TRUE,\"STSPA\",_xll.IDLSetValue(_xll.IDLPara(1,\"STSPA\",Database,,,,,,,,,,,,,,,,,ValidFrom,Language3,,,,,P100,N100),_xll.IDLPara(2,O100,,,$A100,$B100,,$C100,$D100,,,,,,$E100)))","v":"STSPA"},"Zona individual de control 7","Zona Individ. 7","ZonIndCtr7",{"$f":"IF(TRUE,\"STSPA\",_xll.IDLSetValue(_xll.IDLPara(1,\"STSPA\",Database,,,,,,,,,,,,,,,,,ValidFrom,Language4,,,,,T100,R100),_xll.IDLPara(2,S100,,,$A100,$B100,,$C100,$D100,,,,,,$E100)))","v":"STSPA"}]
[{"$f":"SPO!A$8","v":"$CSUM"},"14",{"$nulls":3},"Individueller Controllingbereich 8","Individ. Bereich 8","IndCtrBer8",{"$f":"IF(TRUE,\"STSPA\",_xll.IDLSetValue(_xll.IDLPara(1,\"STSPA\",Database,,,,,,,,,,,,,,,,,ValidFrom,Language1,,,,,H101,F101),_xll.IDLPara(2,G101,,,$A101,$B101,,$C101,$D101,,,,,,$E101)))","v":"STSPA"},"Individual controlling division 8","Individ. division 8","IndCtrDiv8",{"$f":"IF(TRUE,\"STSPA\",_xll.IDLSetValue(_xll.IDLPara(1,\"STSPA\",Database,,,,,,,,,,,,,,,,,ValidFrom,Language2,,,,,L101,J101),_xll.IDLPara(2,K101,,,$A101,$B101,,$C101,$D101,,,,,,$E101)))","v":"STSPA"},"Zone individuelle de contrôle 8","Zone individ. 8","ZonIndCtr8",{"$f":"IF(TRUE,\"STSPA\",_xll.IDLSetValue(_xll.IDLPara(1,\"STSPA\",Database,,,,,,,,,,,,,,,,,ValidFrom,Language3,,,,,P101,N101),_xll.IDLPara(2,O101,,,$A101,$B101,,$C101,$D101,,,,,,$E101)))","v":"STSPA"},"Zona individual de control 8","Zona Individ. 8","ZonIndCtr8",{"$f":"IF(TRUE,\"STSPA\",_xll.IDLSetValue(_xll.IDLPara(1,\"STSPA\",Database,,,,,,,,,,,,,,,,,ValidFrom,Language4,,,,,T101,R101),_xll.IDLPara(2,S101,,,$A101,$B101,,$C101,$D101,,,,,,$E101)))","v":"STSPA"}]
[{"$f":"SPO!A$8","v":"$CSUM"},"15",{"$nulls":3},"Individueller Controllingbereich 9","Individ. Bereich 9","IndCtrBer9",{"$f":"IF(TRUE,\"STSPA\",_xll.IDLSetValue(_xll.IDLPara(1,\"STSPA\",Database,,,,,,,,,,,,,,,,,ValidFrom,Language1,,,,,H102,F102),_xll.IDLPara(2,G102,,,$A102,$B102,,$C102,$D102,,,,,,$E102)))","v":"STSPA"},"Individual controlling division 9","Individ. division 9","IndCtrDiv9",{"$f":"IF(TRUE,\"STSPA\",_xll.IDLSetValue(_xll.IDLPara(1,\"STSPA\",Database,,,,,,,,,,,,,,,,,ValidFrom,Language2,,,,,L102,J102),_xll.IDLPara(2,K102,,,$A102,$B102,,$C102,$D102,,,,,,$E102)))","v":"STSPA"},"Zone individuelle de contrôle 9","Zone individ. 9","ZonIndCtr9",{"$f":"IF(TRUE,\"STSPA\",_xll.IDLSetValue(_xll.IDLPara(1,\"STSPA\",Database,,,,,,,,,,,,,,,,,ValidFrom,Language3,,,,,P102,N102),_xll.IDLPara(2,O102,,,$A102,$B102,,$C102,$D102,,,,,,$E102)))","v":"STSPA"},"Zona individual de control 9","Zona Individ. 9","ZonIndCtr9",{"$f":"IF(TRUE,\"STSPA\",_xll.IDLSetValue(_xll.IDLPara(1,\"STSPA\",Database,,,,,,,,,,,,,,,,,ValidFrom,Language4,,,,,T102,R102),_xll.IDLPara(2,S102,,,$A102,$B102,,$C102,$D102,,,,,,$E102)))","v":"STSPA"}]
[{"$f":"SPO!A$8","v":"$CSUM"},"16","X",null,null,"Gesamt","Gesamt","Gesamt",{"$f":"IF(TRUE,\"STSPA\",_xll.IDLSetValue(_xll.IDLPara(1,\"STSPA\",Database,,,,,,,,,,,,,,,,,ValidFrom,Language1,,,,,H103,F103),_xll.IDLPara(2,G103,,,$A103,$B103,,$C103,$D103,,,,,,$E103)))","v":"STSPA"},"Total","Total","Total",{"$f":"IF(TRUE,\"STSPA\",_xll.IDLSetValue(_xll.IDLPara(1,\"STSPA\",Database,,,,,,,,,,,,,,,,,ValidFrom,Language2,,,,,L103,J103),_xll.IDLPara(2,K103,,,$A103,$B103,,$C103,$D103,,,,,,$E103)))","v":"STSPA"},"Total","Total","Total",{"$f":"IF(TRUE,\"STSPA\",_xll.IDLSetValue(_xll.IDLPara(1,\"STSPA\",Database,,,,,,,,,,,,,,,,,ValidFrom,Language3,,,,,P103,N103),_xll.IDLPara(2,O103,,,$A103,$B103,,$C103,$D103,,,,,,$E103)))","v":"STSPA"},"Global","Global","Global",{"$f":"IF(TRUE,\"STSPA\",_xll.IDLSetValue(_xll.IDLPara(1,\"STSPA\",Database,,,,,,,,,,,,,,,,,ValidFrom,Language4,,,,,T103,R103),_xll.IDLPara(2,S103,,,$A103,$B103,,$C103,$D103,,,,,,$E103)))","v":"STSPA"}]
[{"$f":"SPO!A$8","v":"$CSUM"},"17",{"$nulls":3},"Gesamt VP","Gesamt VP","Gesamt VP",{"$f":"IF(TRUE,\"STSPA\",_xll.IDLSetValue(_xll.IDLPara(1,\"STSPA\",Database,,,,,,,,,,,,,,,,,ValidFrom,Language1,,,,,H104,F104),_xll.IDLPara(2,G104,,,$A104,$B104,,$C104,$D104,,,,,,$E104)))","v":"STSPA"},"Total LP","Total LP","Total LP",{"$f":"IF(TRUE,\"STSPA\",_xll.IDLSetValue(_xll.IDLPara(1,\"STSPA\",Database,,,,,,,,,,,,,,,,,ValidFrom,Language2,,,,,L104,J104),_xll.IDLPara(2,K104,,,$A104,$B104,,$C104,$D104,,,,,,$E104)))","v":"STSPA"},"Total PP","Total PP","Total PP",{"$f":"IF(TRUE,\"STSPA\",_xll.IDLSetValue(_xll.IDLPara(1,\"STSPA\",Database,,,,,,,,,,,,,,,,,ValidFrom,Language3,,,,,P104,N104),_xll.IDLPara(2,O104,,,$A104,$B104,,$C104,$D104,,,,,,$E104)))","v":"STSPA"},"VP global","VP global","VP global",{"$f":"IF(TRUE,\"STSPA\",_xll.IDLSetValue(_xll.IDLPara(1,\"STSPA\",Database,,,,,,,,,,,,,,,,,ValidFrom,Language4,,,,,T104,R104),_xll.IDLPara(2,S104,,,$A104,$B104,,$C104,$D104,,,,,,$E104)))","v":"STSPA"}]

{"sheet":"FED","index":3,"n_rows":138,"n_cols":9,"rows_kept":138,"merged":[[0,0,1,0],[0,1,1,1],[0,2,1,2],[0,3,1,3],[0,4,1,4],[0,5,1,5],[0,6,1,6],[0,7,1,7],[0,8,1,8]]}
["Formel-\ngruppe","Formel","Zeile","Positions-Bezeichnung","Op","Pla/Op","Pos./Operand","Bezeichnung","Bezug IDL.XLSLINK"]
["","","","","","","","",""]
[{"$f":"SPO!A$3","v":"$CALT"},"01","1","Produktion",null,"#REP#","09","Wertspalte 09",{"$f":"IF(TRUE,\"STFED\",_xll.IDLSetValue(_xll.IDLPara(1,\"STFED\",Database,,,,,,,,,,,,,,F3,G3),_xll.IDLPara(2,,,A3,,,B3,,,C3,E3)))","v":"STFED"}]
[{"$f":"SPO!A$3","v":"$CALT"},"02","1","Vertrieb",null,"#REP#","15","Wertspalte 15",{"$f":"IF(TRUE,\"STFED\",_xll.IDLSetValue(_xll.IDLPara(1,\"STFED\",Database,,,,,,,,,,,,,,F4,G4),_xll.IDLPara(2,,,A4,,,B4,,,C4,E4)))","v":"STFED"}]
[{"$f":"SPO!A$3","v":"$CALT"},"03","1","Forschung und Entwicklung",null,"#REP#","07","Wertspalte 07",{"$f":"IF(TRUE,\"STFED\",_xll.IDLSetValue(_xll.IDLPara(1,\"STFED\",Database,,,,,,,,,,,,,,F5,G5),_xll.IDLPara(2,,,A5,,,B5,,,C5,E5)))","v":"STFED"}]
[{"$f":"SPO!A$3","v":"$CALT"},"04","1","Verwaltung",null,"#REP#","05","Wertspalte 05",{"$f":"IF(TRUE,\"STFED\",_xll.IDLSetValue(_xll.IDLPara(1,\"STFED\",Database,,,,,,,,,,,,,,F6,G6),_xll.IDLPara(2,,,A6,,,B6,,,C6,E6)))","v":"STFED"}]
[{"$f":"SPO!A$3","v":"$CALT"},"05","1","Berichtete Umlagen",null,"#REP#","13","Wertspalte 13",{"$f":"IF(TRUE,\"STFED\",_xll.IDLSetValue(_xll.IDLPara(1,\"STFED\",Database,,,,,,,,,,,,,,F7,G7),_xll.IDLPara(2,,,A7,,,B7,,,C7,E7)))","v":"STFED"}]
[{"$f":"SPO!A$3","v":"$CALT"},"06","1","Sonstiges",null,"#REP#","11","Wertspalte 11",{"$f":"IF(TRUE,\"STFED\",_xll.IDLSetValue(_xll.IDLPara(1,\"STFED\",Database,,,,,,,,,,,,,,F8,G8),_xll.IDLPara(2,,,A8,,,B8,,,C8,E8)))","v":"STFED"}]
[{"$f":"SPO!A$3","v":"$CALT"},"07","1","Individueller Controllingbereich 1",null,"#REP#","17","Wertspalte 17",{"$f":"IF(TRUE,\"STFED\",_xll.IDLSetValue(_xll.IDLPara(1,\"STFED\",Database,,,,,,,,,,,,,,F9,G9),_xll.IDLPara(2,,,A9,,,B9,,,C9,E9)))","v":"STFED"}]
[{"$f":"SPO!A$3","v":"$CALT"},"08","1","Individueller Controllingbereich 2",null,"#REP#","19","Wertspalte 19",{"$f":"IF(TRUE,\"STFED\",_xll.IDLSetValue(_xll.IDLPara(1,\"STFED\",Database,,,,,,,,,,,,,,F10,G10),_xll.IDLPara(2,,,A10,,,B10,,,C10,E10)))","v":"STFED"}]
[{"$f":"SPO!A$3","v":"$CALT"},"09","1","Individueller Controllingbereich 3",null,"#REP#","21","Wertspalte 21",{"$f":"IF(TRUE,\"STFED\",_xll.IDLSetValue(_xll.IDLPara(1,\"STFED\",Database,,,,,,,,,,,,,,F11,G11),_xll.IDLPara(2,,,A11,,,B11,,,C11,E11)))","v":"STFED"}]
[{"$f":"SPO!A$3","v":"$CALT"},"10","1","Individueller Controllingbereich 4",null,"#REP#","23","Wertspalte 23",{"$f":"IF(TRUE,\"STFED\",_xll.IDLSetValue(_xll.IDLPara(1,\"STFED\",Database,,,,,,,,,,,,,,F12,G12),_xll.IDLPara(2,,,A12,,,B12,,,C12,E12)))","v":"STFED"}]
[{"$f":"SPO!A$3","v":"$CALT"},"11","1","Individueller Controllingbereich 5",null,"#REP#","25","Wertspalte 25",{"$f":"IF(TRUE,\"STFED\",_xll.IDLSetValue(_xll.IDLPara(1,\"STFED\",Database,,,,,,,,,,,,,,F13,G13),_xll.IDLPara(2,,,A13,,,B13,,,C13,E13)))","v":"STFED"}]
[{"$f":"SPO!A$3","v":"$CALT"},"12","1","Individueller Controllingbereich 6",null,"#REP#","27","Wertspalte 27",{"$f":"IF(TRUE,\"STFED\",_xll.IDLSetValue(_xll.IDLPara(1,\"STFED\",Database,,,,,,,,,,,,,,F14,G14),_xll.IDLPara(2,,,A14,,,B14,,,C14,E14)))","v":"STFED"}]
[{"$f":"SPO!A$3","v":"$CALT"},"13","1","Individueller Controllingbereich 7",null,"#REP#","29","Wertspalte 29",{"$f":"IF(TRUE,\"STFED\",_xll.IDLSetValue(_xll.IDLPara(1,\"STFED\",Database,,,,,,,,,,,,,,F15,G15),_xll.IDLPara(2,,,A15,,,B15,,,C15,E15)))","v":"STFED"}]
[{"$f":"SPO!A$3","v":"$CALT"},"14","1","Individueller Controllingbereich 8",null,"#REP#","31","Wertspalte 31",{"$f":"IF(TRUE,\"STFED\",_xll.IDLSetValue(_xll.IDLPara(1,\"STFED\",Database,,,,,,,,,,,,,,F16,G16),_xll.IDLPara(2,,,A16,,,B16,,,C16,E16)))","v":"STFED"}]
[{"$f":"SPO!A$3","v":"$CALT"},"15","1","Individueller Controllingbereich 9",null,"#REP#","33","Wertspalte 33",{"$f":"IF(TRUE,\"STFED\",_xll.IDLSetValue(_xll.IDLPara(1,\"STFED\",Database,,,,,,,,,,,,,,F17,G17),_xll.IDLPara(2,,,A17,,,B17,,,C17,E17)))","v":"STFED"}]
[{"$f":"SPO!A$3","v":"$CALT"},"16","1","Gesamt",null,"#REP#","01","Saldo akt. Periode",{"$f":"IF(TRUE,\"STFED\",_xll.IDLSetValue(_xll.IDLPara(1,\"STFED\",Database,,,,,,,,,,,,,,F18,G18),_xll.IDLPara(2,,,A18,,,B18,,,C18,E18)))","v":"STFED"}]
[{"$f":"SPO!A$3","v":"$CALT"},"17","1","Gesamt VP",null,"#REP#","03","Saldo Vorperiode",{"$f":"IF(TRUE,\"STFED\",_xll.IDLSetValue(_xll.IDLPara(1,\"STFED\",Database,,,,,,,,,,,,,,F19,G19),_xll.IDLPara(2,,,A19,,,B19,,,C19,E19)))","v":"STFED"}]
[{"$f":"SPO!A$4","v":"$CBUC"},"01","1","Produktion",null,"#REP#","10","Wertspalte 10",{"$f":"IF(TRUE,\"STFED\",_xll.IDLSetValue(_xll.IDLPara(1,\"STFED\",Database,,,,,,,,,,,,,,F20,G20),_xll.IDLPara(2,,,A20,,,B20,,,C20,E20)))","v":"STFED"}]
[{"$f":"SPO!A$4","v":"$CBUC"},"02","1","Vertrieb",null,"#REP#","16","Wertspalte 16",{"$f":"IF(TRUE,\"STFED\",_xll.IDLSetValue(_xll.IDLPara(1,\"STFED\",Database,,,,,,,,,,,,,,F21,G21),_xll.IDLPara(2,,,A21,,,B21,,,C21,E21)))","v":"STFED"}]
[{"$f":"SPO!A$4","v":"$CBUC"},"03","1","Forschung und Entwicklung",null,"#REP#","08","Wertspalte 08",{"$f":"IF(TRUE,\"STFED\",_xll.IDLSetValue(_xll.IDLPara(1,\"STFED\",Database,,,,,,,,,,,,,,F22,G22),_xll.IDLPara(2,,,A22,,,B22,,,C22,E22)))","v":"STFED"}]
[{"$f":"SPO!A$4","v":"$CBUC"},"04","1","Verwaltung",null,"#REP#","06","Wertspalte 06",{"$f":"IF(TRUE,\"STFED\",_xll.IDLSetValue(_xll.IDLPara(1,\"STFED\",Database,,,,,,,,,,,,,,F23,G23),_xll.IDLPara(2,,,A23,,,B23,,,C23,E23)))","v":"STFED"}]
[{"$f":"SPO!A$4","v":"$CBUC"},"05","1","Berichtete Umlagen",null,"#REP#","14","Wertspalte 14",{"$f":"IF(TRUE,\"STFED\",_xll.IDLSetValue(_xll.IDLPara(1,\"STFED\",Database,,,,,,,,,,,,,,F24,G24),_xll.IDLPara(2,,,A24,,,B24,,,C24,E24)))","v":"STFED"}]
[{"$f":"SPO!A$4","v":"$CBUC"},"06","1","Sonstiges",null,"#REP#","12","Wertspalte 12",{"$f":"IF(TRUE,\"STFED\",_xll.IDLSetValue(_xll.IDLPara(1,\"STFED\",Database,,,,,,,,,,,,,,F25,G25),_xll.IDLPara(2,,,A25,,,B25,,,C25,E25)))","v":"STFED"}]
[{"$f":"SPO!A$4","v":"$CBUC"},"07","1","Individueller Controllingbereich 1",null,"#REP#","18","Wertspalte 18",{"$f":"IF(TRUE,\"STFED\",_xll.IDLSetValue(_xll.IDLPara(1,\"STFED\",Database,,,,,,,,,,,,,,F26,G26),_xll.IDLPara(2,,,A26,,,B26,,,C26,E26)))","v":"STFED"}]
[{"$f":"SPO!A$4","v":"$CBUC"},"08","1","Individueller Controllingbereich 2",null,"#REP#","20","Wertspalte 20",{"$f":"IF(TRUE,\"STFED\",_xll.IDLSetValue(_xll.IDLPara(1,\"STFED\",Database,,,,,,,,,,,,,,F27,G27),_xll.IDLPara(2,,,A27,,,B27,,,C27,E27)))","v":"STFED"}]
[{"$f":"SPO!A$4","v":"$CBUC"},"09","1","Individueller Controllingbereich 3",null,"#REP#","22","Wertspalte 22",{"$f":"IF(TRUE,\"STFED\",_xll.IDLSetValue(_xll.IDLPara(1,\"STFED\",Database,,,,,,,,,,,,,,F28,G28),_xll.IDLPara(2,,,A28,,,B28,,,C28,E28)))","v":"STFED"}]
[{"$f":"SPO!A$4","v":"$CBUC"},"10","1","Individueller Controllingbereich 4",null,"#REP#","24","Wertspalte 24",{"$f":"IF(TRUE,\"STFED\",_xll.IDLSetValue(_xll.IDLPara(1,\"STFED\",Database,,,,,,,,,,,,,,F29,G29),_xll.IDLPara(2,,,A29,,,B29,,,C29,E29)))","v":"STFED"}]
[{"$f":"SPO!A$4","v":"$CBUC"},"11","1","Individueller Controllingbereich 5",null,"#REP#","26","Wertspalte 26",{"$f":"IF(TRUE,\"STFED\",_xll.IDLSetValue(_xll.IDLPara(1,\"STFED\",Database,,,,,,,,,,,,,,F30,G30),_xll.IDLPara(2,,,A30,,,B30,,,C30,E30)))","v":"STFED"}]
[{"$f":"SPO!A$4","v":"$CBUC"},"12","1","Individueller Controllingbereich 6",null,"#REP#","28","Wertspalte 28",{"$f":"IF(TRUE,\"STFED\",_xll.IDLSetValue(_xll.IDLPara(1,\"STFED\",Database,,,,,,,,,,,,,,F31,G31),_xll.IDLPara(2,,,A31,,,B31,,,C31,E31)))","v":"STFED"}]
[{"$f":"SPO!A$4","v":"$CBUC"},"13","1","Individueller Controllingbereich 7",null,"#REP#","30","Wertspalte 30",{"$f":"IF(TRUE,\"STFED\",_xll.IDLSetValue(_xll.IDLPara(1,\"STFED\",Database,,,,,,,,,,,,,,F32,G32),_xll.IDLPara(2,,,A32,,,B32,,,C32,E32)))","v":"STFED"}]
[{"$f":"SPO!A$4","v":"$CBUC"},"14","1","Individueller Controllingbereich 8",null,"#REP#","32","Wertspalte 32",{"$f":"IF(TRUE,\"STFED\",_xll.IDLSetValue(_xll.IDLPara(1,\"STFED\",Database,,,,,,,,,,,,,,F33,G33),_xll.IDLPara(2,,,A33,,,B33,,,C33,E33)))","v":"STFED"}]
[{"$f":"SPO!A$4","v":"$CBUC"},"15","1","Individueller Controllingbereich 9",null,"#REP#","34","Wertspalte 34",{"$f":"IF(TRUE,\"STFED\",_xll.IDLSetValue(_xll.IDLPara(1,\"STFED\",Database,,,,,,,,,,,,,,F34,G34),_xll.IDLPara(2,,,A34,,,B34,,,C34,E34)))","v":"STFED"}]
[{"$f":"SPO!A$4","v":"$CBUC"},"16","1","Gesamt",null,"#REP#","02","Buchungen akt. Periode",{"$f":"IF(TRUE,\"STFED\",_xll.IDLSetValue(_xll.IDLPara(1,\"STFED\",Database,,,,,,,,,,,,,,F35,G35),_xll.IDLPara(2,,,A35,,,B35,,,C35,E35)))","v":"STFED"}]
[{"$f":"SPO!A$4","v":"$CBUC"},"17","1","Gesamt VP",null,"#REP#","04","Buchungen Vorperiode",{"$f":"IF(TRUE,\"STFED\",_xll.IDLSetValue(_xll.IDLPara(1,\"STFED\",Database,,,,,,,,,,,,,,F36,G36),_xll.IDLPara(2,,,A36,,,B36,,,C36,E36)))","v":"STFED"}]
[{"$f":"SPO!A$5","v":"$CKON"},"01","1","Produktion",null,"#REP#","10","Wertspalte 10",{"$f":"IF(TRUE,\"STFED\",_xll.IDLSetValue(_xll.IDLPara(1,\"STFED\",Database,,,,,,,,,,,,,,F37,G37),_xll.IDLPara(2,,,A37,,,B37,,,C37,E37)))","v":"STFED"}]
[{"$f":"SPO!A$5","v":"$CKON"},"02","1","Vertrieb",null,"#REP#","16","Wertspalte 16",{"$f":"IF(TRUE,\"STFED\",_xll.IDLSetValue(_xll.IDLPara(1,\"STFED\",Database,,,,,,,,,,,,,,F38,G38),_xll.IDLPara(2,,,A38,,,B38,,,C38,E38)))","v":"STFED"}]
[{"$f":"SPO!A$5","v":"$CKON"},"03","1","Forschung und Entwicklung",null,"#REP#","08","Wertspalte 08",{"$f":"IF(TRUE,\"STFED\",_xll.IDLSetValue(_xll.IDLPara(1,\"STFED\",Database,,,,,,,,,,,,,,F39,G39),_xll.IDLPara(2,,,A39,,,B39,,,C39,E39)))","v":"STFED"}]
[{"$f":"SPO!A$5","v":"$CKON"},"04","1","Verwaltung",null,"#REP#","06","Wertspalte 06",{"$f":"IF(TRUE,\"STFED\",_xll.IDLSetValue(_xll.IDLPara(1,\"STFED\",Database,,,,,,,,,,,,,,F40,G40),_xll.IDLPara(2,,,A40,,,B40,,,C40,E40)))","v":"STFED"}]
[{"$f":"SPO!A$5","v":"$CKON"},"05","1","Berichtete Umlagen",null,"#REP#","14","Wertspalte 14",{"$f":"IF(TRUE,\"STFED\",_xll.IDLSetValue(_xll.IDLPara(1,\"STFED\",Database,,,,,,,,,,,,,,F41,G41),_xll.IDLPara(2,,,A41,,,B41,,,C41,E41)))","v":"STFED"}]
[{"$f":"SPO!A$5","v":"$CKON"},"06","1","Sonstiges",null,"#REP#","12","Wertspalte 12",{"$f":"IF(TRUE,\"STFED\",_xll.IDLSetValue(_xll.IDLPara(1,\"STFED\",Database,,,,,,,,,,,,,,F42,G42),_xll.IDLPara(2,,,A42,,,B42,,,C42,E42)))","v":"STFED"}]
[{"$f":"SPO!A$5","v":"$CKON"},"07","1","Individueller Controllingbereich 1",null,"#REP#","18","Wertspalte 18",{"$f":"IF(TRUE,\"STFED\",_xll.IDLSetValue(_xll.IDLPara(1,\"STFED\",Database,,,,,,,,,,,,,,F43,G43),_xll.IDLPara(2,,,A43,,,B43,,,C43,E43)))","v":"STFED"}]
[{"$f":"SPO!A$5","v":"$CKON"},"08","1","Individueller Controllingbereich 2",null,"#REP#","20","Wertspalte 20",{"$f":"IF(TRUE,\"STFED\",_xll.IDLSetValue(_xll.IDLPara(1,\"STFED\",Database,,,,,,,,,,,,,,F44,G44),_xll.IDLPara(2,,,A44,,,B44,,,C44,E44)))","v":"STFED"}]
[{"$f":"SPO!A$5","v":"$CKON"},"09","1","Individueller Controllingbereich 3",null,"#REP#","22","Wertspalte 22",{"$f":"IF(TRUE,\"STFED\",_xll.IDLSetValue(_xll.IDLPara(1,\"STFED\",Database,,,,,,,,,,,,,,F45,G45),_xll.IDLPara(2,,,A45,,,B45,,,C45,E45)))","v":"STFED"}]
[{"$f":"SPO!A$5","v":"$CKON"},"10","1","Individueller Controllingbereich 4",null,"#REP#","24","Wertspalte 24",{"$f":"IF(TRUE,\"STFED\",_xll.IDLSetValue(_xll.IDLPara(1,\"STFED\",Database,,,,,,,,,,,,,,F46,G46),_xll.IDLPara(2,,,A46,,,B46,,,C46,E46)))","v":"STFED"}]
[{"$f":"SPO!A$5","v":"$CKON"},"11","1","Individueller Controllingbereich 5",null,"#REP#","26","Wertspalte 26",{"$f":"IF(TRUE,\"STFED\",_xll.IDLSetValue(_xll.IDLPara(1,\"STFED\",Database,,,,,,,,,,,,,,F47,G47),_xll.IDLPara(2,,,A47,,,B47,,,C47,E47)))","v":"STFED"}]
[{"$f":"SPO!A$5","v":"$CKON"},"12","1","Individueller Controllingbereich 6",null,"#REP#","28","Wertspalte 28",{"$f":"IF(TRUE,\"STFED\",_xll.IDLSetValue(_xll.IDLPara(1,\"STFED\",Database,,,,,,,,,,,,,,F48,G48),_xll.IDLPara(2,,,A48,,,B48,,,C48,E48)))","v":"STFED"}]
[{"$f":"SPO!A$5","v":"$CKON"},"13","1","Individueller Controllingbereich 7",null,"#REP#","30","Wertspalte 30",{"$f":"IF(TRUE,\"STFED\",_xll.IDLSetValue(_xll.IDLPara(1,\"STFED\",Database,,,,,,,,,,,,,,F49,G49),_xll.IDLPara(2,,,A49,,,B49,,,C49,E49)))","v":"STFED"}]
[{"$f":"SPO!A$5","v":"$CKON"},"14","1","Individueller Controllingbereich 8",null,"#REP#","32","Wertspalte 32",{"$f":"IF(TRUE,\"STFED\",_xll.IDLSetValue(_xll.IDLPara(1,\"STFED\",Database,,,,,,,,,,,,,,F50,G50),_xll.IDLPara(2,,,A50,,,B50,,,C50,E50)))","v":"STFED"}]
[{"$f":"SPO!A$5","v":"$CKON"},"15","1","Individueller Controllingbereich 9",null,"#REP#","34","Wertspalte 34",{"$f":"IF(TRUE,\"STFED\",_xll.IDLSetValue(_xll.IDLPara(1,\"STFED\",Database,,,,,,,,,,,,,,F51,G51),_xll.IDLPara(2,,,A51,,,B51,,,C51,E51)))","v":"STFED"}]
[{"$f":"SPO!A$5","v":"$CKON"},"16","1","Gesamt",null,"#REP#","02","Buchungen akt. Periode",{"$f":"IF(TRUE,\"STFED\",_xll.IDLSetValue(_xll.IDLPara(1,\"STFED\",Database,,,,,,,,,,,,,,F52,G52),_xll.IDLPara(2,,,A52,,,B52,,,C52,E52)))","v":"STFED"}]
[{"$f":"SPO!A$5","v":"$CKON"},"17","1","Gesamt VP",null,"#REP#","04","Buchungen Vorperiode",{"$f":"IF(TRUE,\"STFED\",_xll.IDLSetValue(_xll.IDLPara(1,\"STFED\",Database,,,,,,,,,,,,,,F53,G53),_xll.IDLPara(2,,,A53,,,B53,,,C53,E53)))","v":"STFED"}]
[{"$f":"SPO!A$6","v":"$CKTK"},"01","1","Produktion",null,"#REP#","09","Wertspalte 09",{"$f":"IF(TRUE,\"STFED\",_xll.IDLSetValue(_xll.IDLPara(1,\"STFED\",Database,,,,,,,,,,,,,,F54,G54),_xll.IDLPara(2,,,A54,,,B54,,,C54,E54)))","v":"STFED"}]
[{"$f":"SPO!A$6","v":"$CKTK"},"01","2","Produktion","+","#REP#","10","Wertspalte 10",{"$f":"IF(TRUE,\"STFED\",_xll.IDLSetValue(_xll.IDLPara(1,\"STFED\",Database,,,,,,,,,,,,,,F55,G55),_xll.IDLPara(2,,,A55,,,B55,,,C55,E55)))","v":"STFED"}]
[{"$f":"SPO!A$6","v":"$CKTK"},"02","1","Vertrieb",null,"#REP#","15","Wertspalte 15",{"$f":"IF(TRUE,\"STFED\",_xll.IDLSetValue(_xll.IDLPara(1,\"STFED\",Database,,,,,,,,,,,,,,F56,G56),_xll.IDLPara(2,,,A56,,,B56,,,C56,E56)))","v":"STFED"}]
[{"$f":"SPO!A$6","v":"$CKTK"},"02","2","Vertrieb","+","#REP#","16","Wertspalte 16",{"$f":"IF(TRUE,\"STFED\",_xll.IDLSetValue(_xll.IDLPara(1,\"STFED\",Database,,,,,,,,,,,,,,F57,G57),_xll.IDLPara(2,,,A57,,,B57,,,C57,E57)))","v":"STFED"}]
[{"$f":"SPO!A$6","v":"$CKTK"},"03","1","Forschung und Entwicklung",null,"#REP#","07","Wertspalte 07",{"$f":"IF(TRUE,\"STFED\",_xll.IDLSetValue(_xll.IDLPara(1,\"STFED\",Database,,,,,,,,,,,,,,F58,G58),_xll.IDLPara(2,,,A58,,,B58,,,C58,E58)))","v":"STFED"}]
[{"$f":"SPO!A$6","v":"$CKTK"},"03","2","Forschung und Entwicklung","+","#REP#","08","Wertspalte 08",{"$f":"IF(TRUE,\"STFED\",_xll.IDLSetValue(_xll.IDLPara(1,\"STFED\",Database,,,,,,,,,,,,,,F59,G59),_xll.IDLPara(2,,,A59,,,B59,,,C59,E59)))","v":"STFED"}]
[{"$f":"SPO!A$6","v":"$CKTK"},"04","1","Verwaltung",null,"#REP#","05","Wertspalte 05",{"$f":"IF(TRUE,\"STFED\",_xll.IDLSetValue(_xll.IDLPara(1,\"STFED\",Database,,,,,,,,,,,,,,F60,G60),_xll.IDLPara(2,,,A60,,,B60,,,C60,E60)))","v":"STFED"}]
[{"$f":"SPO!A$6","v":"$CKTK"},"04","2","Verwaltung","+","#REP#","06","Wertspalte 06",{"$f":"IF(TRUE,\"STFED\",_xll.IDLSetValue(_xll.IDLPara(1,\"STFED\",Database,,,,,,,,,,,,,,F61,G61),_xll.IDLPara(2,,,A61,,,B61,,,C61,E61)))","v":"STFED"}]
[{"$f":"SPO!A$6","v":"$CKTK"},"05","1","Berichtete Umlagen",null,"#REP#","13","Wertspalte 13",{"$f":"IF(TRUE,\"STFED\",_xll.IDLSetValue(_xll.IDLPara(1,\"STFED\",Database,,,,,,,,,,,,,,F62,G62),_xll.IDLPara(2,,,A62,,,B62,,,C62,E62)))","v":"STFED"}]
[{"$f":"SPO!A$6","v":"$CKTK"},"05","2","Berichtete Umlagen","+","#REP#","14","Wertspalte 14",{"$f":"IF(TRUE,\"STFED\",_xll.IDLSetValue(_xll.IDLPara(1,\"STFED\",Database,,,,,,,,,,,,,,F63,G63),_xll.IDLPara(2,,,A63,,,B63,,,C63,E63)))","v":"STFED"}]
[{"$f":"SPO!A$6","v":"$CKTK"},"06","1","Sonstiges",null,"#REP#","11","Wertspalte 11",{"$f":"IF(TRUE,\"STFED\",_xll.IDLSetValue(_xll.IDLPara(1,\"STFED\",Database,,,,,,,,,,,,,,F64,G64),_xll.IDLPara(2,,,A64,,,B64,,,C64,E64)))","v":"STFED"}]
[{"$f":"SPO!A$6","v":"$CKTK"},"06","2","Sonstiges","+","#REP#","12","Wertspalte 12",{"$f":"IF(TRUE,\"STFED\",_xll.IDLSetValue(_xll.IDLPara(1,\"STFED\",Database,,,,,,,,,,,,,,F65,G65),_xll.IDLPara(2,,,A65,,,B65,,,C65,E65)))","v":"STFED"}]
[{"$f":"SPO!A$6","v":"$CKTK"},"07","1","Individueller Controllingbereich 1",null,"#REP#","17","Wertspalte 17",{"$f":"IF(TRUE,\"STFED\",_xll.IDLSetValue(_xll.IDLPara(1,\"STFED\",Database,,,,,,,,,,,,,,F66,G66),_xll.IDLPara(2,,,A66,,,B66,,,C66,E66)))","v":"STFED"}]
[{"$f":"SPO!A$6","v":"$CKTK"},"07","2","Individueller Controllingbereich 1","+","#REP#","18","Wertspalte 18",{"$f":"IF(TRUE,\"STFED\",_xll.IDLSetValue(_xll.IDLPara(1,\"STFED\",Database,,,,,,,,,,,,,,F67,G67),_xll.IDLPara(2,,,A67,,,B67,,,C67,E67)))","v":"STFED"}]
[{"$f":"SPO!A$6","v":"$CKTK"},"08","1","Individueller Controllingbereich 2",null,"#REP#","19","Wertspalte 19",{"$f":"IF(TRUE,\"STFED\",_xll.IDLSetValue(_xll.IDLPara(1,\"STFED\",Database,,,,,,,,,,,,,,F68,G68),_xll.IDLPara(2,,,A68,,,B68,,,C68,E68)))","v":"STFED"}]
[{"$f":"SPO!A$6","v":"$CKTK"},"08","2","Individueller Controllingbereich 2","+","#REP#","20","Wertspalte 20",{"$f":"IF(TRUE,\"STFED\",_xll.IDLSetValue(_xll.IDLPara(1,\"STFED\",Database,,,,,,,,,,,,,,F69,G69),_xll.IDLPara(2,,,A69,,,B69,,,C69,E69)))","v":"STFED"}]
[{"$f":"SPO!A$6","v":"$CKTK"},"09","1","Individueller Controllingbereich 3",null,"#REP#","21","Wertspalte 21",{"$f":"IF(TRUE,\"STFED\",_xll.IDLSetValue(_xll.IDLPara(1,\"STFED\",Database,,,,,,,,,,,,,,F70,G70),_xll.IDLPara(2,,,A70,,,B70,,,C70,E70)))","v":"STFED"}]
[{"$f":"SPO!A$6","v":"$CKTK"},"09","2","Individueller Controllingbereich 3","+","#REP#","22","Wertspalte 22",{"$f":"IF(TRUE,\"STFED\",_xll.IDLSetValue(_xll.IDLPara(1,\"STFED\",Database,,,,,,,,,,,,,,F71,G71),_xll.IDLPara(2,,,A71,,,B71,,,C71,E71)))","v":"STFED"}]
[{"$f":"SPO!A$6","v":"$CKTK"},"10","1","Individueller Controllingbereich 4",null,"#REP#","23","Wertspalte 23",{"$f":"IF(TRUE,\"STFED\",_xll.IDLSetValue(_xll.IDLPara(1,\"STFED\",Database,,,,,,,,,,,,,,F72,G72),_xll.IDLPara(2,,,A72,,,B72,,,C72,E72)))","v":"STFED"}]
[{"$f":"SPO!A$6","v":"$CKTK"},"10","2","Individueller Controllingbereich 4","+","#REP#","24","Wertspalte 24",{"$f":"IF(TRUE,\"STFED\",_xll.IDLSetValue(_xll.IDLPara(1,\"STFED\",Database,,,,,,,,,,,,,,F73,G73),_xll.IDLPara(2,,,A73,,,B73,,,C73,E73)))","v":"STFED"}]
[{"$f":"SPO!A$6","v":"$CKTK"},"11","1","Individueller Controllingbereich 5",null,"#REP#","25","Wertspalte 25",{"$f":"IF(TRUE,\"STFED\",_xll.IDLSetValue(_xll.IDLPara(1,\"STFED\",Database,,,,,,,,,,,,,,F74,G74),_xll.IDLPara(2,,,A74,,,B74,,,C74,E74)))","v":"STFED"}]
[{"$f":"SPO!A$6","v":"$CKTK"},"11","2","Individueller Controllingbereich 5","+","#REP#","26","Wertspalte 26",{"$f":"IF(TRUE,\"STFED\",_xll.IDLSetValue(_xll.IDLPara(1,\"STFED\",Database,,,,,,,,,,,,,,F75,G75),_xll.IDLPara(2,,,A75,,,B75,,,C75,E75)))","v":"STFED"}]
[{"$f":"SPO!A$6","v":"$CKTK"},"12","1","Individueller Controllingbereich 6",null,"#REP#","27","Wertspalte 27",{"$f":"IF(TRUE,\"STFED\",_xll.IDLSetValue(_xll.IDLPara(1,\"STFED\",Database,,,,,,,,,,,,,,F76,G76),_xll.IDLPara(2,,,A76,,,B76,,,C76,E76)))","v":"STFED"}]
[{"$f":"SPO!A$6","v":"$CKTK"},"12","2","Individueller Controllingbereich 6","+","#REP#","28","Wertspalte 28",{"$f":"IF(TRUE,\"STFED\",_xll.IDLSetValue(_xll.IDLPara(1,\"STFED\",Database,,,,,,,,,,,,,,F77,G77),_xll.IDLPara(2,,,A77,,,B77,,,C77,E77)))","v":"STFED"}]
[{"$f":"SPO!A$6","v":"$CKTK"},"13","1","Individueller Controllingbereich 7",null,"#REP#","29","Wertspalte 29",{"$f":"IF(TRUE,\"STFED\",_xll.IDLSetValue(_xll.IDLPara(1,\"STFED\",Database,,,,,,,,,,,,,,F78,G78),_xll.IDLPara(2,,,A78,,,B78,,,C78,E78)))","v":"STFED"}]
[{"$f":"SPO!A$6","v":"$CKTK"},"13","2","Individueller Controllingbereich 7","+","#REP#","30","Wertspalte 30",{"$f":"IF(TRUE,\"STFED\",_xll.IDLSetValue(_xll.IDLPara(1,\"STFED\",Database,,,,,,,,,,,,,,F79,G79),_xll.IDLPara(2,,,A79,,,B79,,,C79,E79)))","v":"STFED"}]
[{"$f":"SPO!A$6","v":"$CKTK"},"14","1","Individueller Controllingbereich 8",null,"#REP#","31","Wertspalte 31",{"$f":"IF(TRUE,\"STFED\",_xll.IDLSetValue(_xll.IDLPara(1,\"STFED\",Database,,,,,,,,,,,,,,F80,G80),_xll.IDLPara(2,,,A80,,,B80,,,C80,E80)))","v":"STFED"}]
[{"$f":"SPO!A$6","v":"$CKTK"},"14","2","Individueller Controllingbereich 8","+","#REP#","32","Wertspalte 32",{"$f":"IF(TRUE,\"STFED\",_xll.IDLSetValue(_xll.IDLPara(1,\"STFED\",Database,,,,,,,,,,,,,,F81,G81),_xll.IDLPara(2,,,A81,,,B81,,,C81,E81)))","v":"STFED"}]
[{"$f":"SPO!A$6","v":"$CKTK"},"15","1","Individueller Controllingbereich 9",null,"#REP#","33","Wertspalte 33",{"$f":"IF(TRUE,\"STFED\",_xll.IDLSetValue(_xll.IDLPara(1,\"STFED\",Database,,,,,,,,,,,,,,F82,G82),_xll.IDLPara(2,,,A82,,,B82,,,C82,E82)))","v":"STFED"}]
[{"$f":"SPO!A$6","v":"$CKTK"},"15","2","Individueller Controllingbereich 9","+","#REP#","34","Wertspalte 34",{"$f":"IF(TRUE,\"STFED\",_xll.IDLSetValue(_xll.IDLPara(1,\"STFED\",Database,,,,,,,,,,,,,,F83,G83),_xll.IDLPara(2,,,A83,,,B83,,,C83,E83)))","v":"STFED"}]
[{"$f":"SPO!A$6","v":"$CKTK"},"16","1","Gesamt",null,"#REP#","01","Saldo akt. Periode",{"$f":"IF(TRUE,\"STFED\",_xll.IDLSetValue(_xll.IDLPara(1,\"STFED\",Database,,,,,,,,,,,,,,F84,G84),_xll.IDLPara(2,,,A84,,,B84,,,C84,E84)))","v":"STFED"}]
[{"$f":"SPO!A$6","v":"$CKTK"},"16","2","Gesamt","+","#REP#","02","Buchungen akt. Periode",{"$f":"IF(TRUE,\"STFED\",_xll.IDLSetValue(_xll.IDLPara(1,\"STFED\",Database,,,,,,,,,,,,,,F85,G85),_xll.IDLPara(2,,,A85,,,B85,,,C85,E85)))","v":"STFED"}]
[{"$f":"SPO!A$6","v":"$CKTK"},"17","1","Gesamt VP",null,"#REP#","03","Saldo Vorperiode",{"$f":"IF(TRUE,\"STFED\",_xll.IDLSetValue(_xll.IDLPara(1,\"STFED\",Database,,,,,,,,,,,,,,F86,G86),_xll.IDLPara(2,,,A86,,,B86,,,C86,E86)))","v":"STFED"}]
[{"$f":"SPO!A$6","v":"$CKTK"},"17","2","Gesamt VP","+","#REP#","04","Buchungen Vorperiode",{"$f":"IF(TRUE,\"STFED\",_xll.IDLSetValue(_xll.IDLPara(1,\"STFED\",Database,,,,,,,,,,,,,,F87,G87),_xll.IDLPara(2,,,A87,,,B87,,,C87,E87)))","v":"STFED"}]
[{"$f":"SPO!A$7","v":"$CNEU"},"01","1","Produktion",null,"#REP#","09","Wertspalte 09",{"$f":"IF(TRUE,\"STFED\",_xll.IDLSetValue(_xll.IDLPara(1,\"STFED\",Database,,,,,,,,,,,,,,F88,G88),_xll.IDLPara(2,,,A88,,,B88,,,C88,E88)))","v":"STFED"}]
[{"$f":"SPO!A$7","v":"$CNEU"},"01","2","Produktion","+","#REP#","10","Wertspalte 10",{"$f":"IF(TRUE,\"STFED\",_xll.IDLSetValue(_xll.IDLPara(1,\"STFED\",Database,,,,,,,,,,,,,,F89,G89),_xll.IDLPara(2,,,A89,,,B89,,,C89,E89)))","v":"STFED"}]
[{"$f":"SPO!A$7","v":"$CNEU"},"02","1","Vertrieb",null,"#REP#","15","Wertspalte 15",{"$f":"IF(TRUE,\"STFED\",_xll.IDLSetValue(_xll.IDLPara(1,\"STFED\",Database,,,,,,,,,,,,,,F90,G90),_xll.IDLPara(2,,,A90,,,B90,,,C90,E90)))","v":"STFED"}]
[{"$f":"SPO!A$7","v":"$CNEU"},"02","2","Vertrieb","+","#REP#","16","Wertspalte 16",{"$f":"IF(TRUE,\"STFED\",_xll.IDLSetValue(_xll.IDLPara(1,\"STFED\",Database,,,,,,,,,,,,,,F91,G91),_xll.IDLPara(2,,,A91,,,B91,,,C91,E91)))","v":"STFED"}]
[{"$f":"SPO!A$7","v":"$CNEU"},"03","1","Forschung und Entwicklung",null,"#REP#","07","Wertspalte 07",{"$f":"IF(TRUE,\"STFED\",_xll.IDLSetValue(_xll.IDLPara(1,\"STFED\",Database,,,,,,,,,,,,,,F92,G92),_xll.IDLPara(2,,,A92,,,B92,,,C92,E92)))","v":"STFED"}]
[{"$f":"SPO!A$7","v":"$CNEU"},"03","2","Forschung und Entwicklung","+","#REP#","08","Wertspalte 08",{"$f":"IF(TRUE,\"STFED\",_xll.IDLSetValue(_xll.IDLPara(1,\"STFED\",Database,,,,,,,,,,,,,,F93,G93),_xll.IDLPara(2,,,A93,,,B93,,,C93,E93)))","v":"STFED"}]
[{"$f":"SPO!A$7","v":"$CNEU"},"04","1","Verwaltung",null,"#REP#","05","Wertspalte 05",{"$f":"IF(TRUE,\"STFED\",_xll.IDLSetValue(_xll.IDLPara(1,\"STFED\",Database,,,,,,,,,,,,,,F94,G94),_xll.IDLPara(2,,,A94,,,B94,,,C94,E94)))","v":"STFED"}]
[{"$f":"SPO!A$7","v":"$CNEU"},"04","2","Verwaltung","+","#REP#","06","Wertspalte 06",{"$f":"IF(TRUE,\"STFED\",_xll.IDLSetValue(_xll.IDLPara(1,\"STFED\",Database,,,,,,,,,,,,,,F95,G95),_xll.IDLPara(2,,,A95,,,B95,,,C95,E95)))","v":"STFED"}]
[{"$f":"SPO!A$7","v":"$CNEU"},"05","1","Berichtete Umlagen",null,"#REP#","13","Wertspalte 13",{"$f":"IF(TRUE,\"STFED\",_xll.IDLSetValue(_xll.IDLPara(1,\"STFED\",Database,,,,,,,,,,,,,,F96,G96),_xll.IDLPara(2,,,A96,,,B96,,,C96,E96)))","v":"STFED"}]
[{"$f":"SPO!A$7","v":"$CNEU"},"05","2","Berichtete Umlagen","+","#REP#","14","Wertspalte 14",{"$f":"IF(TRUE,\"STFED\",_xll.IDLSetValue(_xll.IDLPara(1,\"STFED\",Database,,,,,,,,,,,,,,F97,G97),_xll.IDLPara(2,,,A97,,,B97,,,C97,E97)))","v":"STFED"}]
[{"$f":"SPO!A$7","v":"$CNEU"},"06","1","Sonstiges",null,"#REP#","11","Wertspalte 11",{"$f":"IF(TRUE,\"STFED\",_xll.IDLSetValue(_xll.IDLPara(1,\"STFED\",Database,,,,,,,,,,,,,,F98,G98),_xll.IDLPara(2,,,A98,,,B98,,,C98,E98)))","v":"STFED"}]
[{"$f":"SPO!A$7","v":"$CNEU"},"06","2","Sonstiges","+","#REP#","12","Wertspalte 12",{"$f":"IF(TRUE,\"STFED\",_xll.IDLSetValue(_xll.IDLPara(1,\"STFED\",Database,,,,,,,,,,,,,,F99,G99),_xll.IDLPara(2,,,A99,,,B99,,,C99,E99)))","v":"STFED"}]
[{"$f":"SPO!A$7","v":"$CNEU"},"07","1","Individueller Controllingbereich 1",null,"#REP#","17","Wertspalte 17",{"$f":"IF(TRUE,\"STFED\",_xll.IDLSetValue(_xll.IDLPara(1,\"STFED\",Database,,,,,,,,,,,,,,F100,G100),_xll.IDLPara(2,,,A100,,,B100,,,C100,E100)))","v":"STFED"}]
[{"$f":"SPO!A$7","v":"$CNEU"},"07","2","Individueller Controllingbereich 1","+","#REP#","18","Wertspalte 18",{"$f":"IF(TRUE,\"STFED\",_xll.IDLSetValue(_xll.IDLPara(1,\"STFED\",Database,,,,,,,,,,,,,,F101,G101),_xll.IDLPara(2,,,A101,,,B101,,,C101,E101)))","v":"STFED"}]
[{"$f":"SPO!A$7","v":"$CNEU"},"08","1","Individueller Controllingbereich 2",null,"#REP#","19","Wertspalte 19",{"$f":"IF(TRUE,\"STFED\",_xll.IDLSetValue(_xll.IDLPara(1,\"STFED\",Database,,,,,,,,,,,,,,F102,G102),_xll.IDLPara(2,,,A102,,,B102,,,C102,E102)))","v":"STFED"}]
[{"$f":"SPO!A$7","v":"$CNEU"},"08","2","Individueller Controllingbereich 2","+","#REP#","20","Wertspalte 20",{"$f":"IF(TRUE,\"STFED\",_xll.IDLSetValue(_xll.IDLPara(1,\"STFED\",Database,,,,,,,,,,,,,,F103,G103),_xll.IDLPara(2,,,A103,,,B103,,,C103,E103)))","v":"STFED"}]
[{"$f":"SPO!A$7","v":"$CNEU"},"09","1","Individueller Controllingbereich 3",null,"#REP#","21","Wertspalte 21",{"$f":"IF(TRUE,\"STFED\",_xll.IDLSetValue(_xll.IDLPara(1,\"STFED\",Database,,,,,,,,,,,,,,F104,G104),_xll.IDLPara(2,,,A104,,,B104,,,C104,E104)))","v":"STFED"}]
[{"$f":"SPO!A$7","v":"$CNEU"},"09","2","Individueller Controllingbereich 3","+","#REP#","22","Wertspalte 22",{"$f":"IF(TRUE,\"STFED\",_xll.IDLSetValue(_xll.IDLPara(1,\"STFED\",Database,,,,,,,,,,,,,,F105,G105),_xll.IDLPara(2,,,A105,,,B105,,,C105,E105)))","v":"STFED"}]
[{"$f":"SPO!A$7","v":"$CNEU"},"10","1","Individueller Controllingbereich 4",null,"#REP#","23","Wertspalte 23",{"$f":"IF(TRUE,\"STFED\",_xll.IDLSetValue(_xll.IDLPara(1,\"STFED\",Database,,,,,,,,,,,,,,F106,G106),_xll.IDLPara(2,,,A106,,,B106,,,C106,E106)))","v":"STFED"}]
[{"$f":"SPO!A$7","v":"$CNEU"},"10","2","Individueller Controllingbereich 4","+","#REP#","24","Wertspalte 24",{"$f":"IF(TRUE,\"STFED\",_xll.IDLSetValue(_xll.IDLPara(1,\"STFED\",Database,,,,,,,,,,,,,,F107,G107),_xll.IDLPara(2,,,A107,,,B107,,,C107,E107)))","v":"STFED"}]
[{"$f":"SPO!A$7","v":"$CNEU"},"11","1","Individueller Controllingbereich 5",null,"#REP#","25","Wertspalte 25",{"$f":"IF(TRUE,\"STFED\",_xll.IDLSetValue(_xll.IDLPara(1,\"STFED\",Database,,,,,,,,,,,,,,F108,G108),_xll.IDLPara(2,,,A108,,,B108,,,C108,E108)))","v":"STFED"}]
[{"$f":"SPO!A$7","v":"$CNEU"},"11","2","Individueller Controllingbereich 5","+","#REP#","26","Wertspalte 26",{"$f":"IF(TRUE,\"STFED\",_xll.IDLSetValue(_xll.IDLPara(1,\"STFED\",Database,,,,,,,,,,,,,,F109,G109),_xll.IDLPara(2,,,A109,,,B109,,,C109,E109)))","v":"STFED"}]
[{"$f":"SPO!A$7","v":"$CNEU"},"12","1","Individueller Controllingbereich 6",null,"#REP#","27","Wertspalte 27",{"$f":"IF(TRUE,\"STFED\",_xll.IDLSetValue(_xll.IDLPara(1,\"STFED\",Database,,,,,,,,,,,,,,F110,G110),_xll.IDLPara(2,,,A110,,,B110,,,C110,E110)))","v":"STFED"}]
[{"$f":"SPO!A$7","v":"$CNEU"},"12","2","Individueller Controllingbereich 6","+","#REP#","28","Wertspalte 28",{"$f":"IF(TRUE,\"STFED\",_xll.IDLSetValue(_xll.IDLPara(1,\"STFED\",Database,,,,,,,,,,,,,,F111,G111),_xll.IDLPara(2,,,A111,,,B111,,,C111,E111)))","v":"STFED"}]
[{"$f":"SPO!A$7","v":"$CNEU"},"13","1","Individueller Controllingbereich 7",null,"#REP#","29","Wertspalte 29",{"$f":"IF(TRUE,\"STFED\",_xll.IDLSetValue(_xll.IDLPara(1,\"STFED\",Database,,,,,,,,,,,,,,F112,G112),_xll.IDLPara(2,,,A112,,,B112,,,C112,E112)))","v":"STFED"}]
[{"$f":"SPO!A$7","v":"$CNEU"},"13","2","Individueller Controllingbereich 7","+","#REP#","30","Wertspalte 30",{"$f":"IF(TRUE,\"STFED\",_xll.IDLSetValue(_xll.IDLPara(1,\"STFED\",Database,,,,,,,,,,,,,,F113,G113),_xll.IDLPara(2,,,A113,,,B113,,,C113,E113)))","v":"STFED"}]
[{"$f":"SPO!A$7","v":"$CNEU"},"14","1","Individueller Controllingbereich 8",null,"#REP#","31","Wertspalte 31",{"$f":"IF(TRUE,\"STFED\",_xll.IDLSetValue(_xll.IDLPara(1,\"STFED\",Database,,,,,,,,,,,,,,F114,G114),_xll.IDLPara(2,,,A114,,,B114,,,C114,E114)))","v":"STFED"}]
[{"$f":"SPO!A$7","v":"$CNEU"},"14","2","Individueller Controllingbereich 8","+","#REP#","32","Wertspalte 32",{"$f":"IF(TRUE,\"STFED\",_xll.IDLSetValue(_xll.IDLPara(1,\"STFED\",Database,,,,,,,,,,,,,,F115,G115),_xll.IDLPara(2,,,A115,,,B115,,,C115,E115)))","v":"STFED"}]
[{"$f":"SPO!A$7","v":"$CNEU"},"15","1","Individueller Controllingbereich 9",null,"#REP#","33","Wertspalte 33",{"$f":"IF(TRUE,\"STFED\",_xll.IDLSetValue(_xll.IDLPara(1,\"STFED\",Database,,,,,,,,,,,,,,F116,G116),_xll.IDLPara(2,,,A116,,,B116,,,C116,E116)))","v":"STFED"}]
[{"$f":"SPO!A$7","v":"$CNEU"},"15","2","Individueller Controllingbereich 9","+","#REP#","34","Wertspalte 34",{"$f":"IF(TRUE,\"STFED\",_xll.IDLSetValue(_xll.IDLPara(1,\"STFED\",Database,,,,,,,,,,,,,,F117,G117),_xll.IDLPara(2,,,A117,,,B117,,,C117,E117)))","v":"STFED"}]
[{"$f":"SPO!A$7","v":"$CNEU"},"16","1","Gesamt",null,"#REP#","01","Saldo akt. Periode",{"$f":"IF(TRUE,\"STFED\",_xll.IDLSetValue(_xll.IDLPara(1,\"STFED\",Database,,,,,,,,,,,,,,F118,G118),_xll.IDLPara(2,,,A118,,,B118,,,C118,E118)))","v":"STFED"}]
[{"$f":"SPO!A$7","v":"$CNEU"},"16","2","Gesamt","+","#REP#","02","Buchungen akt. Periode",{"$f":"IF(TRUE,\"STFED\",_xll.IDLSetValue(_xll.IDLPara(1,\"STFED\",Database,,,,,,,,,,,,,,F119,G119),_xll.IDLPara(2,,,A119,,,B119,,,C119,E119)))","v":"STFED"}]
[{"$f":"SPO!A$7","v":"$CNEU"},"17","1","Gesamt VP",null,"#REP#","03","Saldo Vorperiode",{"$f":"IF(TRUE,\"STFED\",_xll.IDLSetValue(_xll.IDLPara(1,\"STFED\",Database,,,,,,,,,,,,,,F120,G120),_xll.IDLPara(2,,,A120,,,B120,,,C120,E120)))","v":"STFED"}]
[{"$f":"SPO!A$7","v":"$CNEU"},"17","2","Gesamt VP","+","#REP#","04","Buchungen Vorperiode",{"$f":"IF(TRUE,\"STFED\",_xll.IDLSetValue(_xll.IDLPara(1,\"STFED\",Database,,,,,,,,,,,,,,F121,G121),_xll.IDLPara(2,,,A121,,,B121,,,C121,E121)))","v":"STFED"}]
[{"$f":"SPO!A$8","v":"$CSUM"},"01","1","Produktion",null,"#REP#","09","Wertspalte 09",{"$f":"IF(TRUE,\"STFED\",_xll.IDLSetValue(_xll.IDLPara(1,\"STFED\",Database,,,,,,,,,,,,,,F122,G122),_xll.IDLPara(2,,,A122,,,B122,,,C122,E122)))","v":"STFED"}]
[{"$f":"SPO!A$8","v":"$CSUM"},"02","1","Vertrieb",null,"#REP#","15","Wertspalte 15",{"$f":"IF(TRUE,\"STFED\",_xll.IDLSetValue(_xll.IDLPara(1,\"STFED\",Database,,,,,,,,,,,,,,F123,G123),_xll.IDLPara(2,,,A123,,,B123,,,C123,E123)))","v":"STFED"}]
[{"$f":"SPO!A$8","v":"$CSUM"},"03","1","Forschung und Entwicklung",null,"#REP#","07","Wertspalte 07",{"$f":"IF(TRUE,\"STFED\",_xll.IDLSetValue(_xll.IDLPara(1,\"STFED\",Database,,,,,,,,,,,,,,F124,G124),_xll.IDLPara(2,,,A124,,,B124,,,C124,E124)))","v":"STFED"}]
[{"$f":"SPO!A$8","v":"$CSUM"},"04","1","Verwaltung",null,"#REP#","05","Wertspalte 05",{"$f":"IF(TRUE,\"STFED\",_xll.IDLSetValue(_xll.IDLPara(1,\"STFED\",Database,,,,,,,,,,,,,,F125,G125),_xll.IDLPara(2,,,A125,,,B125,,,C125,E125)))","v":"STFED"}]
[{"$f":"SPO!A$8","v":"$CSUM"},"05","1","Berichtete Umlagen",null,"#REP#","13","Wertspalte 13",{"$f":"IF(TRUE,\"STFED\",_xll.IDLSetValue(_xll.IDLPara(1,\"STFED\",Database,,,,,,,,,,,,,,F126,G126),_xll.IDLPara(2,,,A126,,,B126,,,C126,E126)))","v":"STFED"}]
[{"$f":"SPO!A$8","v":"$CSUM"},"06","1","Sonstiges",null,"#REP#","11","Wertspalte 11",{"$f":"IF(TRUE,\"STFED\",_xll.IDLSetValue(_xll.IDLPara(1,\"STFED\",Database,,,,,,,,,,,,,,F127,G127),_xll.IDLPara(2,,,A127,,,B127,,,C127,E127)))","v":"STFED"}]
[{"$f":"SPO!A$8","v":"$CSUM"},"07","1","Individueller Controllingbereich 1",null,"#REP#","17","Wertspalte 17",{"$f":"IF(TRUE,\"STFED\",_xll.IDLSetValue(_xll.IDLPara(1,\"STFED\",Database,,,,,,,,,,,,,,F128,G128),_xll.IDLPara(2,,,A128,,,B128,,,C128,E128)))","v":"STFED"}]
[{"$f":"SPO!A$8","v":"$CSUM"},"08","1","Individueller Controllingbereich 2",null,"#REP#","19","Wertspalte 19",{"$f":"IF(TRUE,\"STFED\",_xll.IDLSetValue(_xll.IDLPara(1,\"STFED\",Database,,,,,,,,,,,,,,F129,G129),_xll.IDLPara(2,,,A129,,,B129,,,C129,E129)))","v":"STFED"}]
[{"$f":"SPO!A$8","v":"$CSUM"},"09","1","Individueller Controllingbereich 3",null,"#REP#","21","Wertspalte 21",{"$f":"IF(TRUE,\"STFED\",_xll.IDLSetValue(_xll.IDLPara(1,\"STFED\",Database,,,,,,,,,,,,,,F130,G130),_xll.IDLPara(2,,,A130,,,B130,,,C130,E130)))","v":"STFED"}]
[{"$f":"SPO!A$8","v":"$CSUM"},"10","1","Individueller Controllingbereich 4",null,"#REP#","23","Wertspalte 23",{"$f":"IF(TRUE,\"STFED\",_xll.IDLSetValue(_xll.IDLPara(1,\"STFED\",Database,,,,,,,,,,,,,,F131,G131),_xll.IDLPara(2,,,A131,,,B131,,,C131,E131)))","v":"STFED"}]
[{"$f":"SPO!A$8","v":"$CSUM"},"11","1","Individueller Controllingbereich 5",null,"#REP#","25","Wertspalte 25",{"$f":"IF(TRUE,\"STFED\",_xll.IDLSetValue(_xll.IDLPara(1,\"STFED\",Database,,,,,,,,,,,,,,F132,G132),_xll.IDLPara(2,,,A132,,,B132,,,C132,E132)))","v":"STFED"}]
[{"$f":"SPO!A$8","v":"$CSUM"},"12","1","Individueller Controllingbereich 6",null,"#REP#","27","Wertspalte 27",{"$f":"IF(TRUE,\"STFED\",_xll.IDLSetValue(_xll.IDLPara(1,\"STFED\",Database,,,,,,,,,,,,,,F133,G133),_xll.IDLPara(2,,,A133,,,B133,,,C133,E133)))","v":"STFED"}]
[{"$f":"SPO!A$8","v":"$CSUM"},"13","1","Individueller Controllingbereich 7",null,"#REP#","29","Wertspalte 29",{"$f":"IF(TRUE,\"STFED\",_xll.IDLSetValue(_xll.IDLPara(1,\"STFED\",Database,,,,,,,,,,,,,,F134,G134),_xll.IDLPara(2,,,A134,,,B134,,,C134,E134)))","v":"STFED"}]
[{"$f":"SPO!A$8","v":"$CSUM"},"14","1","Individueller Controllingbereich 8",null,"#REP#","31","Wertspalte 31",{"$f":"IF(TRUE,\"STFED\",_xll.IDLSetValue(_xll.IDLPara(1,\"STFED\",Database,,,,,,,,,,,,,,F135,G135),_xll.IDLPara(2,,,A135,,,B135,,,C135,E135)))","v":"STFED"}]
[{"$f":"SPO!A$8","v":"$CSUM"},"15","1","Individueller Controllingbereich 9",null,"#REP#","33","Wertspalte 33",{"$f":"IF(TRUE,\"STFED\",_xll.IDLSetValue(_xll.IDLPara(1,\"STFED\",Database,,,,,,,,,,,,,,F136,G136),_xll.IDLPara(2,,,A136,,,B136,,,C136,E136)))","v":"STFED"}]
[{"$f":"SPO!A$8","v":"$CSUM"},"16","1","Gesamt",null,"#REP#","01","Saldo akt. Periode",{"$f":"IF(TRUE,\"STFED\",_xll.IDLSetValue(_xll.IDLPara(1,\"STFED\",Database,,,,,,,,,,,,,,F137,G137),_xll.IDLPara(2,,,A137,,,B137,,,C137,E137)))","v":"STFED"}]
[{"$f":"SPO!A$8","v":"$CSUM"},"17","1","Gesamt VP",null,"#REP#","03","Saldo Vorperiode",{"$f":"IF(TRUE,\"STFED\",_xll.IDLSetValue(_xll.IDLPara(1,\"STFED\",Database,,,,,,,,,,,,,,F138,G138),_xll.IDLPara(2,,,A138,,,B138,,,C138,E138)))","v":"STFED"}]